Workbook

Sheet selite
A1: VALTIOVARAINMINISTERIÖ/Kunta- ja aluehallinto-osasto/vjl | H1: 2018-06-14
A3: KUNTAKONSERNIN TALOUDEN SUUNNITTELUKEHIKKO
A5: Kehikon käyttötarkoitus:
A6: Vuorovaikutteinen kuntakonsernin talouden suunnittelun apuväline. Kehikon avulla voidaan suunnitella konsernin talouden
A7: kehitystä pidemmällä aikavälillä. Tarkastelun kohteena ovat konsernin tuloslaskelma, rahoituslaskelmasta rahavarat, antolainat ja
A8: investoinnit sekä taseesta lainat ja kertynyt yli-/alijäämä. Pohjatietoina kehikossa ovat 2 viimeksi
A9: valmistunutta tilinpäätöstä.
A10: Tulevan kehityksen osalta tuloslaskelman erien kasvuolettamukset pohjautuvat lähtökohtaisesti
A11: uusimman valtion kuntatalousohjelman (huhtikuu 2018) mukaisiin makroarviolukuihin - ei kuntakohtaisiin ennusteisiin.
A12: Käyttäjä voi kuitenkin itse muokata em. kasvuolettamuksia sekä yleensä tuloslaskelman muita eriä.
A13: Myös tuloveroprosenttia, investointeja ja antolainasaamisten määrää voidaan muuttaa.
A14: Rahoituslaskelman ja taseen erät pohjautuvat jäljempänä selostettuihin olettamuksiin
A15: (pl. taseen kertynyt yli-/alijäämä = ed. tilikausien yli-/alijäämä + tilikauden yli-/alijäämä).
A17: Käyttäjä voi muokata vaaleansinisellä pohjalla olevia kohtia (soluja).
A19: Kehikon laskentapohja:
A20: Asukasluku:
A21: Kunnan asukaslukuina käytetään lähtökohtaisesti viimeisintä väestötietoa (tässä 31.12.2017). Tulevien vuosien
A22: osalta asukaslukutiedot perustuvat tilastokeskuksen viimeisimpään väestöennusteeseen (TK, 2015).
A23: Tuloveroprosentti:
A24: Tuloveroprosentti perustuu viimeksi vahvistettuun tietoon (tässä vuoden 2018 veroprosentti). Tulevien vuosien osalta
A25: tuloveroprosentti on lähtökohtaisesti sama kuin edellisvuonna, mutta sitä voidaan muuttaa kehikossa. Kehikko
A26: laskee automaattisesti veroprosentin muutoksen vaikutuksen kunnallisveron tuottoon (edellisvuoden
A27: veroprosenttiyksikön tuoton perusteella).
A28: Tuloslaskelma:
A29: Tuloslaskelman pohjana ovat kuntien tilinpäätökset kahdelta viimeiseltä vuodelta. Tässä tapauksessa vuodet
A30: 2016 ja 2017. Tuloslaskelman keskeisten erien tulevien vuosien kasvuprosentit perustuvat lähtökohtaisesti
A31: kuntatalousohjelman (KTO 2019, VM, huhtikuu 2018) mukaisiin makroennusteisiin eli kasvuprosentit
A32: ovat näin kaikilla kunnilla samat. Em. keskeiset tuloslaskelman erät ovat seuraavat:
B33: 1) toimintatuotot,
B34: 2) toimintamenot,
B35: 3) kunnallisverot (pl. veroprosentin noston vaikutus),
B36: 4) yhteisöverot,
B37: 5) kiinteistöverot ja
B38: 6) valtionosuudet.
A39: Käyttäjä voi muokata em. erien kasvuolettamuksia haluamikseen kirjoittamalla taulukkoon uudet kasvuprosentit.
A41: Verotuloissa on käytetty kunnan verotuloja, koska Tilastokeskus ei kerää konsernitasolla eri veromuotoja.
A42: TK:sta ilmoitettu yhteenlaskettu konsernitason verotulot saattaa poiketa perunkunnan yhteenlasketusta
A44: Korkokulujen kehitys perustuu edellisvuoden lainamäärään ja valittuun korkokantaan. Korkoprosentti (keskim.)
A45: voidaan siis valita halutun mukaiseksi. Korkoprosentti ei vaikuta korkotuottoihin, vaan sen perustuu ed. vuoden määrään.
A47: Muiden tuloslaskelman erien on oletettu edellisvuoden mukaisesti, mutta käyttäjä voi muokata niitä haluamikseen.
A48: Rahoituslaskelma ja tase:
A49: Kehikossa tuloslaskelma "päätyy" taseen kertyneeseen yli-/alijäämään, jolloin voidaan tarkastella esim. milloin kunnan mahdollinen
A50: taseen alijäämä tulisi katetuksi valituilla tuloslaskelman kasvuoletuksilla (vrt. kuntalaki ja alijäämän kattamisvelvollisuus).
A52: Investoinnit ja niihin liittyvät rahoitusosuudet sekä pysyvien vastaavien luovutustulot ovat lähtökohtaisesti viimeksi toteutuneen
A53: tilinpäätöksen mukaiset, mutta ne ovat myös muutettavissa.
A55: Kehikossa ns. bruttorahoitustarve katetaan joko lainanlisäyksellä tai/ja rahavarojen purulla. Käyttäjä voi valita prosenttiosuuden,
A56: jolla rahavaroja käytetään bruttorahoitustarpeen kattamiseen. Mikäli rahavaroja ei ole, tarve katetaan kaikkiaan lainanlisäyksellä.
A57: Bruttorahoitustarve voi olla myös positiivinen, jolloin "ylijäämä" lisää rahavaroja.
A59: Bruttorahoitustarve muodostuu seuraavista eristä = Vuosikate + tulorahoituksen korjauserät + satunnaiset erät, netto + investoinnit,
A60: netto + antolainasaamisten muutokset, netto + lainanlyhennykset. Bruttorahoitustarve voi olla myös positiivinen, jolloin "ylijäämä"
A62: Lainamäärää lyhennetään valitun keskimääräisen lyhennysajan (kuoletusaika) mukaan eli jos keskimääräinen lainanmaksuaika
A63: on esimerkiksi 8 vuotta, niin vuosittainen lainanlyhennys on 1/8 (12,5 %) edellisvuoden lainamäärästä. Lainanlyhennys
A64: tehdään aina, vaikka bruttorahoitustarve olisi negatiivinen.
A69: Lisätietoja: Neuvotteleva virkamies Vesa Lappalainen, puh. 02955 30389, etunimi.sukunimi@vm.fi

Sheet KEHIKKO
A1: Valtiovarainministeriö/Kunta- ja aluehallinto-osasto/vjl | H1: VALITSE KUNTA: | L1: 2018-06-14
A2: KUNTAKONSERNIN TALOUDEN SUUNNITTELUKEHIKKO | J2: Kunnat vuoden 2018 jaolla
A3: Muokkaa vaaleansinisellä olevia kohtia.
A4: =INDEX(pohjatiedot!$B$3:$B$298,KEHIKKO!$A$5) -> KOKO MAA (Manner-Suomi)
A5: 96 | B5: TP 2016 | C5: TP 2017 | D5: 2018 | E5: 2019 | F5: 2020 | G5: 2021 | H5: 2022 | I5: 2023 | J5: 2024 | K5: 2025 | L5: 2026 | M5: 2027
A6: TULOSLASKELMA | K6: sama kuin ed.vuonna
A7: Asukasluku 31.12. | B7: =VLOOKUP($A$4,pohjatiedot!$B$3:$CF$298,2) -> 5474083 | C7: =VLOOKUP($A$4,pohjatiedot!$B$3:$CF$298,42) -> 5483641 | D7: =VLOOKUP($A$4,väestöennuste!$A$8:$K$305,4) -> 5482281 | E7: =VLOOKUP($A$4,väestöennuste!$A$8:$K$305,5) -> 5503261 | F7: =VLOOKUP($A$4,väestöennuste!$A$8:$K$305,6) -> 5524063 | G7: =VLOOKUP($A$4,väestöennuste!$A$8:$K$305,7) -> 5544619 | H7: =VLOOKUP($A$4,väestöennuste!$A$8:$K$305,8) -> 5564874 | I7: =VLOOKUP($A$4,väestöennuste!$A$8:$K$305,9) -> 5584791 | J7: =VLOOKUP($A$4,väestöennuste!$A$8:$K$305,10) -> 5604290 | K7: =VLOOKUP($A$4,väestöennuste!$A$8:$K$305,11) -> 5623257 | L7: =K7 -> 5623257 | M7: =L7 -> 5623257 | N7: Väestöennuste TK 2015
A8: Veroprosentti | B8: =VLOOKUP($A$4,pohjatiedot!$B$3:$CF$298,3) -> 19.89 | C8: =VLOOKUP($A$4,pohjatiedot!$B$3:$CF$298,43) -> 19.92 | D8: =VLOOKUP($A$4,pohjatiedot!$B$3:$CI$298,83) -> 19.87 | E8: =D8 -> 19.87 | F8: =VLOOKUP($A$4,pohjatiedot!$B$3:$CI$298,84) -> 8.46 | G8: 8.46 | H8: 8.46 | I8: 8.46 | J8: 8.46 | K8: 8.46 | L8: 8.46 | M8: 8.46 | O8: Vuoden 2020 veroprosentti on saatu vähentämällä kunnilta 11,41 %-yksikköä
A9: vero-% yksikön tuotto | B9: =B15/B8 -> 945567.823 | C9: =C15/C8 -> 945165.2108 | D9: =D15/D8 -> 973520.1672 | E9: =E15/E8 -> 1015381.534 | F9: 1192413.185 | G9: 1143524.244 | H9: 1165251.205 | I9: 1187390.978 | J9: 1209951.406 | K9: 1232940.483 | L9: 1256366.352 | M9: 1280237.313
A10: → noston vaikutus | D10: =(D8-C8)*C9 -> -47258.26054 | E10: =(E8-D8)*D9 -> 0 | F10: 0 | G10: 0 | H10: =(H8-G8)*G9 -> 0 | I10: 0 | J10: 0 | K10: 0 | L10: 0 | M10: 0
A11: Toimintatuotot (sis. valm. okäytt.) | B11: =VLOOKUP($A$4,pohjatiedot!$B$3:$CF$298,6) -> 23891978 | C11: =VLOOKUP($A$4,pohjatiedot!$B$3:$CF$298,46) -> 24653392 | D11: =C11*(1+D70/100) -> 24776658.96 | E11: =D11*(1+E70/100) -> 25272192.14 | F11: =E11*(1+F70/100) -> 20470475.63 | G11: =F11*(1+G70/100) -> 20982237.52 | H11: =G11*(1+H70/100) -> 21485811.22 | I11: 22001470.69 | J11: 22529505.99 | K11: 23070214.13 | L11: 23623899.27 | M11: 24190872.86 | O11: Näiden erin muutos-
A12: Toimintakulut | B12: =VLOOKUP($A$4,pohjatiedot!$B$3:$CF$298,7) -> 50389944 | C12: =VLOOKUP($A$4,pohjatiedot!$B$3:$CF$298,47) -> 50758330 | D12: =C12*(1+D71/100) -> 49946196.72 | E12: 51494528.82 | F12: =E12*(1+F71/100) -> 26004737.05 | G12: =F12*(1+G71/100) -> 26654855.48 | H12: 27347881.72 | I12: 28058926.65 | J12: 28788458.74 | K12: 29536958.67 | L12: 30304919.59 | M12: 31092847.5 | O12: prosentit syötetään
A13: Osuus osakk.yht. voitoista/tappioista | B13: =VLOOKUP($A$4,pohjatiedot!$B$3:$CF$298,8) -> 68081 | C13: =VLOOKUP($A$4,pohjatiedot!$B$3:$CF$298,48) -> 81900 | D13: =C13 -> 81900 | E13: =D13 -> 81900 | F13: =E13 -> 81900 | G13: 81900 | H13: 81900 | I13: 81900 | J13: 81900 | K13: 81900 | L13: 81900 | M13: 81900 | O13: alla olevaan taulukkoon
A14: Toimintakate | B14: =B11-B12+B13 -> -26429885 | C14: =C11-C12+C13 -> -26023038 | D14: =D11-D12+D13 -> -25087637.76 | E14: =E11-E12+E13 -> -26140436.68 | F14: -5452361.42 | G14: -5590717.956 | H14: -5780170.498 | I14: -5975555.953 | J14: -6177052.749 | K14: -6384844.533 | L14: -6599120.319 | M14: -6820074.646
A15: Kunnallisverot | B15: =VLOOKUP($A$4,pohjatiedot!$B$3:$CF$298,9) -> 18807344 | C15: =VLOOKUP($A$4,pohjatiedot!$B$3:$CF$298,49) -> 18827691 | D15: =(C15+D10)*(1+D72/100) -> 19343845.72 | E15: =(D15+E10)*(1+E72/100) -> 20175631.09 | F15: =(E15+F10)*(1+F72/100) -> 10087815.54 | G15: =F15*(1+G72/100) -> 9674215.107 | H15: =(G15+H10)*(1+H72/100) -> 9858025.194 | I15: =(H15+I10)*(1+I72/100) -> 10045327.67 | J15: 10236188.9 | K15: 10430676.49 | L15: 10628859.34 | M15: 10830807.67
A16: Yhteisöverot | B16: =VLOOKUP($A$4,pohjatiedot!$B$3:$CF$298,10) -> 1539341 | C16: =VLOOKUP($A$4,pohjatiedot!$B$3:$CF$298,50) -> 1887798 | D16: =C16*(1+D73/100) -> 1912339.374 | E16: =D16*(1+E73/100) -> 1944849.143 | F16: 1503368.388 | G16: 1515395.335 | H16: 1386586.731 | I16: 1268726.859 | J16: 1160885.076 | K16: 1062209.845 | L16: 971922.008 | M16: 889308.6373
A17: Kiinteistöverot | B17: =VLOOKUP($A$4,pohjatiedot!$B$3:$CF$298,11) -> 1640918 | C17: =VLOOKUP($A$4,pohjatiedot!$B$3:$CF$298,51) -> 1719296 | D17: =C17*(1+D74/100) -> 1770874.88 | E17: 1932024.494 | F17: 1966800.935 | G17: 1992369.347 | H17: 2066087.013 | I17: 2142532.232 | J17: 2221805.925 | K17: 2304012.744 | L17: 2389261.216 | M17: 2477663.881
A18: Verotulot | B18: =VLOOKUP($A$4,pohjatiedot!$B$3:$CF$298,12) -> 21987603 | C18: =VLOOKUP($A$4,pohjatiedot!$B$3:$CF$298,52) -> 22434785 | D18: =SUM(D15:D17) -> 23027059.98 | E18: 24052504.73 | F18: 13557984.87 | G18: 13181979.79 | H18: 13310698.94 | I18: 13456586.76 | J18: 13618879.9 | K18: 13796899.08 | L18: 13990042.56 | M18: 14197780.19
A19: Valtionosuudet | B19: =VLOOKUP($A$4,pohjatiedot!$B$3:$CF$298,13) -> 10050212 | C19: =VLOOKUP($A$4,pohjatiedot!$B$3:$CF$298,53) -> 9699290 | D19: =C19*(1+D75/100) -> 9912674.38 | E19: =D19*(1+E75/100) -> 10130753.22 | F19: =E19*(1+F75/100) -> 2988572.199 | G19: =F19*(1+G75/100) -> 2779372.145 | H19: =G19*(1+H75/100) -> 2809945.239 | I19: 2840854.636 | J19: 2872104.037 | K19: 2903697.182 | L19: 2935637.851 | M19: 2967929.867
D20: Kuntatalousohjelma-->
A21: Korkotuotot | B21: =VLOOKUP($A$4,pohjatiedot!$B$3:$CF$298,14) -> 77076 | C21: =VLOOKUP($A$4,pohjatiedot!$B$3:$CF$298,54) -> 78182 | D21: =C21 -> 78182 | E21: =D21 -> 78182 | F21: 78182 | G21: 78182 | H21: 78182 | I21: 78182 | J21: 78182 | K21: 78182 | L21: 78182 | M21: 78182
A22: Korkokulut | B22: =VLOOKUP($A$4,pohjatiedot!$B$3:$CF$298,15) -> 461683 | C22: =VLOOKUP($A$4,pohjatiedot!$B$3:$CF$298,55) -> 449810 | D22: =($H$78/100)*C61 -> 588624.303 | E22: =($H$78/100)*D61 -> 561750.7174 | F22: 531883.7984 | G22: 465398.3236 | H22: 407223.5332 | I22: 356320.5915 | J22: 311780.5176 | K22: 272807.9529 | L22: 238706.9588 | M22: 208868.5889
A23: Muut rahoitustuotot | B23: =VLOOKUP($A$4,pohjatiedot!$B$3:$CF$298,16) -> 186106 | C23: =VLOOKUP($A$4,pohjatiedot!$B$3:$CF$298,56) -> 223419 | D23: =C23 -> 223419 | E23: =D23 -> 223419 | F23: 223419 | G23: 223419 | H23: 223419 | I23: 223419 | J23: 223419 | K23: 223419 | L23: 223419 | M23: 223419
A24: Muut rahoituskulut | B24: =VLOOKUP($A$4,pohjatiedot!$B$3:$CF$298,17) -> 69647 | C24: =VLOOKUP($A$4,pohjatiedot!$B$3:$CF$298,57) -> 67744 | D24: =C24 -> 67744 | E24: =D24 -> 67744 | F24: 67744 | G24: 67744 | H24: 67744 | I24: 67744 | J24: 67744 | K24: 67744 | L24: 67744 | M24: 67744
A25: VUOSIKATE | B25: =VLOOKUP($A$4,pohjatiedot!$B$3:$CF$298,18) -> 5294232 | C25: =VLOOKUP($A$4,pohjatiedot!$B$3:$CF$298,58) -> 5909985 | D25: =D14+D18+D19+D21-D22+D23-D24 -> 7497329.293 | E25: =E14+E18+E19+E21-E22+E23-E24 -> 7714927.545 | F25: 10796168.85 | G25: 10139092.65 | H25: 10167107.15 | I25: 10199421.86 | J25: 10236007.67 | K25: 10276800.77 | L25: 10321710.14 | M25: 10370623.82
A26: €/asukas | B26: =1000*B25/B7 -> 967.1449994 | C26: =1000*C25/C7 -> 1077.748343 | D26: =1000*D25/D7 -> 1367.55655 | E26: =1000*E25/E7 -> 1401.88291 | F26: 1954.38916 | G26: 1828.636495 | H26: 1827.014798 | I26: 1826.285327 | J26: 1826.459314 | K26: 1827.553102 | L26: 1835.539463 | M26: 1844.237924
A27: Poistot ja arvonalent. | B27: =VLOOKUP($A$4,pohjatiedot!$B$3:$CF$298,20) -> 3936135 | C27: =VLOOKUP($A$4,pohjatiedot!$B$3:$CF$298,60) -> 4146302 | D27: =C27*$O$27 -> 4367690.711 | E27: =D27*$O$27 -> 4600900.307 | F27: 4846561.956 | G27: 5105340.526 | H27: 5377936.385 | I27: 5665087.297 | J27: 5967570.419 | K27: 6286204.402 | L27: 6621851.609 | M27: 6975420.449 | O27: =C27/B27 -> 1.053394256 | P27: kasvuoletus 04/18
A28: Satunnaiset erät | B28: =VLOOKUP($A$4,pohjatiedot!$B$3:$CF$298,21) -> 322374 | C28: =VLOOKUP($A$4,pohjatiedot!$B$3:$CF$298,61) -> 84151 | D28: =C28 -> 84151 | E28: =D28 -> 84151 | F28: 84151 | G28: 84151 | H28: 84151 | I28: 84151 | J28: 84151 | K28: 84151 | L28: 84151 | M28: 84151
A30: Tilikauden tulos | B30: =VLOOKUP($A$4,pohjatiedot!$B$3:$CF$298,23) -> 1680471 | C30: =VLOOKUP($A$4,pohjatiedot!$B$3:$CF$298,63) -> 1847834 | D30: =D25-D27+D28-D29 -> 3213789.582 | E30: =E25-E27+E28-E29 -> 3198178.238 | F30: 6033757.891 | G30: 5117903.128 | H30: 4873321.761 | I30: 4618485.558 | J30: 4352588.251 | K30: 4074747.37 | L30: 3784009.528 | M30: 3479354.369
A31: Tilinpäätössiirrot | B31: =VLOOKUP($A$4,pohjatiedot!$B$3:$CF$298,24) -> -15533 | C31: =VLOOKUP($A$4,pohjatiedot!$B$3:$CF$298,64) -> -9621 | D31: =C31 -> -9621 | E31: -9621 | F31: -9621 | G31: -9621 | H31: -9621 | I31: -9621 | J31: -9621 | K31: -9621 | L31: -9621 | M31: -9621
A32: Tilikauden verot | B32: =VLOOKUP($A$4,pohjatiedot!$B$3:$CF$298,25) -> 68562 | C32: =VLOOKUP($A$4,pohjatiedot!$B$3:$CF$298,65) -> 78796 | D32: =C32 -> 78796 | E32: 78796 | F32: 78796 | G32: 78796 | H32: 78796 | I32: 78796 | J32: 78796 | K32: 78796 | L32: 78796 | M32: 78796
A33: Laskenalliset verot | B33: =VLOOKUP($A$4,pohjatiedot!$B$3:$CF$298,26) -> -43947 | C33: =VLOOKUP($A$4,pohjatiedot!$B$3:$CF$298,66) -> -48127 | D33: -48127 | E33: -48127 | F33: -48127 | G33: -48127 | H33: -48127 | I33: -48127 | J33: -48127 | K33: -48127 | L33: -48127 | M33: -48127
A34: Vähemmistöosuudet | B34: =VLOOKUP($A$4,pohjatiedot!$B$3:$CF$298,27) -> -32889 | C34: =VLOOKUP($A$4,pohjatiedot!$B$3:$CF$298,67) -> -39026 | D34: -39026 | E34: -39026 | F34: -39026 | G34: -39026 | H34: -39026 | I34: -39026 | J34: -39026 | K34: -39026 | L34: -39026 | M34: -39026
A35: Tilikauden yli-/alijäämä | B35: =VLOOKUP($A$4,pohjatiedot!$B$3:$CF$298,29) -> 1519540 | C35: =VLOOKUP($A$4,pohjatiedot!$B$3:$CF$298,68) -> 1672264 | D35: =D30+D31+D32+D33 -> 3234837.582 | E35: =E30+E31+E32+E33 -> 3219226.238 | F35: 6054805.891 | G35: 5138951.128 | H35: 4894369.761 | I35: 4639533.558 | J35: 4373636.251 | K35: 4095795.37 | L35: 3805057.528 | M35: 3500402.369
A36: TASEESTA
A37: Kertynyt yli-/alijäämä | B37: =VLOOKUP($A$4,pohjatiedot!$B$3:$CF$298,31) -> 10805452 | C37: =VLOOKUP($A$4,pohjatiedot!$B$3:$CF$298,70) -> 12311904 | D37: =C37+D35 -> 15546741.58 | E37: 18765967.82 | F37: 24820773.71 | G37: 29959724.84 | H37: 34854094.6 | I37: 39493628.16 | J37: 43867264.41 | K37: 47963059.78 | L37: 51768117.31 | M37: 55268519.67
A38: €/asukas | B38: =1000*B37/B7 -> 1973.929149 | C38: =1000*C37/C7 -> 2245.206059 | D38: 2835.816256 | E38: 3409.972346 | F38: 4493.209746 | G38: 5403.387472 | H38: 6263.231584 | I38: 7071.639415 | J38: 7827.443692 | K38: 8529.409162 | L38: 9206.07351 | M38: 9828.560152
A40: RAHOITUSLASKELMAN JA TASEEN TIETOJA (sisältäen rahoitusjäämän ja sen vajeen kattamisoletukset)
A41: Vuosikate | B41: =B25 -> 5294232 | C41: =C25 -> 5909985 | D41: =D25 -> 7497329.293 | E41: =E25 -> 7714927.545 | F41: 10796168.85 | G41: 10139092.65 | H41: 10167107.15 | I41: 10199421.86 | J41: 10236007.67 | K41: 10276800.77 | L41: 10321710.14 | M41: 10370623.82
A42: Tulorahoituksen korjauserät | C42: =VLOOKUP($A$4,pohjatiedot!$B$3:$CW$298,98) -> -515804 | D42: =C42 -> -515804 | E42: =D42 -> -515804 | F42: =E42 -> -515804 | G42: -515804 | H42: -515804 | I42: -515804 | J42: -515804 | K42: -515804 | L42: -515804 | M42: -515804
A43: Satunnaiset erät, netto | B43: =B28-B29 -> 322374 | C43: =C28-C29 -> 84151 | D43: =D28-D29 -> 84151 | E43: =E28-E29 -> 84151 | F43: 84151 | G43: 84151 | H43: 84151 | I43: 84151 | J43: 84151 | K43: 84151 | L43: 84151 | M43: 84151
A44: = 1. Tulorahoitus, netto | C44: =SUM(C41:C43) -> 5478332 | D44: =SUM(D41:D43) -> 7065676.293 | E44: 7283274.545 | F44: 10364515.85 | G44: 9707439.654 | H44: 9735454.145 | I44: 9767768.855 | J44: 9804354.669 | K44: 9845147.772 | L44: 9890057.137 | M44: 9938970.818
A45: Investointimenot | C45: =VLOOKUP($A$4,pohjatiedot!$B$3:$CX$298,99) -> -7342002 | D45: =C45 -> -7342002 | E45: =D45 -> -7342002 | F45: -7342002 | G45: -7342002 | H45: -7342002 | I45: -7342002 | J45: -7342002 | K45: -7342002 | L45: -7342002 | M45: -7342002
A46: Rahoitusosuudet investointeihin | C46: =VLOOKUP($A$4,pohjatiedot!$B$3:$CX$298,100) -> 215662 | D46: =C46 -> 215662 | E46: =D46 -> 215662 | F46: 215662 | G46: 215662 | H46: 215662 | I46: 215662 | J46: 215662 | K46: 215662 | L46: 215662 | M46: 215662
A47: Inv.hyödykkeiden luovutustulot | C47: =VLOOKUP($A$4,pohjatiedot!$B$3:$CX$298,101) -> 1299721 | D47: =C47 -> 1299721 | E47: =D47 -> 1299721 | F47: 1299721 | G47: 1299721 | H47: 1299721 | I47: 1299721 | J47: 1299721 | K47: 1299721 | L47: 1299721 | M47: 1299721
A48: = 2. Nettoinvestoinnit | B48: =VLOOKUP($A$4,pohjatiedot!$B$3:$CF$298,34) -> -5640611 | C48: =C47+C46+C45 -> -5826619 | D48: =D47+D46+D45 -> -5826619 | E48: =E47+E46+E45 -> -5826619 | F48: -5826619 | G48: -5826619 | H48: -5826619 | I48: -5826619 | J48: -5826619 | K48: -5826619 | L48: -5826619 | M48: -5826619
A49: €/asukas | B49: =1000*B48/B7 -> -1030.421168 | C49: -1062.54567 | D49: -1062.809258 | E49: -1058.757526 | F49: -1054.770556 | G49: -1050.860122 | H49: -1047.035207 | I49: -1043.301173 | J49: -1039.671216 | K49: -1036.164451 | L49: -1036.164451 | M49: -1036.164451
A50: Vuosikate-nettoinv. | B50: =B25+B48 -> -346379 | C50: 83366 | D50: 1670710.293 | E50: 1888308.545 | F50: 4969549.847 | G50: 4312473.654 | H50: 4340488.145 | I50: 4372802.855 | J50: 4409388.669 | K50: 4450181.772 | L50: 4495091.137 | M50: 4544004.818
A51: €/asukas | B51: =1000*B50/B7 -> -63.27616881 | C51: 15.20267282 | D51: 304.7472927 | E51: 343.1253842 | F51: 899.6186044 | G51: 777.7763727 | H51: 779.9795908 | I51: 782.9841538 | J51: 786.7880979 | K51: 791.3886511 | L51: 799.3750129 | M51: 808.0734738
A52: = 3. Rahoitusjäämä
A53: (1. Tulorahoitus+ 2.Nettoinv.) | C53: =C44+C48 -> -348287 | D53: =D44+D48 -> 1239057.293 | E53: =E44+E48 -> 1456655.545 | F53: 4537896.847 | G53: 3880820.654 | H53: 3908835.145 | I53: 3941149.855 | J53: 3977735.669 | K53: 4018528.772 | L53: 4063438.137 | M53: 4112351.818
A54: 4. Bruttorahoitustarve
A55: (= Rahoitusjäämä + antolainasaam.
A56: muutokset + lainanlyh.) | D56: =D53-D59-D57 -> -3052578.582 | E56: =E53-E59-E57 -> -2637380.436 | F56: 663470.5639 | G56: 495258.1566 | H56: 951028.4603 | I56: 1357629.506 | J56: 1721715.864 | K56: 2049071.942 | L56: 2344723.91 | M56: 2613037.37
A57: Antolainauksen muutokset | C57: =VLOOKUP($A$4,pohjatiedot!$B$3:$CY$298,102) -> -36484 | D57: =C57 -> -36484 | E57: =D57 -> -36484 | F57: -36484 | G57: -36484 | H57: -36484 | I57: -36484 | J57: -36484 | K57: -36484 | L57: -36484 | M57: -36484 | N57: Positiivinen arvo=nettolisäys.
A58: Lainamäärän muutos; | C58: =C61-B61 -> 915698 | D58: =D60-D59 -> -1580799.151 | E58: =E60-E59 -> -1756877.589 | F58: -3910910.283 | G58: -3422046.497 | H58: -2994290.685 | I58: -2620004.349 | J58: -2292503.806 | K58: -2005940.83 | L58: -1755198.226 | M58: -1535798.448
A59: Lainanlyhennykset | D59: =IF(C61>0,(C61*(1/$H$77)),IF(C61=0,0)) -> 4328119.875 | E59: =IF(D61>0,(D61*(1/$H$77)),IF(D61=0,0)) -> 4130519.981 | F59: 3910910.283 | G59: 3422046.497 | H59: 2994290.685 | I59: 2620004.349 | J59: 2292503.806 | K59: 2005940.83 | L59: 1755198.226 | M59: 1535798.448
A60: Lainanlisäystarve | D60: =-(D56+(C63-D63)) -> 2747320.724 | E60: 2373642.393 | F60: -4.656612873e-10 | G60: 0 | H60: -4.656612873e-10 | I60: -4.656612873e-10 | J60: 4.656612873e-10 | K60: 4.656612873e-10 | L60: -9.313225746e-10 | M60: 4.656612873e-10
A61: Lainakanta | B61: =VLOOKUP($A$4,pohjatiedot!$B$3:$CF$298,39) -> 33709261 | C61: =VLOOKUP($A$4,pohjatiedot!$B$3:$CF$298,78) -> 34624959 | D61: =C61-D59+D60 -> 33044159.85 | E61: =D61-E59+E60 -> 31287282.26 | F61: 27376371.98 | G61: 23954325.48 | H61: 20960034.8 | I61: 18340030.45 | J61: 16047526.64 | K61: 14041585.81 | L61: 12286387.58 | M61: 10750589.14
A62: €/asukas | B62: =1000*B61/B7 -> 6157.974039 | C62: 6314.227901 | D62: =1000*D61/D7 -> 6027.447307 | E62: 5685.225953 | F62: 4955.839928 | G62: 4320.28341 | H62: 3766.488656 | I62: 3283.924223 | J62: 2863.436161 | K62: 2497.055676 | L62: 2184.923717 | M62: 1911.808252
A63: Rahavarat | B63: =VLOOKUP($A$4,pohjatiedot!$B$3:$CF$298,37) -> 6826757 | C63: =VLOOKUP($A$4,pohjatiedot!$B$3:$CF$298,76) -> 7560048 | D63: =IF(D56>0,(C63+D56),IF(C63+(D56*$H$79)<0,0,IF(C63+(D56*$H$79)>0,C63+(D56*$H$79)))) -> 7254790.142 | E63: 6991052.098 | F63: 7654522.662 | G63: 8149780.819 | H63: 9100809.279 | I63: 10458438.78 | J63: 12180154.65 | K63: 14229226.59 | L63: 16573950.5 | M63: 19186987.87
A64: €/asukas | B64: =1000*B63/B7 -> 1247.105132 | C64: 1378.654803 | D64: 1323.315996 | E64: 1270.347181 | F64: 1385.668965 | G64: 1469.854073 | H64: 1635.402577 | I64: 1872.66431 | J64: 2173.362665 | K64: 2530.424377 | L64: 2947.393388 | M64: 3412.077355
A65: Nettovelka (rahat-lainat) | B65: =B63-B61 -> -26882504 | C65: =C63-C61 -> -27064911 | D65: -25789369.71 | E65: -24296230.16 | F65: -19721849.32 | G65: -15804544.66 | H65: -11859225.52 | I65: -7881591.661 | J65: -3867371.992 | K65: 187640.7798 | L65: 4287562.917 | M65: 8436398.734
A66: €/asukas | B66: =1000*B65/B7 -> -4910.868907 | C66: -4935.573098 | D66: -4704.131311 | E66: -4414.878771 | F66: -3570.170962 | G66: -2850.429337 | H66: -2131.08608 | I66: -1411.259913 | J66: -690.0734958 | K66: 33.36870069 | L66: 762.4696713 | M66: 1500.269103
A68: TULOSLASKELMAN ERIEN KASVUPROSENTIT:
A69: Muutos ed. vuodesta, %: | C69: 16/17 | D69: SYÖTÄ HALUAMASI KASVUPROSENTIT! | J69: oletuksena samat arvot kuin v. 2022 > | O69: Syötä muutos-
A70: Toimintatuotot | C70: =((C11/B11)-1)*100 -> 3.186902315 | D70: 0.5 | E70: 2 | F70: -19 | G70: 2.5 | H70: 2.4 | I70: =H70 -> 2.4 | J70: =I70 -> 2.4 | K70: 2.4 | L70: 2.4 | M70: 2.4 | O70: prosentit
A71: Toimintakulut | C71: =((C12/B12)-1)*100 -> 0.7310704691 | D71: -1.6 | E71: 3.1 | F71: -49.5 | G71: 2.5 | H71: 2.6 | I71: 2.6 | J71: 2.6 | K71: 2.6 | L71: 2.6 | M71: 2.6 | O71: Vuosien 2018 - 2022
A72: Kunnallisverot | C72: =((C15/B15)-1)*100 -> 0.1081864616 | D72: 3 | E72: 4.3 | F72: -50 | G72: -4.1 | H72: 1.9 | I72: 1.9 | J72: 1.9 | K72: 1.9 | L72: 1.9 | M72: 1.9 | O72: pohjana KTO:n huhti/2018
A73: Yhteisöverot | C73: =((C16/B16)-1)*100 -> 22.63676469 | D73: 1.3 | E73: 1.7 | F73: -22.7 | G73: 0.8 | H73: -8.5 | I73: -8.5 | J73: -8.5 | K73: -8.5 | L73: -8.5 | M73: -8.5 | O73: arvioluvut koko maan
A74: Kiinteistöverot | C74: =((C17/B17)-1)*100 -> 4.776472682 | D74: 3 | E74: 9.1 | F74: 1.8 | G74: 1.3 | H74: 3.7 | I74: 3.7 | J74: 3.7 | K74: 3.7 | L74: 3.7 | M74: 3.7 | O74: kehityksestä
A75: Valtionosuudet (pl. hark.var.) | C75: =((C19/B19)-1)*100 -> -3.491687539 | D75: 2.2 | E75: 2.2 | F75: -70.5 | G75: -7 | H75: 1.1 | I75: 1.1 | J75: 1.1 | K75: 1.1 | L75: 1.1 | M75: 1.1
A76: TAUSTAMUUTTUJAT:
A77: VALITSE KESKIMÄÄR. LAINANLYHENNYSAIKA (VUODET): | H77: 8 | I77: Esim. lainanlyhennysaika 8 vuotta, jolloin vuosilyhennys = 1/8 eli 12,5 % * lainamäärä
A78: VALITSE KESKIMÄÄR. KORKOKANTA (KORKOPROSENTTI): | H78: 1.7 | I78: Vaikutus korkomenoihin, ei korkotuloihin
A79: MONTAKO % RAHAVAROISTA KÄYTETÄÄN (4.) BRUTTORAHOITUSTARPEEN KATTAMISEEN ? | H79: 0.1 | I79: Syötä prosenttiosuus, joka käytetään rahavaroista.
B85: =B5 -> TP 2016 | C85: =C5 -> TP 2017 | D85: 2018 | E85: 2019 | F85: 2020 | G85: 2021 | H85: 2022 | I85: 2023 | J85: 2024 | K85: 2025 | L85: 2026 | M85: 2027
A86: Vuosikate | B86: =B26 -> 967.1449994 | C86: =C26 -> 1077.748343 | D86: 1367.55655 | E86: 1401.88291 | F86: 1954.38916 | G86: 1828.636495 | H86: 1827.014798 | I86: 1826.285327 | J86: 1826.459314 | K86: 1827.553102 | L86: 1835.539463 | M86: 1844.237924
A87: Poistot ja arvonalent. | B87: =1000*B27/B7 -> 719.0491997 | C87: =1000*C27/C7 -> 756.1220729 | D87: 796.6922364 | E87: 836.0316377 | F87: 877.3545768 | G87: 920.7739117 | H87: 966.4075745 | I87: 1014.377673 | J87: 1064.821845 | K87: 1117.893847 | L87: 1177.582958 | M87: 1240.459123
A88: Nettoinvestoinnit | B88: =-1000*B48/B7 -> 1030.421168 | C88: 1062.54567 | D88: 1062.809258 | E88: 1058.757526 | F88: 1054.770556 | G88: 1050.860122 | H88: 1047.035207 | I88: 1043.301173 | J88: 1039.671216 | K88: 1036.164451 | L88: 1036.164451 | M88: 1036.164451
B115: =B5 -> TP 2016 | C115: =C5 -> TP 2017 | D115: 2018 | E115: 2019 | F115: 2020 | G115: 2021 | H115: 2022 | I115: 2023 | J115: 2024 | K115: 2025 | L115: 2026 | M115: 2027
A116: Rahavarat | B116: =B64 -> 1247.105132 | C116: 1378.654803 | D116: 1323.315996 | E116: 1270.347181 | F116: 1385.668965 | G116: 1469.854073 | H116: 1635.402577 | I116: 1872.66431 | J116: 2173.362665 | K116: 2530.424377 | L116: 2947.393388 | M116: 3412.077355
A117: Lainakanta | B117: =B62 -> 6157.974039 | C117: =C62 -> 6314.227901 | D117: 6027.447307 | E117: 5685.225953 | F117: 4955.839928 | G117: 4320.28341 | H117: 3766.488656 | I117: 3283.924223 | J117: 2863.436161 | K117: 2497.055676 | L117: 2184.923717 | M117: 1911.808252
A118: Nettovelka | B118: =B117-B116 -> 4910.868907 | C118: =C117-C116 -> 4935.573098 | D118: 4704.131311 | E118: 4414.878771 | F118: 3570.170962 | G118: 2850.429337 | H118: 2131.08608 | I118: 1411.259913 | J118: 690.0734958 | K118: -33.36870069 | L118: -762.4696713 | M118: -1500.269103

Sheet pohjatiedot
C1: 2016 | D1: 41 | E1: 42 | F1: 43 | G1: 44 | H1: 45 | I1: 46 | J1: 47 | K1: 48 | L1: 49 | M1: 50 | N1: 51 | O1: 52 | P1: 53 | Q1: 54 | R1: 55 | S1: 56 | T1: 57 | U1: 58 | V1: 59 | W1: 60 | X1: 61 | Y1: 62 | AB1: 63 | AC1: 64 | AD1: 65 | AE1: 66 | AF1: 67 | AG1: 68 | AH1: 69 | AI1: 70 | AJ1: 71 | AK1: 72 | AL1: 73 | AM1: 74 | AN1: 75 | AO1: 76 | AP1: 77 | AQ1: 2017 | AR1: 43 | AS1: 44 | AT1: 45 | AU1: 46 | AV1: 47 | AW1: 48 | AX1: 49 | AY1: 50 | AZ1: 51 | BA1: 52 | BB1: 53 | BC1: 54 | BD1: 55 | BE1: 56 | BF1: 57 | BG1: 58 | BH1: 59 | BI1: 60 | BJ1: 61 | BK1: 62 | BL1: 63 | BM1: 64 | BN1: 65 | BO1: 66 | BP1: 67 | BQ1: 68 | BR1: 69 | BS1: 70 | BT1: 71 | BU1: 72 | BV1: 73 | BW1: 74 | BX1: 75 | BY1: 76 | BZ1: 77 | CA1: 78 | CC1: 80 | CD1: 81 | CE1: vero-% | CF1: vero-% | CG1: 11.41 | CJ1: 2016 | CK1: 2016 | CL1: 2010 | CM1: 85 | CN1: 2017 | CO1: 2018 | CP1: 89 | CQ1: 90 | CR1: 91 | CS1: 92 | CU1: 2017, rivi 98 | CV1: 2017 | CW1: 100 | CX1: 101 | CY1: 102
A2: Kunta nro. | B2: Kunta | C2: Asukasluku | D2: Veroprosentti | E2: vero-% yksikön tuotto | F2: -> noston vaikutus | G2: Toimintatuotot | H2: Toimintakulut | I2: Osuus osakkuusyhteisöjen voitoista/tappioista | J2: Kunnallisverot | K2: Yhteisöverot | L2: Kiinteistöverot | M2: Verotulot | N2: Valtionavut | O2: Korkotuotot | P2: Korkokulut | Q2: Muut rahoitustuotot | R2: Muut rahoituskulut | S2: VUOSIKATE | T2: €/as | U2: Poistot ja arvonalent. | V2: Satunnaiset erät | X2: Tlikauden tulos | Y2: Tilinpäätössiirrot | Z2: Tilikauden verot | AA2: Lask. verot | AB2: Vähemmintösiirrot | AD2: Tlikauden yli-/alijäämä | AE2: €/as | AF2: Kertynyt yli-/alijäämä | AG2: €/as | AI2: Nettoinv. | AJ2: Vuosikate-nettoinv. | AK2: €/as | AL2: Rahavarat (ent. kassavarat) | AM2: €/as | AN2: Lainakanta | AO2: €/as | AP2: Saamiset | AQ2: Asukasluku | AR2: Veroprosentti | AS2: vero-% yksikön tuotto | AT2: -> noston vaikutus | AU2: Toimintatuotot | AV2: Toimintakulut | AW2: Osuus osakkuusyhteisöjen voitoista/tappioista | AX2: Kunnallisverot | AY2: Yhteisöverot | AZ2: Kiinteistöverot | BA2: Verotulot | BB2: Valtionavut | BC2: Korkotuotot | BD2: Korkokulut | BE2: Muut rahoitustuotot | BF2: Muut rahoituskulut | BG2: VUOSIKATE | BH2: €/as | BI2: Poistot ja arvonalent. | BJ2: Satunnaiset erät | BL2: Tlikauden tulos | BM2: Tilinpäätössiirrot | BN2: Tilikauden verot | BO2: Lask. verot | BP2: Vähemmistöosuudet | BQ2: Tlikauden yli-/alijäämä | BR2: €/as | BS2: Kertynyt yli-/alijäämä | BT2: €/as | BV2: Nettoinv. | BW2: Vuosikate-nettoinv. | BX2: €/as | BY2: Rahavarat | BZ2: €/as | CA2: Lainakanta | CB2: €/as | CC2: Saamiset | CF2: 2018 | CG2: 2020 | CJ2: vos-hava | CK2: hava | CL2: vos-hava | CM2: Harkvar10 | CN2: Valtionosuudet | CO2: Valtionosuudet | CS2: vos-hava 2015 | CT2: Kotikuntakorv+elatustuen palautus, netto | CU2: Tulorah.korjauserät | CV2: Investointimenot | CW2: Rahoitusos. inv.menoihin | CX2: Inv.hyödyk. luovutustulot | CY2: antolainauksen muutokset
A3: 20 | B3: Akaa | C3: 16923 | D3: 21.25 | G3: 57740 | H3: 143891 | I3: 22 | J3: 55165 | K3: 1606 | L3: 3377 | M3: 60148 | N3: 34067 | O3: 374 | P3: 691 | Q3: 287 | R3: 155 | S3: 7901 | U3: 7116 | V3: 98 | X3: 883 | Y3: 9 | Z3: 73 | AA3: -46 | AB3: -84 | AD3: 689 | AF3: -7699 | AI3: -5554 | AL3: 9534 | AN3: 70428 | AQ3: 16769 | AR3: 21.25 | AU3: 58889 | AV3: 142923 | AW3: 96 | AX3: 54017 | AY3: 1893 | AZ3: 3489 | BA3: =AX3+AY3+AZ3 -> 59399 | BB3: 32904 | BC3: 385 | BD3: 646 | BE3: 308 | BF3: 164 | BG3: 8248 | BI3: 7001 | BJ3: 0 | BL3: 1247 | BM3: 1 | BN3: 84 | BO3: -57 | BP3: -71 | BQ3: 1036 | BS3: -6683 | BY3: 6420 | CA3: 65864 | CF3: 21.75 | CG3: =CF3-$CG$1 -> 10.34 | CL3: 27814 | CM3: 0 | CN3: 30572.89696 | CO3: 29351.9121 | CQ3: =CO3-CP3 -> 29351.9121 | CS3: =N3-CR3 -> 34067 | CU3: -694 | CV3: -7344 | CW3: 97 | CX3: 1219 | CY3: 114
A4: 5 | B4: Alajärvi | C4: 9899 | D4: 22 | G4: 66345 | H4: 123039 | I4: 77 | J4: 25084 | K4: 2039 | L4: 2313 | M4: 29436 | N4: 39395 | O4: 21 | P4: 498 | Q4: 185 | R4: 128 | S4: 11794 | U4: 4798 | V4: 0 | X4: 6996 | Y4: 83 | Z4: 68 | AA4: -9 | AB4: -65 | AD4: 6937 | AF4: 5760 | AI4: -9329 | AL4: 9170 | AN4: 38620 | AQ4: 9831 | AR4: 21.75 | AU4: 54164 | AV4: 112513 | AW4: 114 | AX4: 25065 | AY4: 2438 | AZ4: 2156 | BA4: =AX4+AY4+AZ4 -> 29659 | BB4: 37946 | BC4: 21 | BD4: 367 | BE4: 218 | BF4: 135 | BG4: 9107 | BI4: 5188 | BJ4: 0 | BL4: 3919 | BM4: 9 | BN4: 87 | BO4: -16 | BP4: -102 | BQ4: 3723 | BS4: 9052 | BY4: 9429 | CA4: 41635 | CF4: 21.75 | CG4: =CF4-$CG$1 -> 10.34 | CL4: 30121 | CM4: 0 | CN4: 35696.98493 | CO4: 34318.3753 | CQ4: =CO4-CP4 -> 34318.3753 | CS4: =N4-CR4 -> 39395 | CU4: -367 | CV4: -10966 | CW4: 647 | CX4: 849 | CY4: 11
A5: 9 | B5: Alavieska | C5: 2639 | D5: 21.5 | G5: 16234 | H5: 32053 | I5: 0 | J5: 6892 | K5: 271 | L5: 522 | M5: 7685 | N5: 9849 | O5: 1 | P5: 51 | Q5: 24 | R5: 18 | S5: 1669 | U5: 1054 | V5: 681 | X5: 1296 | Y5: 0 | Z5: -1 | AA5: -1 | AB5: -1 | AD5: 1295 | AF5: 329 | AI5: -525 | AL5: 1978 | AN5: 10838 | AQ5: 2610 | AR5: 21.5 | AU5: 14579 | AV5: 30594 | AW5: 1 | AX5: 6494 | AY5: 285 | AZ5: 505 | BA5: 7284 | BB5: 9778 | BC5: 0 | BD5: 45 | BE5: 26 | BF5: 17 | BG5: 1010 | BI5: 1059 | BJ5: 0 | BL5: -49 | BM5: 0 | BN5: 1 | BO5: -1 | BP5: 0 | BQ5: -51 | BS5: 300 | BY5: 2257 | CA5: 8306 | CF5: 21.5 | CG5: 10.09 | CL5: 7636 | CM5: 0 | CN5: 8918.402121 | CO5: 8666.778881 | CQ5: 8666.778881 | CS5: =N5-CR5 -> 9849 | CU5: 28 | CV5: -1100 | CW5: 201 | CX5: 4 | CY5: 0
A6: 10 | B6: Alavus | C6: 11907 | D6: 21.25 | G6: 64883 | H6: 130531 | I6: 541 | J6: 29668 | K6: 2203 | L6: 2611 | M6: 34482 | N6: 38870 | O6: 20 | P6: 469 | Q6: 939 | R6: -10 | S6: 8639 | U6: 6022 | V6: 0 | X6: 2617 | Y6: -12 | Z6: 6 | AA6: -50 | AB6: -34 | AD6: 2515 | AF6: 12545 | AI6: -10266 | AL6: 15871 | AN6: 69825 | AQ6: 11713 | AR6: 21.25 | AU6: 70759 | AV6: 136082 | AW6: 1545 | AX6: 29789 | AY6: 2699 | AZ6: 2730 | BA6: 35218 | BB6: 38629 | BC6: 62 | BD6: 641 | BE6: 816 | BF6: -57 | BG6: 10255 | BI6: 6434 | BJ6: 0 | BL6: 3821 | BM6: -4 | BN6: 18 | BO6: -30 | BP6: -31 | BQ6: 3738 | BS6: 20120 | BY6: 17750 | CA6: 70327 | CF6: 21.25 | CG6: 9.84 | CL6: 24410 | CM6: 0 | CN6: 38667.8284 | CO6: 37624.46359 | CQ6: 37624.46359 | CS6: 38870 | CU6: -1239 | CV6: -9360 | CW6: 768 | CX6: 1177 | CY6: -388
A7: 16 | B7: Asikkala | C7: 8323 | D7: 20.75 | G7: 31656 | H7: 71447 | I7: 4 | J7: 25836 | K7: 1430 | L7: 2659 | M7: 29925 | N7: 17906 | O7: 8 | P7: 184 | Q7: 238 | R7: 409 | S7: 7698 | U7: 4014 | V7: -6 | X7: 3678 | Y7: -1 | Z7: 0 | AA7: -81 | AB7: 0 | AD7: 3596 | AF7: 7509 | AI7: -3392 | AL7: 3141 | AN7: 28449 | AQ7: 8248 | AR7: 20.75 | AU7: 42592 | AV7: 82843 | AW7: -3 | AX7: 25298 | AY7: 1616 | AZ7: 2787 | BA7: 29701 | BB7: 17513 | BC7: 4 | BD7: 124 | BE7: 246 | BF7: 203 | BG7: 6882 | BI7: 4354 | BJ7: 64 | BL7: 2592 | BM7: 0 | BN7: 2 | BO7: -43 | BP7: 0 | BQ7: 2547 | BS7: 9751 | BY7: 4601 | CA7: 24863 | CF7: 20.75 | CG7: 9.34 | CL7: 15106 | CM7: 0 | CN7: 17874.50869 | CO7: 17540.25155 | CQ7: 17540.25155 | CS7: 17906 | CU7: -441 | CV7: -3984 | CW7: 196 | CX7: 1228 | CY7: -159
A8: 18 | B8: Askola | C8: 5046 | D8: 20.25 | G8: 14258 | H8: 39091 | I8: 0 | J8: 17262 | K8: 868 | L8: 1044 | M8: 19174 | N8: 7136 | O8: 0 | P8: 192 | Q8: 265 | R8: 49 | S8: 1501 | U8: 1892 | V8: 0 | X8: -391 | Y8: 93 | Z8: 0 | AA8: 0 | AB8: 0 | AD8: -298 | AF8: -2045 | AI8: -2284 | AL8: 1720 | AN8: 21697 | AQ8: 4990 | AR8: 20.75 | AU8: 15461 | AV8: 39934 | AW8: -30 | AX8: 16579 | AY8: 1038 | AZ8: 1139 | BA8: 18756 | BB8: 7325 | BC8: 0 | BD8: 172 | BE8: 295 | BF8: 53 | BG8: 1648 | BI8: 2120 | BJ8: 0 | BL8: -472 | BM8: 123 | BN8: 3 | BO8: 0 | BP8: 0 | BQ8: -352 | BS8: -2503 | BY8: 2550 | CA8: 24594 | CF8: 20.75 | CG8: 9.34 | CL8: 5973 | CM8: 0 | CN8: 7397.785898 | CO8: 7458.108076 | CQ8: 7458.108076 | CS8: 7136 | CU8: -188 | CV8: -4053 | CW8: 12 | CX8: 310 | CY8: 0
A9: 19 | B9: Aura | C9: 3984 | D9: 21.75 | G9: 12522 | H9: 30312 | I9: 0 | J9: 13272 | K9: 758 | L9: 410 | M9: 14440 | N9: 6032 | O9: 2 | P9: 68 | Q9: 15 | R9: 3 | S9: 2628 | U9: 1259 | V9: 0 | X9: 1369 | Y9: 0 | Z9: 0 | AA9: 0 | AB9: -49 | AD9: 1320 | AF9: -543 | AI9: -907 | AL9: 1194 | AN9: 16296 | AQ9: 3991 | AR9: 21.75 | AU9: 12669 | AV9: 30038 | AW9: 1 | AX9: 13597 | AY9: 745 | AZ9: 531 | BA9: 14873 | BB9: 5984 | BC9: 3 | BD9: 65 | BE9: 25 | BF9: 3 | BG9: 3449 | BI9: 1306 | BJ9: 0 | BL9: 2143 | BM9: 0 | BN9: 0 | BO9: 0 | BP9: -24 | BQ9: 2119 | BS9: 1556 | BY9: 2348 | CA9: 14775 | CF9: 21.75 | CG9: 10.34 | CL9: 4924 | CM9: 0 | CN9: 5986.134499 | CO9: 5584.246592 | CQ9: 5584.246592 | CS9: 6032 | CU9: 4 | CV9: -1111 | CW9: 10 | CX9: 100 | CY9: -4
A10: 46 | B10: Enonkoski | C10: 1453 | D10: 21 | G10: 9399 | H10: 17959 | I10: 0 | J10: 3570 | K10: 550 | L10: 424 | M10: 4544 | N10: 5227 | O10: 11 | P10: 24 | Q10: 214 | R10: 2 | S10: 1410 | U10: 780 | V10: -65 | X10: 565 | Y10: -79 | Z10: 0 | AA10: 9 | AB10: 0 | AD10: 495 | AF10: 6061 | AI10: -646 | AL10: 3334 | AN10: 1164 | AQ10: 1416 | AR10: 21 | AU10: 10316 | AV10: 19838 | AW10: 0 | AX10: 3723 | AY10: 595 | AZ10: 535 | BA10: 4853 | BB10: 5683 | BC10: 27 | BD10: 31 | BE10: 76 | BF10: 5 | BG10: 1082 | BI10: 787 | BJ10: -16 | BL10: 279 | BM10: 0 | BN10: 0 | BO10: -36 | BP10: 0 | BQ10: 243 | BS10: 6840 | BY10: 3081 | CA10: 1085 | CF10: 21 | CG10: 9.59 | CL10: 4469 | CM10: 0 | CN10: 5272.493069 | CO10: 5110.453918 | CQ10: 5110.453918 | CS10: 5227 | CU10: -30 | CV10: -1552 | CW10: 18 | CX10: 442 | CY10: -53
A11: 47 | B11: Enontekiö | C11: 1872 | D11: 21.25 | G11: 2936 | H11: 16836 | I11: -4 | J11: 5003 | K11: 326 | L11: 822 | M11: 6151 | N11: 8935 | O11: 104 | P11: 186 | Q11: 545 | R11: 279 | S11: 1366 | U11: 1108 | V11: 0 | X11: 258 | Y11: 0 | Z11: 0 | AA11: 2 | AB11: -1 | AD11: 259 | AF11: 576 | AI11: -2230 | AL11: 2879 | AN11: 11675 | AQ11: 1893 | AR11: 21.25 | AU11: 4225 | AV11: 17496 | AW11: 2 | AX11: 4963 | AY11: 410 | AZ11: 830 | BA11: 6203 | BB11: 8824 | BC11: 16 | BD11: 173 | BE11: 616 | BF11: 195 | BG11: 2022 | BI11: 1177 | BJ11: -22 | BL11: 823 | BM11: -11 | BN11: 0 | BO11: -3 | BP11: 0 | BQ11: 809 | BS11: 1400 | BY11: 1956 | CA11: 10397 | CF11: 21.25 | CG11: 9.84 | CL11: 7672 | CM11: 0 | CN11: 8847.677803 | CO11: 8708.023092 | CQ11: 8708.023092 | CS11: 8935 | CU11: -5 | CV11: -2967 | CW11: 2153 | CX11: 50 | CY11: 16
A12: 49 | B12: Espoo | C12: 274583 | D12: 18 | G12: 982749 | H12: 2234818 | I12: -2334 | J12: 1226153 | K12: 120589 | L12: 99740 | M12: 1446482 | N12: 116040 | O12: 12945 | P12: 43692 | Q12: 25100 | R12: 4973 | S12: 297500 | U12: 237379 | V12: 13541 | X12: 73662 | Y12: 60 | Z12: 1649 | AA12: 10 | AB12: 29 | AD12: 72112 | AF12: 629653 | AI12: -632118 | AL12: 1033578 | AN12: 3186678 | AQ12: 279044 | AR12: 18 | AU12: 1012445 | AV12: 2264850 | AW12: 994 | AX12: 1236961 | AY12: 137156 | AZ12: 116153 | BA12: 1490270 | BB12: 84559 | BC12: 11838 | BD12: 55066 | BE12: 42057 | BF12: 2946 | BG12: 319301 | BI12: 267979 | BJ12: 1200 | BL12: 52522 | BM12: 17 | BN12: 390 | BO12: -773 | BP12: -463 | BQ12: 50913 | BS12: 600201 | BY12: 1080286 | CA12: 3429679 | CF12: 18 | CG12: 6.59 | CL12: 24390 | CM12: 0 | CN12: 35423.51401 | CO12: 29148.6603 | CQ12: 29148.6603 | CS12: 116040 | CU12: -30407 | CV12: -616503 | CW12: 48410 | CX12: 46613 | CY12: 1928
A13: 50 | B13: Eura | C13: 12004 | D13: 20.5 | G13: 35238 | H13: 100185 | I13: 0 | J13: 38341 | K13: 2183 | L13: 3129 | M13: 43653 | N13: 27037 | O13: 7 | P13: 710 | Q13: 1222 | R13: 14 | S13: 6248 | U13: 5435 | V13: 0 | X13: 813 | Y13: 0 | Z13: 1 | AA13: -127 | AB13: -43 | AD13: 642 | AF13: 4004 | AI13: -6427 | AL13: 5971 | AN13: 54035 | AQ13: 11910 | AR13: 20.5 | AU13: 36426 | AV13: 99266 | AW13: 0 | AX13: 39017 | AY13: 2303 | AZ13: 3077 | BA13: 44397 | BB13: 26168 | BC13: -13 | BD13: 453 | BE13: 183 | BF13: 186 | BG13: 7256 | BI13: 5748 | BJ13: 0 | BL13: 1508 | BM13: 0 | BN13: 0 | BO13: -4 | BP13: 30 | BQ13: 1534 | BS13: 5504 | BY13: 5347 | CA13: 52506 | CF13: 20.5 | CG13: 9.09 | CL13: 22268 | CM13: 0 | CN13: 23934.03429 | CO13: 22959.41518 | CQ13: 22959.41518 | CS13: 27037 | CU13: -381 | CV13: -6603 | CW13: 191 | CX13: 652 | CY13: 265
A14: 51 | B14: Eurajoki | C14: 9418 | D14: 18 | G14: 21029 | H14: 59307 | I14: -6 | J14: 18489 | K14: 1426 | L14: 18126 | M14: 38041 | N14: 8609 | O14: 110 | P14: 39 | Q14: 1129 | R14: 398 | S14: 9163 | U14: 4275 | V14: 3 | X14: 4891 | Y14: 0 | Z14: 1 | AA14: -6 | AB14: 2 | AD14: 4886 | AF14: 73485 | AI14: -8018 | AL14: 24633 | AN14: 3694 | AQ14: 9521 | AR14: 18 | AU14: 30898 | AV14: 86250 | AW14: 0 | AX14: 51919 | AY14: 0 | AZ14: 0 | BA14: 51919 | BB14: 13352 | BC14: 41 | BD14: 133 | BE14: 1290 | BF14: 454 | BG14: 10663 | BI14: 5641 | BJ14: 2 | BL14: 5024 | BM14: 29 | BN14: 3 | BO14: -13 | BP14: 0 | BQ14: 5037 | BS14: 76253 | BY14: 24191 | CA14: 17545 | CF14: 18 | CG14: 6.59 | CL14: 5750 | CM14: 0 | CN14: 13206.54984 | CO14: 11167.54928 | CQ14: 11167.54928 | CS14: 8609 | CU14: 108 | CV14: -7916 | CW14: 39 | CX14: 486 | CY14: -358
A15: 52 | B15: Evijärvi | C15: 2535 | D15: 21.5 | G15: 7088 | H15: 23575 | I15: 4 | J15: 6961 | K15: 933 | L15: 721 | M15: 8615 | N15: 8566 | O15: 197 | P15: 26 | Q15: 58 | R15: 23 | S15: 904 | U15: 834 | V15: 0 | X15: 70 | Y15: -30 | Z15: 6 | AA15: -2 | AB15: -7 | AD15: 25 | AF15: 3286 | AI15: -1197 | AL15: 6655 | AN15: 6210 | AQ15: 2499 | AR15: 21.5 | AU15: 7148 | AV15: 23269 | AW15: 0 | AX15: 6674 | AY15: 827 | AZ15: 723 | BA15: 8224 | BB15: 8533 | BC15: 94 | BD15: 22 | BE15: 482 | BF15: 34 | BG15: 1156 | BI15: 888 | BJ15: 0 | BL15: 268 | BM15: -28 | BN15: 8 | BO15: -2 | BP15: -7 | BQ15: 223 | BS15: 3481 | BY15: 7504 | CA15: 7285 | CF15: 21.5 | CG15: 10.09 | CL15: 7542 | CM15: 0 | CN15: 8103.289926 | CO15: 8180.397992 | CQ15: 8180.397992 | CS15: 8566 | CU15: -44 | CV15: -976 | CW15: 52 | CX15: 159 | CY15: 15
A16: 61 | B16: Forssa | C16: 17332 | D16: 20 | G16: 73748 | H16: 166829 | I16: 56 | J16: 51886 | K16: 3143 | L16: 5379 | M16: 60408 | N16: 47018 | O16: 51 | P16: 673 | Q16: 199 | R16: 45 | S16: 13933 | U16: 8501 | V16: 0 | X16: 5432 | Y16: 171 | Z16: 7 | AA16: -47 | AB16: 94 | AD16: 5643 | AF16: 24755 | AI16: -16579 | AL16: 19683 | AN16: 60008 | AQ16: 17185 | AR16: 20.5 | AU16: 73061 | AV16: 166862 | AW16: 143 | AX16: 51892 | AY16: 3856 | AZ16: 5326 | BA16: 61074 | BB16: 44796 | BC16: 243 | BD16: 763 | BE16: 88 | BF16: 22 | BG16: 11758 | BI16: 10896 | BJ16: 0 | BL16: 862 | BM16: 3 | BN16: 11 | BO16: -62 | BP16: 120 | BQ16: 912 | BS16: 25667 | BY16: 19358 | CA16: 65801 | CF16: 20.5 | CG16: 9.09 | CL16: 30500 | CM16: 0 | CN16: 40176.39468 | CO16: 39480.90066 | CQ16: 39480.90066 | CS16: 47018 | CU16: -1581 | CV16: -7329 | CW16: 17 | CX16: 353 | CY16: 3
A17: 69 | B17: Haapajärvi | C17: 7332 | D17: 22 | G17: 40616 | H17: 87803 | I17: 19 | J17: 19865 | K17: 1382 | L17: 1889 | M17: 23136 | N17: 27083 | O17: 15 | P17: 516 | Q17: 1264 | R17: 186 | S17: 3529 | U17: 3603 | V17: -259 | X17: -333 | Y17: -2 | Z17: 89 | AA17: 19 | AB17: -53 | AD17: -458 | AF17: 4756 | AI17: -5958 | AL17: 20007 | AN17: 42099 | AQ17: 7251 | AR17: 22 | AU17: 41518 | AV17: 85945 | AW17: 28 | AX17: 19282 | AY17: 1575 | AZ17: 1893 | BA17: 22750 | BB17: 26501 | BC17: 20 | BD17: 515 | BE17: 923 | BF17: 279 | BG17: 4898 | BI17: 3904 | BJ17: -24 | BL17: 970 | BM17: -3 | BN17: 80 | BO17: -4 | BP17: -99 | BQ17: 784 | BS17: 5116 | BY17: 20153 | CA17: 43029 | CF17: 22 | CG17: 10.59 | CL17: 21546 | CM17: 0 | CN17: 23664.46017 | CO17: 23000.31085 | CQ17: 23000.31085 | CS17: 27083 | CU17: -74 | CV17: -7120 | CW17: 253 | CX17: 576 | CY17: -435
A18: 71 | B18: Haapavesi | C18: 7098 | D18: 22 | G18: 52007 | H18: 93366 | I18: 1 | J18: 18139 | K18: 1146 | L18: 1521 | M18: 20806 | N18: 22953 | O18: 57 | P18: 327 | Q18: 374 | R18: 194 | S18: 2310 | U18: 3844 | V18: 0 | X18: -1534 | Y18: -4 | Z18: 0 | AA18: -40 | AB18: -1 | AD18: -1579 | AF18: -1575 | AI18: -4137 | AL18: 11738 | AN18: 48554 | AQ18: 6970 | AR18: 22 | AU18: 30893 | AV18: 70568 | AW18: 2 | AX18: 17804 | AY18: 1291 | AZ18: 1673 | BA18: 20768 | BB18: 23997 | BC18: 78 | BD18: 362 | BE18: 339 | BF18: 226 | BG18: 4796 | BI18: 3611 | BJ18: 0 | BL18: 1185 | BM18: -1 | BN18: 118 | BO18: -27 | BP18: 2 | BQ18: 1041 | BS18: 214 | BY18: 13134 | CA18: 38371 | CF18: 22 | CG18: 10.59 | CL18: 19865 | CM18: 0 | CN18: 24033.38526 | CO18: 23689.69425 | CQ18: 23689.69425 | CS18: 22953 | CU18: -267 | CV18: -5797 | CW18: 127 | CX18: 3685 | CY18: -13
A19: 72 | B19: Hailuoto | C19: 994 | D19: 20 | G19: 4977 | H19: 11338 | I19: 0 | J19: 2916 | K19: 93 | L19: 326 | M19: 3335 | N19: 3647 | O19: 14 | P19: 23 | Q19: 3 | R19: 1 | S19: 615 | U19: 685 | V19: 0 | X19: -70 | Y19: -1 | Z19: 0 | AA19: -1 | AB19: -1 | AD19: -73 | AF19: 6621 | AI19: -1119 | AL19: 2661 | AN19: 3392 | AQ19: 967 | AR19: 20 | AU19: 5176 | AV19: 11532 | AW19: 1 | AX19: 3245 | AY19: 114 | AZ19: 332 | BA19: 3691 | BB19: 3733 | BC19: 9 | BD19: 24 | BE19: 92 | BF19: 1 | BG19: 1145 | BI19: 674 | BJ19: 0 | BL19: 471 | BM19: 4 | BN19: 1 | BO19: -1 | BP19: 0 | BQ19: 473 | BS19: 7093 | BY19: 3536 | CA19: 3199 | CF19: 20.5 | CG19: 9.09 | CL19: 3147 | CM19: 0 | CN19: 3476.386846 | CO19: 3281.98339 | CQ19: 3281.98339 | CS19: 3647 | CU19: -84 | CV19: -511 | CW19: 5 | CX19: 137 | CY19: 0
A20: 74 | B20: Halsua | C20: 1219 | D20: 21.5 | G20: 5581 | H20: 13051 | I20: 34 | J20: 2891 | K20: 315 | L20: 443 | M20: 3649 | N20: 4633 | O20: 10 | P20: 153 | Q20: 25 | R20: 1 | S20: 727 | U20: 774 | V20: -4 | X20: -51 | Y20: 1 | Z20: 3 | AA20: 2 | AB20: -3 | AD20: -54 | AF20: 2337 | AI20: -549 | AL20: 1426 | AN20: 13613 | AQ20: 1171 | AR20: 22 | AU20: 9263 | AV20: 15712 | AW20: 75 | AX20: 2805 | AY20: 356 | AZ20: 551 | BA20: 3712 | BB20: 4155 | BC20: 8 | BD20: 143 | BE20: 29 | BF20: 1 | BG20: 1386 | BI20: 844 | BJ20: 0 | BL20: 542 | BM20: -7 | BN20: 4 | BO20: -3 | BP20: -2 | BQ20: 526 | BS20: 2010 | BY20: 1910 | CA20: 14372 | CF20: 22 | CG20: 10.59 | CL20: 3768 | CM20: 0 | CN20: 4156.047257 | CO20: 4173.228389 | CQ20: 4173.228389 | CS20: 4633 | CU20: -77 | CV20: -799 | CW20: 15 | CX20: 53 | CY20: 130
A21: 75 | B21: Hamina | C21: 20636 | D21: 21 | G21: 89621 | H21: 196366 | I21: 1083 | J21: 71144 | K21: 4307 | L21: 6752 | M21: 82203 | N21: 44992 | O21: 54 | P21: 2397 | Q21: 1284 | R21: 70 | S21: 20141 | U21: 16440 | V21: 0 | X21: 3701 | Y21: 0 | Z21: 0 | AA21: -206 | AB21: 53 | AD21: 3548 | AF21: 10712 | AI21: -11794 | AL21: 18695 | AN21: 148165 | AQ21: 20493 | AR21: 21 | AU21: 89565 | AV21: 189548 | AW21: 652 | AX21: 70564 | AY21: 5202 | AZ21: 6787 | BA21: 82553 | BB21: 44101 | BC21: 55 | BD21: 2237 | BE21: 1232 | BF21: 32 | BG21: 26025 | BI21: 19513 | BJ21: 0 | BL21: 6512 | BM21: 0 | BN21: 0 | BO21: -97 | BP21: 54 | BQ21: 6469 | BS21: 17455 | BY21: 26577 | CA21: 151906 | CF21: 21 | CG21: 9.59 | CL21: 29389 | CM21: 0 | CN21: 37429.58901 | CO21: 36034.99443 | CQ21: 36034.99443 | CS21: 44992 | CU21: -1344 | CV21: -19704 | CW21: 648 | CX21: 5947 | CY21: -2462
A22: 77 | B22: Hankasalmi | C22: 5159 | D22: 22 | G22: 17234 | H22: 49802 | I22: 0 | J22: 13534 | K22: 1333 | L22: 708 | M22: 15575 | N22: 21318 | O22: 48 | P22: 135 | Q22: 93 | R22: 56 | S22: 4214 | U22: 2483 | V22: 0 | X22: 1731 | Y22: 191 | Z22: 0 | AA22: -64 | AB22: -5 | AD22: 1853 | AF22: -691 | AI22: -4281 | AL22: 4669 | AN22: 17283 | AQ22: 5019 | AR22: 22 | AU22: 15022 | AV22: 47579 | AW22: 0 | AX22: 13142 | AY22: 854 | AZ22: 1308 | BA22: 15304 | BB22: 20400 | BC22: 62 | BD22: 102 | BE22: 166 | BF22: 67 | BG22: 3145 | BI22: 2342 | BJ22: 2 | BL22: 805 | BM22: 5 | BN22: 0 | BO22: 1 | BP22: -12 | BQ22: 799 | BS22: 108 | BY22: 4837 | CA22: 19443 | CF22: 22 | CG22: 10.59 | CL22: 15657 | CM22: 0 | CN22: 19126.63806 | CO22: 18504.83797 | CQ22: 18504.83797 | CS22: 21318 | CU22: -287 | CV22: -3829 | CW22: 27 | CX22: 392 | CY22: 11
A23: 78 | B23: Hanko | C23: 8663 | D23: 21.75 | G23: 50050 | H23: 91181 | I23: -1 | J23: 33908 | K23: 2163 | L23: 2721 | M23: 38792 | N23: 12897 | O23: 33 | P23: 1261 | Q23: 166 | R23: 105 | S23: 9390 | U23: 5414 | V23: 0 | X23: 3976 | Y23: 1 | Z23: 504 | AA23: -15 | AB23: -1 | AD23: 3457 | AF23: -7948 | AI23: -6958 | AL23: 9012 | AN23: 74732 | AQ23: 8517 | AR23: 21.75 | AU23: 54531 | AV23: 91458 | AW23: 0 | AX23: 33622 | AY23: 2782 | AZ23: 2624 | BA23: 39028 | BB23: 12668 | BC23: 17 | BD23: 1077 | BE23: 189 | BF23: 106 | BG23: 13792 | BI23: 5867 | BJ23: 38 | BL23: 7963 | BM23: -2 | BN23: 595 | BO23: 55 | BP23: -3 | BQ23: 7418 | BS23: -472 | BY23: 6742 | CA23: 73274 | CF23: 21.75 | CG23: 10.34 | CL23: 10458 | CM23: 1100 | CN23: 12659.05069 | CO23: 12008.54227 | CQ23: 12008.54227 | CS23: 12897 | CU23: -1769 | CV23: -14496 | CW23: 16 | CX23: 2117 | CY23: 3
A24: 79 | B24: Harjavalta | C24: 7240 | D24: 19.75 | G24: 26885 | H24: 70411 | I24: -1 | J24: 23502 | K24: 5099 | L24: 1803 | M24: 30404 | N24: 14193 | O24: 6 | P24: 227 | Q24: 38 | R24: 13 | S24: 875 | U24: 3220 | V24: 0 | X24: -2345 | Y24: 0 | Z24: 8 | AA24: -33 | AB24: 7 | AD24: -2379 | AF24: 7575 | AI24: -2292 | AL24: 4618 | AN24: 23367 | AQ24: 7151 | AR24: 20.75 | AU24: 26103 | AV24: 70215 | AW24: -34 | AX24: 24137 | AY24: 8740 | AZ24: 1871 | BA24: 34748 | BB24: 13524 | BC24: 4 | BD24: 207 | BE24: 93 | BF24: 21 | BG24: 3994 | BI24: 3281 | BJ24: 0 | BL24: 713 | BM24: 0 | BN24: 8 | BO24: -38 | BP24: -16 | BQ24: 651 | BS24: 8242 | BY24: 4980 | CA24: 23508 | CF24: 20.75 | CG24: 9.34 | CL24: 9343 | CM24: 0 | CN24: 11773.93946 | CO24: 10945.56763 | CQ24: 10945.56763 | CS24: 14193 | CU24: 23 | CV24: -3452 | CW24: 312 | CX24: 96 | CY24: -1
A25: 81 | B25: Hartola | C25: 2924 | D25: 21.5 | G25: 14141 | H25: 29815 | I25: 0 | J25: 7157 | K25: 1232 | L25: 1352 | M25: 9741 | N25: 9062 | O25: 14 | P25: 353 | Q25: 28 | R25: 6 | S25: 2812 | U25: 1738 | V25: -566 | X25: 508 | Y25: 34 | Z25: 0 | AA25: 0 | AB25: -36 | AD25: 506 | AF25: 1178 | AI25: -2664 | AL25: 1805 | AN25: 32865 | AQ25: 2882 | AR25: 21.5 | AU25: 19841 | AV25: 36166 | AW25: 0 | AX25: 7275 | AY25: 1391 | AZ25: 1322 | BA25: 9988 | BB25: 9153 | BC25: 15 | BD25: 302 | BE25: 305 | BF25: 5 | BG25: 2829 | BI25: 1885 | BJ25: -233 | BL25: 711 | BM25: -230 | BN25: 0 | BO25: 0 | BP25: -37 | BQ25: 444 | BS25: 1867 | BY25: 3120 | CA25: 29984 | CF25: 21.5 | CG25: 10.09 | CL25: 8065 | CM25: 450 | CN25: 9145.559993 | CO25: 8808.939876 | CQ25: 8808.939876 | CS25: 9062 | CU25: -55 | CV25: -931 | CW25: 29 | CX25: 182 | CY25: -11
A26: 82 | B26: Hattula | C26: 9682 | D26: 20 | G26: 22703 | H26: 68725 | I26: 0 | J26: 33290 | K26: 1127 | L26: 2192 | M26: 36609 | N26: 12812 | O26: 212 | P26: 260 | Q26: 53 | R26: 116 | S26: 3256 | U26: 2770 | V26: -271 | X26: 215 | Y26: 2 | Z26: 0 | AA26: -82 | AB26: 0 | AD26: 135 | AF26: 7728 | AI26: -10529 | AL26: 1014 | AN26: 45167 | AQ26: 9610 | AR26: 20.5 | AU26: 31306 | AV26: 74081 | AW26: 0 | AX26: 34090 | AY26: 1330 | AZ26: 2123 | BA26: 37543 | BB26: 9659 | BC26: 206 | BD26: 264 | BE26: 84 | BF26: 111 | BG26: 4309 | BI26: 3357 | BJ26: 191 | BL26: 1143 | BM26: 2 | BN26: 0 | BO26: -35 | BP26: 0 | BQ26: 1110 | BS26: 8825 | BY26: 2924 | CA26: 44436 | CF26: 20.5 | CG26: 9.09 | CL26: 10610 | CM26: 0 | CN26: 9663.2136 | CO26: 8887.297705 | CQ26: 8887.297705 | CS26: 12812 | CU26: -667 | CV26: -2447 | CW26: 10 | CX26: 1244 | CY26: 5
A27: 86 | B27: Hausjärvi | C27: 8641 | D27: 21.5 | G27: 22652 | H27: 63212 | I27: 2 | J27: 29738 | K27: 1121 | L27: 1575 | M27: 32434 | N27: 13476 | O27: 11 | P27: 431 | Q27: 38 | R27: 6 | S27: 4963 | U27: 2781 | V27: 0 | X27: 2182 | Y27: 26 | Z27: 6 | AA27: 0 | AB27: -6 | AD27: 2196 | AF27: 5692 | AI27: -1761 | AL27: 4507 | AN27: 26959 | AQ27: 8504 | AR27: 21.5 | AU27: 22886 | AV27: 64775 | AW27: 2 | AX27: 29362 | AY27: 1180 | AZ27: 1690 | BA27: 32232 | BB27: 13585 | BC27: 11 | BD27: 337 | BE27: 55 | BF27: 104 | BG27: 3555 | BI27: 2774 | BJ27: 138 | BL27: 919 | BM27: 1 | BN27: 11 | BO27: 0 | BP27: 4 | BQ27: 913 | BS27: 6568 | BY27: 3989 | CA27: 26501 | CF27: 21.5 | CG27: 10.09 | CL27: 12784 | CM27: 0 | CN27: 13534.97494 | CO27: 12708.39548 | CQ27: 12708.39548 | CS27: 13476 | CU27: -23 | CV27: -5035 | CW27: 96 | CX27: 865 | CY27: 22
A28: 111 | B28: Heinola | C28: 19350 | D28: 20.5 | G28: 73429 | H28: 178811 | I28: 0 | J28: 62084 | K28: 2993 | L28: 6249 | M28: 71326 | N28: 41022 | O28: 35 | P28: 810 | Q28: 4279 | R28: 1259 | S28: 9211 | U28: 10104 | V28: -14 | X28: -907 | Y28: -2 | Z28: 0 | AA28: 54 | AB28: -1 | AD28: -856 | AF28: 22036 | AI28: -13386 | AL28: 84347 | AN28: 76029 | AQ28: 19128 | AR28: 20.5 | AU28: 99479 | AV28: 201269 | AW28: 8 | AX28: 60317 | AY28: 3231 | AZ28: 6264 | BA28: 69812 | BB28: 42076 | BC28: 125 | BD28: 869 | BE28: 4428 | BF28: 302 | BG28: 13489 | BI28: 9896 | BJ28: 162 | BL28: 3755 | BM28: 146 | BN28: 0 | BO28: -70 | BP28: -3 | BQ28: 3828 | BS28: 25618 | BY28: 89473 | CA28: 85052 | CF28: 20.5 | CG28: 9.09 | CL28: 29427 | CM28: 0 | CN28: 42032.7414 | CO28: 41240.4779 | CQ28: 41240.4779 | CS28: 41022 | CU28: -44 | CV28: -18900 | CW28: 1320 | CX28: 2222 | CY28: -1615
A29: 90 | B29: Heinävesi | C29: 3514 | D29: 20.75 | G29: 10299 | H29: 34474 | I29: 0 | J29: 8640 | K29: 2003 | L29: 1249 | M29: 11892 | N29: 13922 | O29: 146 | P29: 82 | Q29: 303 | R29: 3 | S29: 2003 | U29: 2526 | V29: 0 | X29: -523 | Y29: 267 | Z29: 0 | AA29: -1 | AB29: 0 | AD29: -257 | AF29: 600 | AI29: -1532 | AL29: 4952 | AN29: 21181 | AQ29: 3455 | AR29: 20.75 | AU29: 16905 | AV29: 39957 | AW29: 0 | AX29: 8594 | AY29: 2236 | AZ29: 1225 | BA29: 12055 | BB29: 13941 | BC29: 174 | BD29: 57 | BE29: 349 | BF29: 503 | BG29: 2907 | BI29: 2774 | BJ29: -198 | BL29: -65 | BM29: 191 | BN29: 0 | BO29: 0 | BP29: 2 | BQ29: 128 | BS29: 1349 | BY29: 7946 | CA29: 23378 | CF29: 21 | CG29: 9.59 | CL29: 11652 | CM29: 0 | CN29: 13969.25638 | CO29: 13356.0584 | CQ29: 13356.0584 | CS29: 13922 | CU29: 300 | CV29: -3779 | CW29: 33 | CX29: 499 | CY29: 0
A30: 91 | B30: Helsinki | C30: 635181 | D30: 18.5 | G30: 3156032 | H30: 5604281 | I30: 9883 | J30: 2586063 | K30: 397315 | L30: 222227 | M30: 3205605 | N30: 316330 | O30: 16755 | P30: 73753 | Q30: 14314 | R30: 8902 | S30: 1031983 | U30: 676631 | V30: 272830 | X30: 628182 | Y30: -12546 | Z30: 10906 | AA30: -8052 | AB30: 1754 | AD30: 598432 | AF30: 4153306 | AI30: -1038972 | AL30: 1257711 | AN30: 4940025 | AQ30: 643272 | AR30: 18.5 | AU30: 3368014 | AV30: 5549282 | AW30: 23333 | AX30: 2595152 | AY30: 528591 | AZ30: 257052 | BA30: 3380795 | BB30: 220442 | BC30: 17647 | BD30: 69456 | BE30: 10023 | BF30: 8852 | BG30: 1392664 | BI30: 709312 | BJ30: 2492 | BL30: 685844 | BM30: -15738 | BN30: 12602 | BO30: -10463 | BP30: 1289 | BQ30: 648330 | BS30: 4770587 | BY30: 1532441 | CA30: 4984749 | CF30: 18 | CG30: 6.59 | CL30: 250053 | CM30: 0 | CN30: 218305.8622 | CO30: 168536.3408 | CQ30: 168536.3408 | CS30: 316330 | CU30: -188918 | CV30: -1385994 | CW30: 33379 | CX30: 330243 | CY30: -1724
A31: 97 | B31: Hirvensalmi | C31: 2274 | D31: 19.5 | G31: 10076 | H31: 22968 | I31: 0 | J31: 5417 | K31: 817 | L31: 1154 | M31: 7388 | N31: 7135 | O31: 2 | P31: 113 | Q31: 119 | R31: 1 | S31: 1627 | U31: 1289 | V31: 1 | X31: 339 | Y31: -6 | Z31: 0 | AA31: -1 | AB31: -4 | AD31: 328 | AF31: 3014 | AI31: -1353 | AL31: 7090 | AN31: 7682 | AQ31: 2236 | AR31: 20 | AU31: 15101 | AV31: 28513 | AW31: 0 | AX31: 5379 | AY31: 936 | AZ31: 1299 | BA31: 7614 | BB31: 7348 | BC31: 6 | BD31: 107 | BE31: 336 | BF31: 1 | BG31: 1772 | BI31: 1252 | BJ31: 1 | BL31: 521 | BM31: 10 | BN31: 0 | BO31: -1 | BP31: -5 | BQ31: 525 | BS31: 3417 | BY31: 9630 | CA31: 8258 | CF31: 20 | CG31: 8.59 | CL31: 6724 | CM31: 0 | CN31: 7290.964168 | CO31: 6906.112411 | CQ31: 6906.112411 | CS31: 7135 | CU31: -83 | CV31: -1093 | CW31: 24 | CX31: 153 | CY31: -2
A32: 98 | B32: Hollola | C32: 23791 | D32: 21 | G32: 140184 | H32: 250012 | I32: 31 | J32: 82861 | K32: 2753 | L32: 5376 | M32: 90990 | N32: 35755 | O32: 11 | P32: 944 | Q32: 546 | R32: 301 | S32: 16260 | U32: 10542 | V32: -14 | X32: 5704 | Y32: -1 | Z32: 0 | AA32: -56 | AB32: -34 | AD32: 5613 | AF32: 18195 | AI32: -11993 | AL32: 31965 | AN32: 79879 | AQ32: 23782 | AR32: 21 | AU32: 96659 | AV32: 211063 | AW32: -22 | AX32: 83598 | AY32: 3008 | AZ32: 5377 | BA32: 91983 | BB32: 41632 | BC32: 7 | BD32: 856 | BE32: 586 | BF32: 41 | BG32: 18884 | BI32: 14390 | BJ32: 152 | BL32: 4646 | BM32: -1 | BN32: 0 | BO32: 68 | BP32: 194 | BQ32: 4907 | BS32: 23158 | BY32: 24026 | CA32: 75251 | CF32: 21 | CG32: 9.59 | CL32: 24606 | CM32: 0 | CN32: 36740.50868 | CO32: 35524.82732 | CQ32: 35524.82732 | CS32: 35755 | CU32: -549 | CV32: -18275 | CW32: 5 | CX32: 3311 | CY32: -1460
A33: 99 | B33: Honkajoki | C33: 1759 | D33: 21.5 | G33: 14315 | H33: 24618 | I33: 0 | J33: 4835 | K33: 821 | L33: 497 | M33: 6153 | N33: 4730 | O33: 1 | P33: 60 | Q33: 15 | R33: 5 | S33: 525 | U33: 534 | V33: 0 | X33: -9 | Y33: 0 | Z33: 0 | AA33: 0 | AB33: 1 | AD33: -8 | AF33: -1525 | AI33: -249 | AL33: 742 | AN33: 4681 | AQ33: 1707 | AR33: 22 | AU33: 13630 | AV33: 23688 | AW33: 0 | AX33: 4596 | AY33: 893 | AZ33: 489 | BA33: 5978 | BB33: 4650 | BC33: 1 | BD33: 46 | BE33: 11 | BF33: 5 | BG33: 525 | BI33: 481 | BJ33: 0 | BL33: 44 | BM33: 4 | BN33: 0 | BO33: 0 | BP33: 0 | BQ33: 48 | BS33: -1494 | BY33: 999 | CA33: 5057 | CF33: 22 | CG33: 10.59 | CL33: 4832 | CM33: 280 | CN33: 4371.474925 | CO33: 4448.997861 | CQ33: 4448.997861 | CS33: 4730 | CU33: 8 | CV33: -303 | CW33: 4 | CX33: 2 | CY33: 0
A34: 102 | B34: Huittinen | C34: 10403 | D34: 20.5 | G34: 25240 | H34: 82750 | I34: -217 | J34: 28813 | K34: 1696 | L34: 2078 | M34: 32587 | N34: 30323 | O34: 10 | P34: 262 | Q34: 66 | R34: 31 | S34: 4966 | U34: 4789 | V34: -1 | X34: 176 | Y34: -34 | Z34: 0 | AA34: 0 | AB34: -18 | AD34: 124 | AF34: 10636 | AI34: -2664 | AL34: 7645 | AN34: 26616 | AQ34: 10207 | AR34: 20.75 | AU34: 24736 | AV34: 83637 | AW34: 266 | AX34: 29763 | AY34: 1975 | AZ34: 2242 | BA34: 33980 | BB34: 29710 | BC34: 5 | BD34: 234 | BE34: 124 | BF34: 45 | BG34: 4905 | BI34: 4583 | BJ34: 0 | BL34: 322 | BM34: 0 | BN34: 41 | BO34: -25 | BP34: -25 | BQ34: 231 | BS34: 10861 | BY34: 9353 | CA34: 28572 | CF34: 20.75 | CG34: 9.34 | CL34: 23195 | CM34: 0 | CN34: 25889.59729 | CO34: 25479.76001 | CQ34: 25479.76001 | CS34: 30323 | CU34: -375 | CV34: -5894 | CW34: 304 | CX34: 278 | CY34: 2
A35: 103 | B35: Humppila | C35: 2345 | D35: 21.5 | G35: 8777 | H35: 22399 | I35: 0 | J35: 6543 | K35: 388 | L35: 511 | M35: 7442 | N35: 6918 | O35: 11 | P35: 92 | Q35: 11 | R35: 22 | S35: 646 | U35: 834 | V35: 0 | X35: -188 | Y35: -25 | Z35: 0 | AA35: 0 | AB35: 0 | AD35: -213 | AF35: -842 | AI35: -715 | AL35: 581 | AN35: 6810 | AQ35: 2290 | AR35: 22 | AU35: 8848 | AV35: 21998 | AW35: 0 | AX35: 6683 | AY35: 468 | AZ35: 501 | BA35: 7652 | BB35: 6672 | BC35: 4 | BD35: 67 | BE35: 6 | BF35: 12 | BG35: 1105 | BI35: 763 | BJ35: 5 | BL35: 347 | BM35: 0 | BN35: 33 | BO35: -6 | BP35: 0 | BQ35: 308 | BS35: -573 | BY35: 716 | CA35: 7500 | CF35: 22 | CG35: 10.59 | CL35: 5455 | CM35: 350 | CN35: 6054.073811 | CO35: 5549.302477 | CQ35: 5549.302477 | CS35: 6918 | CU35: -14 | CV35: -895 | CW35: 45 | CX35: 73 | CY35: 37
A36: 105 | B36: Hyrynsalmi | C36: 2406 | D36: 21.75 | G36: 16928 | H36: 33353 | I36: 0 | J36: 6069 | K36: 703 | L36: 827 | M36: 7599 | N36: 10106 | O36: 3 | P36: 72 | Q36: 17 | R36: 89 | S36: 1077 | U36: 1249 | V36: 10 | X36: -162 | Y36: -14 | Z36: 0 | AA36: 0 | AB36: 0 | AD36: -176 | AF36: -2717 | AI36: -620 | AL36: 1323 | AN36: 9172 | AQ36: 2326 | AR36: 21.75 | AU36: 16914 | AV36: 32982 | AW36: 0 | AX36: 6247 | AY36: 801 | AZ36: 851 | BA36: 7899 | BB36: 11169 | BC36: 4 | BD36: 49 | BE36: 18 | BF36: 111 | BG36: 2801 | BI36: 1272 | BJ36: 0 | BL36: 1529 | BM36: 3 | BN36: 0 | BO36: -25 | BP36: 0 | BQ36: 1507 | BS36: -1654 | BY36: 2413 | CA36: 9162 | CF36: 21.75 | CG36: 10.34 | CL36: 9997 | CM36: 0 | CN36: 11169.25573 | CO36: 11119.87368 | CQ36: 11119.87368 | CS36: 10106 | CU36: 47 | CV36: -1535 | CW36: 15 | CX36: 25 | CY36: 0
A37: 106 | B37: Hyvinkää | C37: 46596 | D37: 19.75 | G37: 169167 | H37: 377443 | I37: 142 | J37: 173918 | K37: 11167 | L37: 13417 | M37: 198502 | N37: 53470 | O37: 52 | P37: 3742 | Q37: 690 | R37: 546 | S37: 39720 | U37: 30728 | V37: 0 | X37: 8992 | Y37: -257 | Z37: 176 | AA37: -559 | AB37: -51 | AD37: 7949 | AF37: 49475 | AI37: -39215 | AL37: 50015 | AN37: 225234 | AQ37: 46739 | AR37: 19.75 | AU37: 177245 | AV37: 383035 | AW37: 236 | AX37: 173516 | AY37: 11471 | AZ37: 13356 | BA37: 198343 | BB37: 51169 | BC37: 42 | BD37: 3266 | BE37: 637 | BF37: 518 | BG37: 40246 | BI37: 30538 | BJ37: 238 | BL37: 9946 | BM37: -237 | BN37: 200 | BO37: -572 | BP37: -82 | BQ37: 8855 | BS37: 56526 | BY37: 51504 | CA37: 236489 | CF37: 19.75 | CG37: 8.34 | CL37: 45178 | CM37: 0 | CN37: 51698.33229 | CO37: 50209.98313 | CQ37: 50209.98313 | CS37: 53470 | CU37: -7803 | CV37: -55528 | CW37: 787 | CX37: 9706 | CY37: -10
A38: 108 | B38: Hämeenkyrö | C38: 10681 | D38: 21 | G38: 34877 | H38: 87294 | I38: 17 | J38: 32559 | K38: 1264 | L38: 2302 | M38: 36125 | N38: 22307 | O38: 92 | P38: 473 | Q38: 320 | R38: 282 | S38: 5626 | U38: 7669 | V38: 52 | X38: -1991 | Y38: 5 | Z38: 55 | AA38: -40 | AB38: -81 | AD38: -2162 | AF38: 5223 | AI38: -13017 | AL38: 12035 | AN38: 58524 | AQ38: 10599 | AR38: 22 | AU38: 36936 | AV38: 89241 | AW38: 56 | AX38: 34472 | AY38: 1636 | AZ38: 2131 | BA38: 38239 | BB38: 21765 | BC38: 69 | BD38: 479 | BE38: 663 | BF38: 275 | BG38: 7673 | BI38: 6635 | BJ38: 0 | BL38: 1038 | BM38: 9 | BN38: 62 | BO38: -59 | BP38: -96 | BQ38: 830 | BS38: 5670 | BY38: 11095 | CA38: 61756 | CF38: 22 | CG38: 10.59 | CL38: 18952 | CM38: 0 | CN38: 21730.6803 | CO38: 20021.97878 | CQ38: 20021.97878 | CS38: 22307 | CU38: -86 | CV38: -10296 | CW38: 234 | CX38: 550 | CY38: 53
A39: 109 | B39: Hämeenlinna | C39: 67850 | D39: 20.5 | G39: 218006 | H39: 571540 | I39: 603 | J39: 237193 | K39: 13444 | L39: 24219 | M39: 274856 | N39: 117077 | O39: 530 | P39: 9566 | Q39: 6127 | R39: 3 | S39: 33680 | U39: 40104 | V39: 0 | X39: -6424 | Y39: -18 | Z39: 2 | AA39: -37 | AB39: 136 | AD39: -6345 | AF39: 5228 | AI39: -59018 | AL39: 116164 | AN39: 428009 | AQ39: 67662 | AR39: 20.75 | AU39: 222299 | AV39: 566706 | AW39: 800 | AX39: 238140 | AY39: 16011 | AZ39: 26920 | BA39: 281071 | BB39: 113537 | BC39: 457 | BD39: 10788 | BE39: 5394 | BF39: 382 | BG39: 43252 | BI39: 42380 | BJ39: 1471 | BL39: 2343 | BM39: 2 | BN39: 12 | BO39: 82 | BP39: 168 | BQ39: 2583 | BS39: 8011 | BY39: 121546 | CA39: 426284 | CF39: 20.75 | CG39: 9.34 | CL39: 87257 | CM39: 0 | CN39: 90811.03402 | CO39: 88943.07134 | CQ39: 88943.07134 | CS39: 117077 | CU39: -1520 | CV39: -57216 | CW39: 635 | CX39: 10324 | CY39: 463
A40: 139 | B40: Ii | C40: 9628 | D40: 21.25 | G40: 62339 | H40: 113763 | I40: 1 | J40: 26309 | K40: 1318 | L40: 3595 | M40: 31222 | N40: 27663 | O40: 20 | P40: 672 | Q40: 55 | R40: 10 | S40: 6855 | U40: 5948 | V40: 0 | X40: 907 | Y40: 545 | Z40: 75 | AA40: -66 | AB40: -5 | AD40: 1306 | AF40: 13291 | AI40: -9702 | AL40: 7557 | AN40: 44502 | AQ40: 9966 | AR40: 21.25 | AU40: 59869 | AV40: 111519 | AW40: 4 | AX40: 26592 | AY40: 1526 | AZ40: 3520 | BA40: 31638 | BB40: 27677 | BC40: 26 | BD40: 591 | BE40: 175 | BF40: 8 | BG40: 7272 | BI40: 5869 | BJ40: 0 | BL40: 1403 | BM40: 42 | BN40: 4 | BO40: -120 | BP40: -9 | BQ40: 1312 | BS40: 14529 | BY40: 11380 | CA40: 52711 | CF40: 21.25 | CG40: 9.84 | CL40: 23088 | CM40: 0 | CN40: 27626.93765 | CO40: 26506.2257 | CQ40: 26506.2257 | CS40: 27663 | CU40: -514 | CV40: -14238 | CW40: 222 | CX40: 1841 | CY40: 858
A41: 140 | B41: Iisalmi | C41: 21767 | D41: 20.5 | G41: 118051 | H41: 241172 | I41: 406 | J41: 64796 | K41: 4535 | L41: 5775 | M41: 75106 | N41: 62887 | O41: 105 | P41: 533 | Q41: 1492 | R41: 1047 | S41: 14861 | U41: 12226 | V41: 321 | X41: 2956 | Y41: 1279 | Z41: 13 | AA41: -171 | AB41: -29 | AD41: 4022 | AF41: 26532 | AI41: -29855 | AL41: 32298 | AN41: 91334 | AQ41: 21639 | AR41: 20.5 | AU41: 120731 | AV41: 242112 | AW41: 653 | AX41: 64544 | AY41: 5255 | AZ41: 5774 | BA41: 75573 | BB41: 64261 | BC41: 148 | BD41: 564 | BE41: 2139 | BF41: 871 | BG41: 19394 | BI41: 14003 | BJ41: -15 | BL41: 5376 | BM41: -25 | BN41: 17 | BO41: -224 | BP41: -41 | BQ41: 5069 | BS41: 32377 | BY41: 34239 | CA41: 98358 | CF41: 20.5 | CG41: 9.09 | CL41: 39248 | CM41: 0 | CN41: 51399.49819 | CO41: 51537.65814 | CQ41: 51537.65814 | CS41: 62887 | CU41: -432 | CV41: -26205 | CW41: 458 | CX41: 553 | CY41: 120
A42: 142 | B42: Iitti | C42: 6889 | D42: 20.25 | G42: 19087 | H42: 55200 | I42: 0 | J42: 19968 | K42: 1319 | L42: 2326 | M42: 23613 | N42: 15649 | O42: 11 | P42: 274 | Q42: 65 | R42: 15 | S42: 2936 | U42: 3254 | V42: 115 | X42: -203 | Y42: 0 | Z42: 0 | AA42: 42 | AB42: 0 | AD42: -161 | AF42: 534 | AI42: -1781 | AL42: 5633 | AN42: 21440 | AQ42: 6820 | AR42: 20.25 | AU42: 27351 | AV42: 63863 | AW42: 0 | AX42: 20213 | AY42: 2463 | AZ42: 1491 | BA42: 24167 | BB42: 15180 | BC42: 4 | BD42: 224 | BE42: 100 | BF42: 17 | BG42: 2698 | BI42: 3068 | BJ42: 0 | BL42: -370 | BM42: 0 | BN42: 0 | BO42: 0 | BP42: 0 | BQ42: -370 | BS42: 316 | BY42: 6656 | CA42: 20664 | CF42: 20.75 | CG42: 9.34 | CL42: 13157 | CM42: 0 | CN42: 15267.94954 | CO42: 14975.53655 | CQ42: 14975.53655 | CS42: 15649 | CU42: -22 | CV42: -1754 | CW42: 214 | CX42: 98 | CY42: -24
A43: 143 | B43: Ikaalinen | C43: 7128 | D43: 21.25 | G43: 29801 | H43: 73413 | I43: 22 | J43: 20666 | K43: 1498 | L43: 2981 | M43: 25145 | N43: 23965 | O43: 15 | P43: 220 | Q43: 116 | R43: 100 | S43: 5232 | U43: 3743 | V43: 0 | X43: 1489 | Y43: 5 | Z43: 65 | AA43: -35 | AB43: -101 | AD43: 1293 | AF43: 3216 | AI43: -10438 | AL43: 7284 | AN43: 40729 | AQ43: 7119 | AR43: 21.25 | AU43: 30047 | AV43: 74520 | AW43: 55 | AX43: 20748 | AY43: 1732 | AZ43: 2896 | BA43: 25376 | BB43: 22929 | BC43: 6 | BD43: 203 | BE43: 448 | BF43: 92 | BG43: 3941 | BI43: 3574 | BJ43: 0 | BL43: 367 | BM43: -8 | BN43: 71 | BO43: 5 | BP43: -64 | BQ43: 229 | BS43: 3114 | BY43: 6621 | CA43: 42644 | CF43: 21.25 | CG43: 9.84 | CL43: 14955 | CM43: 0 | CN43: 18051.2473 | CO43: 17160.27523 | CQ43: 17160.27523 | CS43: 23965 | CU43: -69 | CV43: -7259 | CW43: 26 | CX43: 671 | CY43: 304
A44: 145 | B44: Ilmajoki | C44: 12167 | D44: 20.25 | G44: 63437 | H44: 123278 | I44: 14 | J44: 35072 | K44: 1266 | L44: 2128 | M44: 38466 | N44: 28531 | O44: 92 | P44: 873 | Q44: 22 | R44: 49 | S44: 6361 | U44: 4983 | V44: 0 | X44: 1378 | Y44: -220 | Z44: 0 | AA44: -8 | AB44: -19 | AD44: 1131 | AF44: 7827 | AI44: -5181 | AL44: 7937 | AN44: 67810 | AQ44: 12205 | AR44: 20.25 | AU44: 61655 | AV44: 122728 | AW44: 0 | AX44: 35206 | AY44: 1430 | AZ44: 2306 | BA44: 38942 | BB44: 29015 | BC44: 11 | BD44: 813 | BE44: 151 | BF44: 56 | BG44: 6177 | BI44: 5027 | BJ44: 0 | BL44: 1150 | BM44: -61 | BN44: 5 | BO44: -6 | BP44: -20 | BQ44: 1058 | BS44: 9718 | BY44: 8513 | CA44: 68362 | CF44: 20.75 | CG44: 9.34 | CL44: 23277 | CM44: 0 | CN44: 29029.13426 | CO44: 28140.66785 | CQ44: 28140.66785 | CS44: 28531 | CU44: -88 | CV44: -8075 | CW44: 321 | CX44: 1659 | CY44: 115
A45: 146 | B45: Ilomantsi | C45: 5237 | D45: 20.75 | G45: 19294 | H45: 57497 | I45: -4 | J45: 13587 | K45: 2960 | L45: 1321 | M45: 17868 | N45: 24477 | O45: 30 | P45: 319 | Q45: 348 | R45: 20 | S45: 4177 | U45: 3190 | V45: 0 | X45: 987 | Y45: 47 | Z45: 21 | AA45: -25 | AB45: 39 | AD45: 1027 | AF45: 2494 | AI45: -7035 | AL45: 7398 | AN45: 23187 | AQ45: 5128 | AR45: 20.75 | AU45: 31722 | AV45: 70039 | AW45: 4 | AX45: 13573 | AY45: 3414 | AZ45: 1372 | BA45: 18359 | BB45: 23577 | BC45: 20 | BD45: 261 | BE45: 360 | BF45: 23 | BG45: 3719 | BI45: 3541 | BJ45: -157 | BL45: 21 | BM45: -28 | BN45: 11 | BO45: 2 | BP45: 38 | BQ45: 22 | BS45: 2484 | BY45: 7979 | CA45: 21383 | CF45: 20.75 | CG45: 9.34 | CL45: 20361 | CM45: 0 | CN45: 22145.03828 | CO45: 21120.84614 | CQ45: 21120.84614 | CS45: 24477 | CU45: 122 | CV45: -7938 | CW45: 17 | CX45: 355 | CY45: -1
A46: 153 | B46: Imatra | C46: 27517 | D46: 20 | G46: 151530 | H46: 290861 | I46: 486 | J46: 93467 | K46: 9262 | L46: 3959 | M46: 106688 | N46: 65204 | O46: 158 | P46: 2522 | Q46: 188 | R46: 6 | S46: 30866 | U46: 23087 | V46: 0 | X46: 7779 | Y46: 282 | Z46: 279 | AA46: -131 | AB46: -23 | AD46: 7628 | AF46: 48119 | AI46: -35935 | AL46: 13707 | AN46: 196872 | AQ46: 27269 | AR46: 20 | AU46: 148086 | AV46: 288149 | AW46: -6 | AX46: 91183 | AY46: 4487 | AZ46: 9920 | BA46: 105590 | BB46: 65658 | BC46: 135 | BD46: 2461 | BE46: 218 | BF46: 6 | BG46: 29065 | BI46: 23575 | BJ46: 854 | BL46: 6344 | BM46: 747 | BN46: 374 | BO46: -81 | BP46: -65 | BQ46: 6571 | BS46: 52223 | BY46: 13588 | CA46: 200492 | CF46: 20 | CG46: 8.59 | CL46: 42620 | CM46: 0 | CN46: 56050.79121 | CO46: 54521.49403 | CQ46: 54521.49403 | CS46: 65204 | CU46: 4127 | CV46: -41820 | CW46: 463 | CX46: 5005 | CY46: -8508
A47: 148 | B47: Inari | C47: 6825 | D47: 19 | G47: 35417 | H47: 75437 | I47: 0 | J47: 19749 | K47: 2161 | L47: 4259 | M47: 26169 | N47: 23792 | O47: 43 | P47: 958 | Q47: 153 | R47: 26 | S47: 9153 | U47: 5155 | V47: 18 | X47: 4016 | Y47: 63 | Z47: 0 | AA47: -45 | AB47: -155 | AD47: 3879 | AF47: 17773 | AI47: -6059 | AL47: 12550 | AN47: 46440 | AQ47: 6869 | AR47: 19 | AU47: 38359 | AV47: 76083 | AW47: -2 | AX47: 19854 | AY47: 2578 | AZ47: 4245 | BA47: 26677 | BB47: 23456 | BC47: 50 | BD47: 791 | BE47: 160 | BF47: 33 | BG47: 11793 | BI47: 5689 | BJ47: 1 | BL47: 6105 | BM47: -18 | BN47: 343 | BO47: -260 | BP47: -234 | BQ47: 5250 | BS47: 23370 | BY47: 14244 | CA47: 43499 | CF47: 19 | CG47: 7.59 | CL47: 20079 | CM47: 0 | CN47: 23412.50284 | CO47: 23205.74407 | CQ47: 23205.74407 | CS47: 23792 | CU47: -564 | CV47: -10713 | CW47: 1057 | CX47: 916 | CY47: -1792
A48: 149 | B48: Inkoo | C48: 5585 | D48: 20.75 | G48: 13322 | H48: 42732 | I48: -1 | J48: 21280 | K48: 1397 | L48: 3086 | M48: 25763 | N48: 5987 | O48: 1 | P48: 187 | Q48: 65 | R48: 62 | S48: 2157 | U48: 2080 | V48: 0 | X48: 77 | Y48: 0 | Z48: 0 | AA48: 0 | AB48: 0 | AD48: 77 | AF48: 7279 | AI48: -1254 | AL48: 1957 | AN48: 16081 | AQ48: 5481 | AR48: 20.75 | AU48: 15299 | AV48: 44385 | AW48: 0 | AX48: 21433 | AY48: 1107 | AZ48: 3038 | BA48: 25578 | BB48: 6278 | BC48: 1 | BD48: 141 | BE48: 61 | BF48: 51 | BG48: 2640 | BI48: 2176 | BJ48: 0 | BL48: 464 | BM48: 2 | BN48: 0 | BO48: 0 | BP48: 0 | BQ48: 466 | BS48: 7667 | BY48: 2981 | CA48: 16695 | CF48: 20.75 | CG48: 9.34 | CL48: 5420 | CM48: 0 | CN48: 6108.184055 | CO48: 6538.020673 | CQ48: 6538.020673 | CS48: 5987 | CU48: -278 | CV48: -2175 | CW48: 8 | CX48: 340 | CY48: 0
A49: 151 | B49: Isojoki | C49: 2079 | D49: 22 | G49: 16560 | H49: 30504 | I49: 69 | J49: 5183 | K49: 548 | L49: 414 | M49: 6145 | N49: 9289 | O49: 1 | P49: 48 | Q49: 39 | R49: 19 | S49: 1532 | U49: 846 | V49: 0 | X49: 686 | Y49: -4 | Z49: 0 | AA49: 0 | AB49: 0 | AD49: 682 | AF49: 1469 | AI49: -786 | AL49: 1741 | AN49: 3532 | AQ49: 2032 | AR49: 22 | AU49: 16348 | AV49: 30446 | AW49: 133 | AX49: 5409 | AY49: 656 | AZ49: 447 | BA49: 6512 | BB49: 9061 | BC49: 1 | BD49: 46 | BE49: 28 | BF49: 19 | BG49: 1572 | BI49: 856 | BJ49: 0 | BL49: 716 | BM49: 2 | BN49: 0 | BO49: -1 | BP49: -6 | BQ49: 711 | BS49: 2113 | BY49: 2590 | CA49: 3508 | CF49: 22 | CG49: 10.59 | CL49: 7935 | CM49: 0 | CN49: 8318.651956 | CO49: 7855.457305 | CQ49: 7855.457305 | CS49: 9289 | CU49: -160 | CV49: -777 | CW49: 20 | CX49: 145 | CY49: 22
A50: 152 | B50: Isokyrö | C50: 4712 | D50: 21.5 | G50: 13506 | H50: 37806 | I50: 9 | J50: 14008 | K50: 524 | L50: 906 | M50: 15438 | N50: 12958 | O50: 8 | P50: 232 | Q50: 33 | R50: 14 | S50: 3901 | U50: 1883 | V50: 0 | X50: 2018 | Y50: -61 | Z50: 0 | AA50: 0 | AB50: -11 | AD50: 1946 | AF50: 10876 | AI50: -1667 | AL50: 3811 | AN50: 10140 | AQ50: 4673 | AR50: 21.5 | AU50: 13217 | AV50: 37748 | AW50: -7 | AX50: 13541 | AY50: 636 | AZ50: 886 | BA50: 15063 | BB50: 13132 | BC50: 8 | BD50: 159 | BE50: 61 | BF50: 19 | BG50: 3548 | BI50: 1886 | BJ50: 142 | BL50: 1804 | BM50: -37 | BN50: 0 | BO50: 0 | BP50: -10 | BQ50: 1757 | BS50: 12604 | BY50: 4331 | CA50: 9694 | CF50: 21.5 | CG50: 10.09 | CL50: 11136 | CM50: 0 | CN50: 13165.28719 | CO50: 12820.45131 | CQ50: 12820.45131 | CS50: 12958 | CU50: -59 | CV50: -3414 | CW50: 0 | CX50: 443 | CY50: -1
A51: 165 | B51: Janakkala | C51: 16709 | D51: 20.5 | G51: 48225 | H51: 130113 | I51: 0 | J51: 57060 | K51: 2287 | L51: 3687 | M51: 63034 | N51: 28892 | O51: 28 | P51: 711 | Q51: 98 | R51: 15 | S51: 9247 | U51: 7484 | V51: 0 | X51: 1763 | Y51: 5 | Z51: 72 | AA51: -162 | AB51: -8 | AD51: 1526 | AF51: 3431 | AI51: -8153 | AL51: 15470 | AN51: 73972 | AQ51: 16607 | AR51: 21 | AU51: 43023 | AV51: 123571 | AW51: 0 | AX51: 58492 | AY51: 2676 | AZ51: 3636 | BA51: 64804 | BB51: 27894 | BC51: 17 | BD51: 654 | BE51: 132 | BF51: 11 | BG51: 11441 | BI51: 7908 | BJ51: 292 | BL51: 3825 | BM51: 4 | BN51: 79 | BO51: -10 | BP51: -7 | BQ51: 3733 | BS51: 7147 | BY51: 15999 | CA51: 70271 | CF51: 21 | CG51: 9.59 | CL51: 21036 | CM51: 0 | CN51: 24137.04449 | CO51: 22442.89044 | CQ51: 22442.89044 | CS51: 28892 | CU51: -106 | CV51: -8306 | CW51: 354 | CX51: 827 | CY51: -53
A52: 167 | B52: Joensuu | C52: 75848 | D52: 20.5 | G52: 308191 | H52: 705537 | I52: -59 | J52: 224447 | K52: 17132 | L52: 20727 | M52: 262306 | N52: 193982 | O52: 594 | P52: 5600 | Q52: 5082 | R52: 442 | S52: 58517 | U52: 53999 | V52: 0 | X52: 4518 | Y52: 60 | Z52: 396 | AA52: -737 | AB52: 3 | AD52: 3448 | AF52: 63842 | AI52: -74180 | AL52: 126032 | AN52: 422002 | AQ52: 76067 | AR52: 20.5 | AU52: 356517 | AV52: 737618 | AW52: -83 | AX52: 220248 | AY52: 21356 | AZ52: 20776 | BA52: 262380 | BB52: 186922 | BC52: 562 | BD52: 4886 | BE52: 5555 | BF52: 308 | BG52: 69041 | BI52: 57334 | BJ52: -2729 | BL52: 8978 | BM52: -681 | BN52: 435 | BO52: -867 | BP52: -240 | BQ52: 6755 | BS52: 73685 | BY52: 160312 | CA52: 486034 | CF52: 20.5 | CG52: 9.09 | CL52: 137821 | CM52: 0 | CN52: 139314.8093 | CO52: 138727.2427 | CQ52: 138727.2427 | CS52: 193982 | CU52: -54 | CV52: -178434 | CW52: 5028 | CX52: 92694 | CY52: -559
A53: 169 | B53: Jokioinen | C53: 5341 | D53: 20.5 | G53: 26879 | H53: 54651 | I53: -6 | J53: 16675 | K53: 888 | L53: 845 | M53: 18408 | N53: 11595 | O53: 2 | P53: 244 | Q53: 34 | R53: 16 | S53: 2001 | U53: 2526 | V53: 0 | X53: -525 | Y53: 3 | Z53: 0 | AA53: 0 | AB53: 27 | AD53: -495 | AF53: 6628 | AI53: -1994 | AL53: 1223 | AN53: 21397 | AQ53: 5286 | AR53: 20.5 | AU53: 27261 | AV53: 54213 | AW53: -4 | AX53: 16672 | AY53: 1080 | AZ53: 895 | BA53: 18647 | BB53: 11336 | BC53: -59 | BD53: 154 | BE53: 139 | BF53: 46 | BG53: 2907 | BI53: 2538 | BJ53: 27 | BL53: 396 | BM53: 3 | BN53: 0 | BO53: 0 | BP53: 0 | BQ53: 399 | BS53: 5562 | BY53: 854 | CA53: 21130 | CF53: 21.25 | CG53: 9.84 | CL53: 8513 | CM53: 0 | CN53: 9739.248481 | CO53: 8903.230411 | CQ53: 8903.230411 | CS53: 11595 | CU53: -23 | CV53: -1431 | CW53: 24 | CX53: 57 | CY53: 54
A54: 171 | B54: Joroinen | C54: 5039 | D54: 20.25 | G54: 15702 | H54: 43434 | I54: 2 | J54: 14334 | K54: 1309 | L54: 1181 | M54: 16824 | N54: 12692 | O54: 54 | P54: 280 | Q54: 59 | R54: 17 | S54: 1554 | U54: 1235 | V54: 216 | X54: 535 | Y54: -5 | Z54: 0 | AA54: 0 | AB54: 26 | AD54: 556 | AF54: 140 | AI54: -2227 | AL54: 15020 | AN54: 24677 | AQ54: 4917 | AR54: 20.75 | AU54: 24452 | AV54: 51864 | AW54: -15 | AX54: 14749 | AY54: 1489 | AZ54: 1183 | BA54: 17421 | BB54: 12421 | BC54: 72 | BD54: 211 | BE54: 221 | BF54: 92 | BG54: 2360 | BI54: 1968 | BJ54: 0 | BL54: 392 | BM54: 0 | BN54: 0 | BO54: 0 | BP54: -10 | BQ54: 382 | BS54: 496 | BY54: 18447 | CA54: 27827 | CF54: 20.75 | CG54: 9.34 | CL54: 11121 | CM54: 0 | CN54: 12483.78887 | CO54: 11976.73574 | CQ54: 11976.73574 | CS54: 12692 | CU54: -43 | CV54: -3133 | CW54: 232 | CX54: 475 | CY54: 338
A55: 172 | B55: Joutsa | C55: 4673 | D55: 21 | G55: 14033 | H55: 41942 | I55: -4 | J55: 12259 | K55: 1244 | L55: 1714 | M55: 15217 | N55: 16952 | O55: 2 | P55: 126 | Q55: 72 | R55: 24 | S55: 4129 | U55: 2178 | V55: -145 | X55: 1806 | Y55: -2 | Z55: 36 | AA55: -5 | AB55: -11 | AD55: 1752 | AF55: 3331 | AI55: -2360 | AL55: 4907 | AN55: 18975 | AQ55: 4567 | AR55: 21 | AU55: 13962 | AV55: 43415 | AW55: 1 | AX55: 12364 | AY55: 1492 | AZ55: 1686 | BA55: 15542 | BB55: 16562 | BC55: 3 | BD55: 146 | BE55: 106 | BF55: 29 | BG55: 2536 | BI55: 2272 | BJ55: -1037 | BL55: -773 | BM55: 5 | BN55: 6 | BO55: 9 | BP55: 11 | BQ55: -754 | BS55: 2581 | BY55: 4177 | CA55: 23572 | CF55: 21 | CG55: 9.59 | CL55: 13247 | CM55: 0 | CN55: 15603.05913 | CO55: 14858.86249 | CQ55: 14858.86249 | CS55: 16952 | CU55: -32 | CV55: -6081 | CW55: 26 | CX55: 380 | CY55: -2
A56: 176 | B56: Juuka | C56: 4938 | D56: 20.75 | G56: 19242 | H56: 53273 | I56: 0 | J56: 11562 | K56: 1689 | L56: 1244 | M56: 14495 | N56: 22258 | O56: 117 | P56: 126 | Q56: 373 | R56: 3 | S56: 3083 | U56: 3145 | V56: 0 | X56: -62 | Y56: 256 | Z56: 13 | AA56: -3 | AB56: 2 | AD56: 180 | AF56: 10052 | AI56: -2397 | AL56: 6462 | AN56: 12649 | AQ56: 4817 | AR56: 20.75 | AU56: 34359 | AV56: 66595 | AW56: 0 | AX56: 11708 | AY56: 1860 | AZ56: 1213 | BA56: 14781 | BB56: 22088 | BC56: 93 | BD56: 109 | BE56: 393 | BF56: 3 | BG56: 5007 | BI56: 3287 | BJ56: -553 | BL56: 1167 | BM56: -904 | BN56: 25 | BO56: -1 | BP56: -2 | BQ56: 235 | BS56: 11179 | BY56: 9468 | CA56: 12659 | CF56: 20.75 | CG56: 9.34 | CL56: 18170 | CM56: 0 | CN56: 20846.45409 | CO56: 19879.39408 | CQ56: 19879.39408 | CS56: 22258 | CU56: 138 | CV56: -8352 | CW56: 24 | CX56: 1457 | CY56: -1
A57: 177 | B57: Juupajoki | C57: 1957 | D57: 21 | G57: 6800 | H57: 17075 | I57: 15 | J57: 5609 | K57: 754 | L57: 549 | M57: 6912 | N57: 4494 | O57: 28 | P57: 87 | Q57: 3 | R57: 5 | S57: 1085 | U57: 827 | V57: 13 | X57: 271 | Y57: 12 | Z57: 9 | AA57: 0 | AB57: 74 | AD57: 348 | AF57: 2299 | AI57: -995 | AL57: 1422 | AN57: 6359 | AQ57: 1904 | AR57: 21 | AU57: 7086 | AV57: 17134 | AW57: 12 | AX57: 5707 | AY57: 924 | AZ57: 543 | BA57: 7174 | BB57: 4285 | BC57: 7 | BD57: 50 | BE57: 173 | BF57: 111 | BG57: 1442 | BI57: 803 | BJ57: -2 | BL57: 637 | BM57: 1 | BN57: 0 | BO57: 0 | BP57: 72 | BQ57: 710 | BS57: 2823 | BY57: 1146 | CA57: 6060 | CF57: 21 | CG57: 9.59 | CL57: 4454 | CM57: 0 | CN57: 4285.633396 | CO57: 4013.402246 | CQ57: 4013.402246 | CS57: 4494 | CU57: -167 | CV57: -1611 | CW57: 192 | CX57: 236 | CY57: 35
A58: 178 | B58: Juva | C58: 6421 | D58: 19.75 | G58: 23334 | H58: 59034 | I58: 81 | J58: 15444 | K58: 2240 | L58: 1534 | M58: 19218 | N58: 21308 | O58: 2 | P58: 312 | Q58: 385 | R58: 25 | S58: 4957 | U58: 2780 | V58: -199 | X58: 1978 | Y58: -37 | Z58: 0 | AA58: 0 | AB58: -8 | AD58: 1933 | AF58: 3145 | AI58: -4179 | AL58: 2019 | AN58: 27753 | AQ58: 6334 | AR58: 19.75 | AU58: 30684 | AV58: 66970 | AW58: 216 | AX58: 15240 | AY58: 2548 | AZ58: 1505 | BA58: 19293 | BB58: 21780 | BC58: 22 | BD58: 249 | BE58: 626 | BF58: 29 | BG58: 5316 | BI58: 4198 | BJ58: 3 | BL58: 1121 | BM58: -33 | BN58: 0 | BO58: 0 | BP58: -11 | BQ58: 1077 | BS58: 3944 | BY58: 5295 | CA58: 31771 | CF58: 20.75 | CG58: 9.34 | CL58: 16771 | CM58: 0 | CN58: 21718.61651 | CO58: 21092.80812 | CQ58: 21092.80812 | CS58: 21308 | CU58: -219 | CV58: -5286 | CW58: 60 | CX58: 251 | CY58: 1041
A59: 179 | B59: Jyväskylä | C59: 138850 | D59: 20 | G59: 562405 | H59: 1165225 | I59: 543 | J59: 439145 | K59: 21150 | L59: 47104 | M59: 507399 | N59: 271325 | O59: 2704 | P59: 16754 | Q59: 671 | R59: 1772 | S59: 160856 | U59: 118271 | V59: 3878 | X59: 46463 | Y59: -70 | Z59: 4695 | AA59: -2946 | AB59: -953 | AD59: 37799 | AF59: 4169 | AI59: -101967 | AL59: 55840 | AN59: 1066245 | AQ59: 140188 | AR59: 20 | AU59: 555518 | AV59: 1157049 | AW59: 489 | AX59: 440260 | AY59: 27051 | AZ59: 47096 | BA59: 514407 | BB59: 263554 | BC59: 844 | BD59: 17129 | BE59: 432 | BF59: 2106 | BG59: 158960 | BI59: 117804 | BJ59: 0 | BL59: 41156 | BM59: 138 | BN59: 4198 | BO59: -1455 | BP59: -127 | BQ59: 35514 | BS59: 40775 | BY59: 63438 | CA59: 1035466 | CF59: 20 | CG59: 8.59 | CL59: 132908 | CM59: 0 | CN59: 173559.7243 | CO59: 168113.8623 | CQ59: 168113.8623 | CS59: 271325 | CU59: -16813 | CV59: -197578 | CW59: 1488 | CX59: 64893 | CY59: 207
A60: 181 | B60: Jämijärvi | C60: 1915 | D60: 21.5 | G60: 9091 | H60: 20697 | I60: 0 | J60: 4709 | K60: 273 | L60: 401 | M60: 5383 | N60: 5988 | O60: 1 | P60: 53 | Q60: 12 | R60: 6 | S60: -292 | U60: 568 | V60: 0 | X60: -860 | Y60: 4 | Z60: 0 | AA60: 0 | AB60: 0 | AD60: -856 | AF60: -2692 | AI60: -537 | AL60: 801 | AN60: 6848 | AQ60: 1867 | AR60: 22.5 | AU60: 8896 | AV60: 20177 | AW60: 0 | AX60: 5008 | AY60: 305 | AZ60: 392 | BA60: 5705 | BB60: 6094 | BC60: 0 | BD60: 57 | BE60: 11 | BF60: 7 | BG60: 454 | BI60: 560 | BJ60: 0 | BL60: -106 | BM60: 0 | BN60: 0 | BO60: 0 | BP60: 0 | BQ60: -106 | BS60: -2798 | BY60: 905 | CA60: 7074 | CF60: 22.5 | CG60: 11.09 | CL60: 5561 | CM60: 0 | CN60: 5862.412021 | CO60: 5470.998613 | CQ60: 5470.998613 | CS60: 5988 | CU60: 5 | CV60: -359 | CW60: 4 | CX60: 22 | CY60: 0
A61: 182 | B61: Jämsä | C61: 21259 | D61: 21 | G61: 64992 | H61: 199557 | I61: 434 | J61: 71823 | K61: 8939 | L61: 6179 | M61: 86941 | N61: 61338 | O61: 24 | P61: 944 | Q61: 301 | R61: 203 | S61: 13326 | U61: 14169 | V61: 31 | X61: -812 | Y61: 21 | Z61: 23 | AA61: 2 | AB61: -14 | AD61: -826 | AF61: 12454 | AI61: -16116 | AL61: 11946 | AN61: 65510 | AQ61: 20877 | AR61: 21 | AU61: 63810 | AV61: 195533 | AW61: 1453 | AX61: 69890 | AY61: 9416 | AZ61: 6107 | BA61: 85413 | BB61: 57946 | BC61: 32 | BD61: 834 | BE61: 195 | BF61: 119 | BG61: 12363 | BI61: 15968 | BJ61: 0 | BL61: -3605 | BM61: 2267 | BN61: 26 | BO61: 0 | BP61: -10 | BQ61: -1374 | BS61: 11080 | BY61: 17588 | CA61: 71787 | CF61: 21 | CG61: 9.59 | CL61: 37820 | CM61: 0 | CN61: 43828.85653 | CO61: 41385.57809 | CQ61: 41385.57809 | CS61: 61338 | CU61: -1542 | CV61: -14092 | CW61: 481 | CX61: 815 | CY61: 193
A62: 186 | B62: Järvenpää | C62: 41529 | D62: 19.75 | G62: 137385 | H62: 330798 | I62: 9 | J62: 164643 | K62: 4222 | L62: 12621 | M62: 181486 | N62: 40080 | O62: 57 | P62: 1456 | Q62: 467 | R62: 539 | S62: 26060 | U62: 25558 | V62: 0 | X62: 502 | Y62: -92 | Z62: 100 | AA62: -197 | AB62: -2 | AD62: 111 | AF62: 43742 | AI62: -56867 | AL62: 16457 | AN62: 279613 | AQ62: 42572 | AR62: 19.75 | AU62: 127885 | AV62: 320599 | AW62: 533 | AX62: 163681 | AY62: 5316 | AZ62: 12903 | BA62: 181900 | BB62: 36638 | BC62: 1305 | BD62: 1339 | BE62: 439 | BF62: 1143 | BG62: 24764 | BI62: 33397 | BJ62: 57 | BL62: -8576 | BM62: -42 | BN62: 245 | BO62: 924 | BP62: 18 | BQ62: -7921 | BS62: 36104 | BY62: 13927 | CA62: 299420 | CF62: 19.75 | CG62: 8.34 | CL62: 24104 | CM62: 0 | CN62: 25196.16988 | CO62: 24640.70711 | CQ62: 24640.70711 | CS62: 40080 | CU62: -7625 | CV62: -47031 | CW62: 479 | CX62: 11634 | CY62: 0
A63: 202 | B63: Kaarina | C63: 32738 | D63: 19.25 | G63: 80043 | H63: 234729 | I63: 3 | J63: 126274 | K63: 4086 | L63: 6657 | M63: 137017 | N63: 36315 | O63: 611 | P63: 1211 | Q63: 661 | R63: 39 | S63: 18671 | U63: 12703 | V63: -500 | X63: 5468 | Y63: 33 | Z63: 5 | AA63: -4 | AB63: 38 | AD63: 5530 | AF63: 25281 | AI63: -14653 | AL63: 20494 | AN63: 106345 | AQ63: 33099 | AR63: 19.75 | AU63: 82653 | AV63: 236306 | AW63: 10 | AX63: 125226 | AY63: 4979 | AZ63: 7061 | BA63: 137266 | BB63: 33728 | BC63: 642 | BD63: 1256 | BE63: 672 | BF63: 19 | BG63: 17390 | BI63: 13520 | BJ63: 1 | BL63: 3871 | BM63: 0 | BN63: 4 | BO63: -3 | BP63: -8 | BQ63: 3856 | BS63: 29136 | BY63: 24445 | CA63: 118530 | CF63: 19.75 | CG63: 8.34 | CL63: 28113 | CM63: 0 | CN63: 28711.90752 | CO63: 27075.38044 | CQ63: 27075.38044 | CS63: 36315 | CU63: -3472 | CV63: -31031 | CW63: 146 | CX63: 4321 | CY63: 0
A64: 204 | B64: Kaavi | C64: 3154 | D64: 21.25 | G64: 14076 | H64: 35289 | I64: 9 | J64: 7268 | K64: 839 | L64: 1086 | M64: 9193 | N64: 13624 | O64: 3 | P64: 237 | Q64: 210 | R64: 26 | S64: 1563 | U64: 1498 | V64: 0 | X64: 65 | Y64: -7 | Z64: 2 | AA64: -2 | AB64: -11 | AD64: 43 | AF64: 1142 | AI64: -4687 | AL64: 886 | AN64: 17109 | AQ64: 3048 | AR64: 21.25 | AU64: 14106 | AV64: 35250 | AW64: 44 | AX64: 6988 | AY64: 1051 | AZ64: 995 | BA64: 9034 | BB64: 13323 | BC64: 6 | BD64: 306 | BE64: 202 | BF64: 22 | BG64: 1137 | BI64: 1676 | BJ64: 0 | BL64: -539 | BM64: 3 | BN64: 5 | BO64: -3 | BP64: -14 | BQ64: -558 | BS64: 666 | BY64: 1163 | CA64: 17209 | CF64: 21.75 | CG64: 10.34 | CL64: 11077 | CM64: 500 | CN64: 12679.08768 | CO64: 12635.04043 | CQ64: =CO64-CP64 -> 12635.04043 | CS64: 13624 | CU64: 22 | CV64: -1443 | CW64: 28 | CX64: 81 | CY64: 13
A65: 205 | B65: Kajaani | C65: 37521 | D65: 21 | G65: 333843 | H65: 525991 | I65: -4 | J65: 122245 | K65: 5118 | L65: 9770 | M65: 137133 | N65: 104928 | O65: 196 | P65: 5624 | Q65: 391 | R65: 1191 | S65: 42944 | U65: 37838 | V65: 116 | X65: 5222 | Y65: 380 | Z65: 0 | AA65: -326 | AB65: -371 | AD65: 4905 | AF65: 86242 | AI65: -62049 | AL65: 15871 | AN65: 327093 | AQ65: 37239 | AR65: 21 | AU65: 300207 | AV65: 501841 | AW65: 372 | AX65: 122933 | AY65: 5736 | AZ65: 9985 | BA65: 138654 | BB65: 115897 | BC65: 160 | BD65: 2348 | BE65: 1267 | BF65: 6890 | BG65: 44730 | BI65: 40492 | BJ65: 0 | BL65: 4238 | BM65: 58 | BN65: 787 | BO65: -1212 | BP65: -436 | BQ65: 1861 | BS65: 83131 | BY65: 20991 | CA65: 336027 | CF65: 21 | CG65: 9.59 | CL65: 69302 | CM65: 0 | CN65: 102010.8206 | CO65: 99901.45308 | CQ65: 99901.45308 | CS65: 104928 | CU65: 908 | CV65: -82955 | CW65: 884 | CX65: 28410 | CY65: -135
A66: 208 | B66: Kalajoki | C66: 12586 | D66: 20 | G66: 36431 | H66: 100091 | I66: 90 | J66: 33344 | K66: 2720 | L66: 3034 | M66: 39098 | N66: 35486 | O66: 83 | P66: 200 | Q66: 447 | R66: 355 | S66: 10891 | U66: 8959 | V66: -6 | X66: 1926 | Y66: 140 | Z66: 80 | AA66: -50 | AB66: 19 | AD66: 1955 | AF66: 23106 | AI66: -7003 | AL66: 23229 | AN66: 54062 | AQ66: 12516 | AR66: 20 | AU66: 37969 | AV66: 102797 | AW66: 49 | AX66: 32482 | AY66: 2716 | AZ66: 3557 | BA66: 38755 | BB66: 34367 | BC66: 68 | BD66: 471 | BE66: 730 | BF66: 56 | BG66: 8458 | BI66: 8322 | BJ66: 906 | BL66: 1042 | BM66: 6 | BN66: 53 | BO66: 36 | BP66: -65 | BQ66: 966 | BS66: 21970 | BY66: 26271 | CA66: 59412 | CF66: 20 | CG66: 8.59 | CL66: 26296 | CM66: 0 | CN66: 30269.81282 | CO66: 30150.14066 | CQ66: 30150.14066 | CS66: =N66-CR66 -> 35486 | CU66: -1188 | CV66: -11598 | CW66: 877 | CX66: 2154 | CY66: -763
A67: 211 | B67: Kangasala | C67: 31190 | D67: 21 | G67: 107497 | H67: 241477 | I67: 53 | J67: 114489 | K67: 3536 | L67: 6935 | M67: 124960 | N67: 38639 | O67: 26 | P67: 1751 | Q67: 1441 | R67: 50 | S67: 29339 | U67: 17886 | V67: 137 | X67: 11590 | Y67: 13 | Z67: 539 | AA67: -267 | AB67: -116 | AD67: 10681 | AF67: 59792 | AI67: -15285 | AL67: 54163 | AN67: 103137 | AQ67: 31437 | AR67: 21 | AU67: 109187 | AV67: 245528 | AW67: 172 | AX67: 117566 | AY67: 4095 | AZ67: 7080 | BA67: 128741 | BB67: 38279 | BC67: 20 | BD67: 1359 | BE67: 2864 | BF67: 475 | BG67: 31901 | BI67: 17812 | BJ67: 0 | BL67: 14089 | BM67: 1 | BN67: 360 | BO67: 701 | BP67: -124 | BQ67: 14307 | BS67: 72926 | BY67: 54946 | CA67: 101312 | CF67: 21 | CG67: 9.59 | CL67: 31664 | CM67: 0 | CN67: 38215.2086 | CO67: 36425.9576 | CQ67: 36425.9576 | CS67: 38639 | CU67: -365 | CV67: -21472 | CW67: 155 | CX67: 1566 | CY67: -47
A68: 213 | B68: Kangasniemi | C68: 5603 | D68: 20 | G68: 17544 | H68: 51783 | I68: 0 | J68: 13457 | K68: 2528 | L68: 1745 | M68: 17730 | N68: 19576 | O68: 25 | P68: 195 | Q68: 154 | R68: 2 | S68: 3050 | U68: 2560 | V68: 0 | X68: 490 | Y68: -8 | Z68: 0 | AA68: 0 | AB68: 9 | AD68: 491 | AF68: -1062 | AI68: -4979 | AL68: 1335 | AN68: 28939 | AQ68: 5549 | AR68: 20.75 | AU68: 24133 | AV68: 57883 | AW68: -5 | AX68: 14031 | AY68: 2828 | AZ68: 1826 | BA68: =AX68+AY68+AZ68 -> 18685 | BB68: 18676 | BC68: 27 | BD68: 256 | BE68: 148 | BF68: 3 | BG68: 3522 | BI68: 2607 | BJ68: 3 | BL68: 918 | BM68: -6 | BN68: 0 | BO68: 0 | BP68: 6 | BQ68: 918 | BS68: -213 | BY68: 2669 | CA68: 30220 | CF68: 20.75 | CG68: =CF68-$CG$1 -> 9.34 | CL68: 18214 | CM68: 0 | CN68: 18647.531 | CO68: 18015.51838 | CQ68: 18015.51838 | CS68: 19576 | CU68: 195 | CV68: -3436 | CW68: -289 | CX68: 214 | CY68: 56
A69: 214 | B69: Kankaanpää | C69: 11637 | D69: 21.5 | G69: 68027 | H69: 127235 | I69: 43 | J69: 35300 | K69: 2276 | L69: 3162 | M69: 40738 | N69: 28595 | O69: 47 | P69: 418 | Q69: 401 | R69: 31 | S69: 10167 | U69: 7530 | V69: 0 | X69: 2637 | Y69: -1 | Z69: 4 | AA69: -226 | AB69: -783 | AD69: 1623 | AF69: 9547 | AI69: -14213 | AL69: 7243 | AN69: 66193 | AQ69: 11585 | AR69: 21.5 | AU69: 67466 | AV69: 126957 | AW69: 23 | AX69: 34115 | AY69: 2752 | AZ69: 3002 | BA69: 39869 | BB69: 28508 | BC69: 22 | BD69: 446 | BE69: 769 | BF69: 34 | BG69: 9220 | BI69: 8672 | BJ69: 0 | BL69: 548 | BM69: -1 | BN69: 0 | BO69: -139 | BP69: -553 | BQ69: -145 | BS69: 9952 | BY69: 6687 | CA69: 67725 | CF69: 21.5 | CG69: 10.09 | CL69: 23062 | CM69: 0 | CN69: 27271.36784 | CO69: 26606.79389 | CQ69: 26606.79389 | CS69: 28595 | CU69: 1087 | CV69: -13216 | CW69: 848 | CX69: 1212 | CY69: 136
A70: 216 | B70: Kannonkoski | C70: 1424 | D70: 21 | G70: 14979 | H70: 23231 | I70: 0 | J70: 3259 | K70: 507 | L70: 438 | M70: 4204 | N70: 6414 | O70: 23 | P70: 52 | Q70: 30 | R70: 7 | S70: 2360 | U70: 1301 | V70: 0 | X70: 1059 | Y70: 3 | Z70: 0 | AA70: 0 | AB70: 9 | AD70: 1071 | AF70: 11362 | AI70: -1868 | AL70: 4497 | AN70: 10282 | AQ70: 1408 | AR70: 21 | AU70: 14824 | AV70: 23332 | AW70: 0 | AX70: 3216 | AY70: 570 | AZ70: 443 | BA70: 4229 | BB70: 5963 | BC70: 20 | BD70: 16 | BE70: 77 | BF70: 4 | BG70: 1761 | BI70: 1587 | BJ70: 320 | BL70: 494 | BM70: 4 | BN70: 0 | BO70: 0 | BP70: 9 | BQ70: 507 | BS70: 11862 | BY70: 4119 | CA70: 10558 | CF70: 21 | CG70: 9.59 | CL70: 5525 | CM70: 0 | CN70: 5940.811001 | CO70: 5689.158583 | CQ70: 5689.158583 | CS70: 6414 | CU70: 0 | CV70: -3298 | CW70: 22 | CX70: 340 | CY70: 0
A71: 217 | B71: Kannus | C71: 5578 | D71: 20.5 | G71: 25588 | H71: 52926 | I71: 148 | J71: 14785 | K71: 1076 | L71: 1310 | M71: 17171 | N71: 13214 | O71: 42 | P71: 189 | Q71: 28 | R71: 9 | S71: 3067 | U71: 2904 | V71: 0 | X71: 163 | Y71: -29 | Z71: 0 | AA71: 0 | AB71: -34 | AD71: 100 | AF71: 15556 | AI71: -2571 | AL71: 6707 | AN71: 22524 | AQ71: 5520 | AR71: 20.5 | AU71: 35050 | AV71: 62747 | AW71: 312 | AX71: 15135 | AY71: 1210 | AZ71: 1276 | BA71: 17621 | BB71: 13531 | BC71: 33 | BD71: 152 | BE71: 50 | BF71: 17 | BG71: 3681 | BI71: 3155 | BJ71: 0 | BL71: 526 | BM71: -27 | BN71: 54 | BO71: 0 | BP71: -36 | BQ71: 409 | BS71: 12434 | BY71: 7389 | CA71: 28275 | CF71: 21.5 | CG71: 10.09 | CL71: 12475 | CM71: 0 | CN71: 13534.92909 | CO71: 13147.49197 | CQ71: 13147.49197 | CS71: 13214 | CU71: -208 | CV71: -4034 | CW71: 43 | CX71: 108 | CY71: 34
A72: 218 | B72: Karijoki | C72: 1349 | D72: 22 | G72: 9804 | H72: 17798 | I72: 1 | J72: 3509 | K72: 265 | L72: 227 | M72: 4001 | N72: 4944 | O72: 1 | P72: 42 | Q72: 8 | R72: 4 | S72: 915 | U72: 461 | V72: 0 | X72: 454 | Y72: 15 | Z72: 6 | AA72: -1 | AB72: -2 | AD72: 460 | AF72: 960 | AI72: -402 | AL72: 2479 | AN72: 3089 | AQ72: 1329 | AR72: 22 | AU72: 9610 | AV72: 17813 | AW72: 0 | AX72: 3707 | AY72: 308 | AZ72: 227 | BA72: 4242 | BB72: 4983 | BC72: 0 | BD72: 38 | BE72: 9 | BF72: 5 | BG72: 989 | BI72: 459 | BJ72: 0 | BL72: 530 | BM72: 0 | BN72: 0 | BO72: -4 | BP72: -2 | BQ72: 524 | BS72: 1659 | BY72: 2939 | CA72: 2969 | CF72: 22 | CG72: 10.59 | CL72: 4078 | CM72: 0 | CN72: 4753.803806 | CO72: 4457.330947 | CQ72: 4457.330947 | CS72: 4944 | CU72: -56 | CV72: -643 | CW72: 4 | CX72: 125 | CY72: 0
A73: 224 | B73: Karkkila | C73: 8911 | D73: 20.75 | G73: 49149 | H73: 95747 | I73: -1 | J73: 28285 | K73: 1141 | L73: 2142 | M73: 31568 | N73: 20097 | O73: 31 | P73: 582 | Q73: 127 | R73: 111 | S73: 4526 | U73: 3776 | V73: 0 | X73: 750 | Y73: -2 | Z73: 0 | AA73: 0 | AB73: 1 | AD73: 749 | AF73: 2461 | AI73: -11440 | AL73: 7014 | AN73: 61174 | AQ73: 8900 | AR73: 20.75 | AU73: 50714 | AV73: 97193 | AW73: 0 | AX73: 27960 | AY73: 1347 | AZ73: 2251 | BA73: 31558 | BB73: 19650 | BC73: 33 | BD73: 650 | BE73: 131 | BF73: -132 | BG73: 4370 | BI73: 4082 | BJ73: 21 | BL73: 309 | BM73: 3 | BN73: 0 | BO73: 0 | BP73: 3 | BQ73: 315 | BS73: 2745 | BY73: 5466 | CA73: 62977 | CF73: 20.75 | CG73: 9.34 | CL73: 12675 | CM73: 0 | CN73: 17379.99544 | CO73: 17059.00824 | CQ73: 17059.00824 | CS73: 20097 | CU73: -620 | CV73: -8595 | CW73: 22 | CX73: 738 | CY73: -2
A74: 226 | B74: Karstula | C74: 4232 | D74: 20 | G74: 28416 | H74: 52086 | I74: 0 | J74: 9627 | K74: 1146 | L74: 948 | M74: 11721 | N74: 15297 | O74: 125 | P74: 132 | Q74: 35 | R74: 98 | S74: 3278 | U74: 3383 | V74: 0 | X74: -105 | Y74: 102 | Z74: 38 | AA74: 20 | AB74: -21 | AD74: -42 | AF74: 4181 | AI74: -2158 | AL74: 10591 | AN74: 20593 | AQ74: 4146 | AR74: 20 | AU74: 33982 | AV74: 58196 | AW74: 0 | AX74: 9803 | AY74: 1365 | AZ74: 962 | BA74: 12130 | BB74: 15983 | BC74: 80 | BD74: 35 | BE74: 30 | BF74: 84 | BG74: 3890 | BI74: 2810 | BJ74: 0 | BL74: 1080 | BM74: 183 | BN74: 45 | BO74: -28 | BP74: -68 | BQ74: 1122 | BS74: 5119 | BY74: 11877 | CA74: 22341 | CF74: 21 | CG74: 9.59 | CL74: 13386 | CM74: 0 | CN74: 15430.42588 | CO74: 14519.35586 | CQ74: 14519.35586 | CS74: 15297 | CU74: -25 | CV74: -3752 | CW74: 242 | CX74: 45 | CY74: 132
A75: 230 | B75: Karvia | C75: 2449 | D75: 19.75 | G75: 21615 | H75: 34390 | I75: 11 | J75: 5258 | K75: 596 | L75: 407 | M75: 6261 | N75: 8717 | O75: 36 | P75: 47 | Q75: 21 | R75: 8 | S75: 2203 | U75: 2363 | V75: 0 | X75: -160 | Y75: 0 | Z75: 2 | AA75: -113 | AB75: -319 | AD75: -594 | AF75: 12736 | AI75: -3088 | AL75: 3374 | AN75: 7666 | AQ75: 2403 | AR75: 19.75 | AU75: 21599 | AV75: 34103 | AW75: -2 | AX75: 5486 | AY75: 703 | AZ75: 536 | BA75: 6725 | BB75: 8588 | BC75: 11 | BD75: 83 | BE75: 138 | BF75: 9 | BG75: 2851 | BI75: 2331 | BJ75: 0 | BL75: 520 | BM75: 0 | BN75: 2 | BO75: -69 | BP75: -233 | BQ75: 216 | BS75: 13318 | BY75: 3981 | CA75: 10693 | CF75: 20.5 | CG75: 9.09 | CL75: 7817 | CM75: 0 | CN75: 8214.908805 | CO75: 7702.593442 | CQ75: 7702.593442 | CS75: 8717 | CU75: -225 | CV75: -5508 | CW75: 456 | CX75: 491 | CY75: -32
A76: 231 | B76: Kaskinen | C76: 1296 | D76: 21.5 | G76: 4084 | H76: 12213 | I76: 0 | J76: 4788 | K76: 954 | L76: 600 | M76: 6342 | N76: 1825 | O76: 2 | P76: 52 | Q76: 7 | R76: 3 | S76: -8 | U76: 1163 | V76: 6 | X76: -1165 | Y76: 63 | Z76: 0 | AA76: -46 | AB76: 0 | AD76: -1148 | AF76: 5907 | AI76: -746 | AL76: 883 | AN76: 4311 | AQ76: 1274 | AR76: 22 | AU76: 4118 | AV76: 11886 | AW76: 0 | AX76: 4837 | AY76: 1205 | AZ76: 596 | BA76: 6638 | BB76: 2217 | BC76: 1 | BD76: 58 | BE76: 14 | BF76: 10 | BG76: 1034 | BI76: 1111 | BJ76: 0 | BL76: -77 | BM76: 21 | BN76: 0 | BO76: -47 | BP76: 0 | BQ76: -103 | BS76: 5809 | BY76: 423 | CA76: 5469 | CF76: 22 | CG76: 10.59 | CL76: 151 | CM76: 0 | CN76: 2162.090436 | CO76: 2112.40035 | CQ76: 2112.40035 | CS76: 1825 | CU76: 0 | CV76: -2430 | CW76: 27 | CX76: 1 | CY76: 0
A77: 232 | B77: Kauhajoki | C77: 13772 | D77: 22 | G77: 87141 | H77: 169360 | I77: 144 | J77: 38682 | K77: 3501 | L77: 3375 | M77: 45558 | N77: 44581 | O77: 22 | P77: 1303 | Q77: 1336 | R77: 76 | S77: 8043 | U77: 8209 | V77: 0 | X77: -166 | Y77: -51 | Z77: 0 | AA77: -38 | AB77: -47 | AD77: -302 | AF77: -2123 | AI77: -10896 | AL77: 19012 | AN77: 90620 | AQ77: 13610 | AR77: 22 | AU77: 83982 | AV77: 163501 | AW77: 157 | AX77: 38421 | AY77: 4023 | AZ77: 3421 | BA77: 45865 | BB77: 43727 | BC77: 17 | BD77: 1135 | BE77: 1419 | BF77: 71 | BG77: 10460 | BI77: 8016 | BJ77: 0 | BL77: 2444 | BM77: -14 | BN77: 0 | BO77: -37 | BP77: 18 | BQ77: 2411 | BS77: 153 | BY77: 25438 | CA77: 93095 | CF77: 22 | CG77: 10.59 | CL77: 32678 | CM77: 940 | CN77: 39048.11859 | CO77: 37956.06177 | CQ77: 37956.06177 | CS77: 44581 | CU77: -531 | CV77: -8452 | CW77: 300 | CX77: 1198 | CY77: 33
A78: 233 | B78: Kauhava | C78: 16599 | D78: 21.75 | G78: 110472 | H78: 208223 | I78: 70 | J78: 47485 | K78: 3560 | L78: 3988 | M78: 55033 | N78: 56568 | O78: 190 | P78: 1171 | Q78: 141 | R78: 164 | S78: 12916 | U78: 11107 | V78: 0 | X78: 1809 | Y78: 317 | Z78: 121 | AA78: -15 | AB78: -48 | AD78: 1942 | AF78: 21863 | AI78: -18395 | AL78: 30179 | AN78: 107881 | AQ78: 16278 | AR78: 21.75 | AU78: 117673 | AV78: 212526 | AW78: 27 | AX78: 47136 | AY78: 4064 | AZ78: 3913 | BA78: 55113 | BB78: 56125 | BC78: 155 | BD78: 1098 | BE78: 228 | BF78: 183 | BG78: 15514 | BI78: 11844 | BJ78: 0 | BL78: 3670 | BM78: 629 | BN78: 194 | BO78: -35 | BP78: -46 | BQ78: 4024 | BS78: 25744 | BY78: 31545 | CA78: 108413 | CF78: 21.75 | CG78: 10.34 | CL78: 40697 | CM78: 0 | CN78: 49457.25477 | CO78: 48041.28488 | CQ78: 48041.28488 | CS78: 56568 | CU78: -537 | CV78: -13949 | CW78: 0 | CX78: 1553 | CY78: 2843
A79: 235 | B79: Kauniainen | C79: 9397 | D79: 16.5 | G79: 45374 | H79: 93074 | I79: 0 | J79: 57552 | K79: 1428 | L79: 3993 | M79: 62973 | N79: 433 | O79: 242 | P79: 440 | Q79: 163 | R79: 93 | S79: 15577 | U79: 8670 | V79: 201 | X79: 7108 | Y79: 111 | Z79: 6 | AA79: 27 | AB79: -1 | AD79: 7239 | AF79: 42805 | AI79: -1998 | AL79: 12155 | AN79: 19861 | AQ79: 9624 | AR79: 17 | AU79: 40332 | AV79: 93315 | AW79: 1 | AX79: 62530 | AY79: 2081 | AZ79: 4659 | BA79: 69270 | BB79: -796 | BC79: 226 | BD79: 334 | BE79: 136 | BF79: 89 | BG79: 15431 | BI79: 9319 | BJ79: 45 | BL79: 6157 | BM79: 83 | BN79: 5 | BO79: 18 | BP79: -8 | BQ79: 6245 | BS79: 49060 | BY79: 12107 | CA79: 21859 | CF79: 17 | CG79: 5.59 | CL79: 2668 | CM79: 0 | CN79: -904.7382838 | CO79: -2658.432058 | CQ79: -2658.432058 | CS79: 433 | CU79: -1143 | CV79: -18348 | CW79: 240 | CX79: 1348 | CY79: 61
A80: 236 | B80: Kaustinen | C80: 4298 | D80: 21.5 | G80: 23346 | H80: 45716 | I80: 107 | J80: 12296 | K80: 1411 | L80: 922 | M80: 14629 | N80: 12263 | O80: 67 | P80: 324 | Q80: 14 | R80: 136 | S80: 4139 | U80: 3114 | V80: 0 | X80: 1025 | Y80: 0 | Z80: 0 | AA80: 0 | AB80: -10 | AD80: 1015 | AF80: 8030 | AI80: -3685 | AL80: 4788 | AN80: 43081 | AQ80: 4309 | AR80: 21.5 | AU80: 28898 | AV80: 51486 | AW80: 172 | AX80: 11740 | AY80: 1457 | AZ80: 893 | BA80: 14090 | BB80: 12284 | BC80: 36 | BD80: 299 | BE80: 37 | BF80: 207 | BG80: 3418 | BI80: 3351 | BJ80: -12 | BL80: 55 | BM80: 0 | BN80: 0 | BO80: 0 | BP80: 0 | BQ80: 55 | BS80: 4606 | BY80: 5330 | CA80: 47846 | CF80: 21.5 | CG80: 10.09 | CL80: 8799 | CM80: 500 | CN80: 10301.17343 | CO80: 10622.52249 | CQ80: 10622.52249 | CS80: 12263 | CU80: -140 | CV80: -5327 | CW80: 49 | CX80: 106 | CY80: -5
A81: 239 | B81: Keitele | C81: 2346 | D81: 19.5 | G81: 10518 | H81: 24712 | I81: 9 | J81: 5688 | K81: 883 | L81: 534 | M81: 7105 | N81: 8360 | O81: 3 | P81: 91 | Q81: 87 | R81: 32 | S81: 1248 | U81: 976 | V81: 0 | X81: 272 | Y81: 0 | Z81: 0 | AA81: 0 | AB81: 0 | AD81: 272 | AF81: 1457 | AI81: -1173 | AL81: 916 | AN81: 15088 | AQ81: 2309 | AR81: 20.5 | AU81: 10079 | AV81: 25038 | AW81: 14 | AX81: 5995 | AY81: 759 | AZ81: 561 | BA81: 7315 | BB81: 8139 | BC81: 3 | BD81: 85 | BE81: 164 | BF81: 55 | BG81: 536 | BI81: 1036 | BJ81: 0 | BL81: -500 | BM81: 3 | BN81: 3 | BO81: -2 | BP81: -8 | BQ81: -510 | BS81: 986 | BY81: 650 | CA81: 17768 | CF81: 20.5 | CG81: 9.09 | CL81: 6963 | CM81: 0 | CN81: 7721.155477 | CO81: 7267.836077 | CQ81: 7267.836077 | CS81: 8360 | CU81: -1 | CV81: -1168 | CW81: 30 | CX81: 55 | CY81: 23
A82: 240 | B82: Kemi | C82: 21602 | D82: 21.25 | G82: 101524 | H82: 219573 | I82: 607 | J82: 74083 | K82: 5987 | L82: 6722 | M82: 86792 | N82: 51231 | O82: 11 | P82: 1782 | Q82: 262 | R82: 47 | S82: 18374 | U82: 14146 | V82: 0 | X82: 4228 | Y82: -86 | Z82: 852 | AA82: -135 | AB82: -44 | AD82: 3111 | AF82: -752 | AI82: -15766 | AL82: 16359 | AN82: 127693 | AQ82: 21256 | AR82: 21.25 | AU82: 105205 | AV82: 220500 | AW82: 173 | AX82: 73192 | AY82: 8112 | AZ82: 6624 | BA82: 87928 | BB82: 50128 | BC82: 45 | BD82: 1937 | BE82: 310 | BF82: 21 | BG82: 20683 | BI82: 13783 | BJ82: -60 | BL82: 6840 | BM82: -33 | BN82: 1185 | BO82: -135 | BP82: -46 | BQ82: 5441 | BS82: 4667 | BY82: 16633 | CA82: 120540 | CF82: 21.75 | CG82: 10.34 | CL82: 37066 | CM82: 0 | CN82: 46414.4251 | CO82: 44350.81024 | CQ82: 44350.81024 | CS82: 51231 | CU82: -283 | CV82: -15116 | CW82: 415 | CX82: 5605 | CY82: -7
A83: 320 | B83: Kemijärvi | C83: 7661 | D83: 21 | G83: 50692 | H83: 100658 | I83: 0 | J83: 23640 | K83: 1046 | L83: 4419 | M83: 29105 | N83: 30442 | O83: 90 | P83: 1222 | Q83: 1700 | R83: 539 | S83: 9610 | U83: 6874 | V83: 51 | X83: 2787 | Y83: -350 | Z83: 0 | AA83: -388 | AB83: 68 | AD83: 2117 | AF83: 5754 | AI83: 7378 | AL83: 11183 | AN83: 67228 | AQ83: 7534 | AR83: 21 | AU83: 50571 | AV83: 101010 | AW83: 0 | AX83: 23514 | AY83: 1292 | AZ83: 4347 | BA83: 29153 | BB83: 29068 | BC83: 101 | BD83: 1117 | BE83: 1610 | BF83: 428 | BG83: 7948 | BI83: 6922 | BJ83: 9 | BL83: 1035 | BM83: 61 | BN83: 0 | BO83: -416 | BP83: -397 | BQ83: 283 | BS83: 7243 | BY83: 11187 | CA83: 71662 | CF83: 21.5 | CG83: 10.09 | CL83: 27330 | CM83: 0 | CN83: 25855.8351 | CO83: 25118.65667 | CQ83: 25118.65667 | CS83: 30442 | CU83: 40 | CV83: -12082 | CW83: 190 | CX83: -205 | CY83: -353
A84: 241 | B84: Keminmaa | C84: 8316 | D84: 21.25 | G84: 27219 | H84: 68616 | I84: -2 | J84: 30641 | K84: 741 | L84: 3853 | M84: 35235 | N84: 13232 | O84: 6 | P84: 456 | Q84: 117 | R84: 26 | S84: 6647 | U84: 5513 | V84: -70 | X84: 1064 | Y84: -8 | Z84: 0 | AA84: -180 | AB84: 0 | AD84: 876 | AF84: 4666 | AI84: -4136 | AL84: 8930 | AN84: 31513 | AQ84: 8296 | AR84: 21.25 | AU84: 26511 | AV84: 68392 | AW84: 0 | AX84: 30084 | AY84: 925 | AZ84: 3812 | BA84: 34821 | BB84: 12703 | BC84: 3 | BD84: 380 | BE84: 135 | BF84: 20 | BG84: 5322 | BI84: 4048 | BJ84: -425 | BL84: 849 | BM84: 6 | BN84: 0 | BO84: -101 | BP84: 0 | BQ84: 754 | BS84: 5626 | BY84: 9230 | CA84: 29237 | CF84: 21.25 | CG84: 9.84 | CL84: 13024 | CM84: 0 | CN84: 12690.91948 | CO84: 11892.37949 | CQ84: 11892.37949 | CS84: 13232 | CU84: 84 | CV84: -3796 | CW84: 60 | CX84: 177 | CY84: 251
A85: 322 | B85: Kemiönsaari | C85: 6872 | D85: 19.75 | G85: 27501 | H85: 66357 | I85: 1 | J85: 18509 | K85: 735 | L85: 3154 | M85: 22398 | N85: 23042 | O85: -5 | P85: 476 | Q85: 141 | R85: 100 | S85: 6145 | U85: 5232 | V85: 0 | X85: 913 | Y85: 0 | Z85: 65 | AA85: 11 | AB85: -10 | AD85: 849 | AF85: 18364 | AI85: -4357 | AL85: 4989 | AN85: 33966 | AQ85: 6793 | AR85: 19.75 | AU85: 28373 | AV85: 66346 | AW85: 4 | AX85: 19154 | AY85: 1007 | AZ85: 3221 | BA85: 23382 | BB85: 22148 | BC85: -2 | BD85: 470 | BE85: 134 | BF85: 95 | BG85: 7128 | BI85: 5106 | BJ85: 0 | BL85: 2022 | BM85: 0 | BN85: 62 | BO85: -37 | BP85: -15 | BQ85: 1908 | BS85: 20132 | BY85: 7557 | CA85: 36308 | CF85: 19.75 | CG85: 8.34 | CL85: 17777 | CM85: 0 | CN85: 22140.79946 | CO85: 20759.3801 | CQ85: 20759.3801 | CS85: 23042 | CU85: -1116 | CV85: -7858 | CW85: 285 | CX85: 1641 | CY85: 0
A86: 244 | B86: Kempele | C86: 17297 | D86: 20.5 | G86: 33965 | H86: 114956 | I86: -66 | J86: 59921 | K86: 2599 | L86: 3133 | M86: 65653 | N86: 29055 | O86: 6 | P86: 935 | Q86: 47 | R86: 7 | S86: 12761 | U86: 7993 | V86: 0 | X86: 4768 | Y86: -3 | Z86: 5 | AA86: -14 | AB86: -3 | AD86: 4743 | AF86: 19699 | AI86: -6519 | AL86: 16658 | AN86: 54039 | AQ86: 17535 | AR86: 20.5 | AU86: 34369 | AV86: 119201 | AW86: 85 | AX86: 60190 | AY86: 3445 | AZ86: 3609 | BA86: 67244 | BB86: 28301 | BC86: 4 | BD86: 855 | BE86: 103 | BF86: 3 | BG86: 10047 | BI86: 8222 | BJ86: 0 | BL86: 1825 | BM86: 76 | BN86: 2 | BO86: 22 | BP86: 6 | BQ86: 1927 | BS86: 21414 | BY86: 13933 | CA86: 61107 | CF86: 20.5 | CG86: 9.09 | CL86: 17196 | CM86: 0 | CN86: 23963.54034 | CO86: 23035.50098 | CQ86: 23035.50098 | CS86: 29055 | CU86: -3373 | CV86: -22209 | CW86: 528 | CX86: 4008 | CY86: 67
A87: 245 | B87: Kerava | C87: 35511 | D87: 19.25 | G87: 179588 | H87: 327425 | I87: -29 | J87: 135018 | K87: 10037 | L87: 9512 | M87: 154567 | N87: 38434 | O87: 60 | P87: 1228 | Q87: 1100 | R87: 802 | S87: 43775 | U87: 28119 | V87: 0 | X87: 15656 | Y87: -1152 | Z87: -1 | AA87: -298 | AB87: -149 | AD87: 14058 | AF87: 166606 | AI87: -34252 | AL87: 18953 | AN87: 169055 | AQ87: 35554 | AR87: 19.25 | AU87: 178172 | AV87: 327844 | AW87: 28 | AX87: 135457 | AY87: 11635 | AZ87: 9734 | BA87: 156826 | BB87: 34423 | BC87: 132 | BD87: 904 | BE87: 1699 | BF87: 767 | BG87: 41261 | BI87: 29517 | BJ87: 134 | BL87: 11878 | BM87: 39 | BN87: 362 | BO87: -523 | BP87: -172 | BQ87: 10860 | BS87: 137647 | BY87: 22809 | CA87: 177664 | CF87: 19.25 | CG87: 7.84 | CL87: 18933 | CM87: 0 | CN87: 21369.7138 | CO87: 20390.10066 | CQ87: 20390.10066 | CS87: 38434 | CU87: -2460 | CV87: -56048 | CW87: 43 | CX87: 8785 | CY87: -69
A88: 249 | B88: Keuruu | C88: 9992 | D88: 20.5 | G88: 47554 | H88: 102147 | I88: 140 | J88: 28935 | K88: 2272 | L88: 2420 | M88: 33627 | N88: 31666 | O88: 39 | P88: 698 | Q88: 171 | R88: 28 | S88: 10250 | U88: 10240 | V88: -1 | X88: 9 | Y88: 0 | Z88: 84 | AA88: -171 | AB88: -341 | AD88: -587 | AF88: 10953 | AI88: -18921 | AL88: 5100 | AN88: 95266 | AQ88: 9919 | AR88: 20.5 | AU88: 52407 | AV88: 105050 | AW88: 125 | AX88: 28769 | AY88: 2595 | AZ88: 2449 | BA88: 33813 | BB88: 31687 | BC88: 36 | BD88: 651 | BE88: 152 | BF88: 41 | BG88: 12400 | BI88: 9916 | BJ88: 0 | BL88: 2484 | BM88: 11 | BN88: 38 | BO88: -94 | BP88: -219 | BQ88: 2144 | BS88: 13623 | BY88: 6006 | CA88: 100404 | CF88: 21.5 | CG88: 10.09 | CL88: 24249 | CM88: 0 | CN88: 28336.34138 | CO88: 27525.33836 | CQ88: 27525.33836 | CS88: 31666 | CU88: -189 | CV88: -15195 | CW88: 60 | CX88: 298 | CY88: 0
A89: 250 | B89: Kihniö | C89: 1994 | D89: 21.5 | G89: 5638 | H89: 18134 | I89: 3 | J89: 5027 | K89: 577 | L89: 499 | M89: 6103 | N89: 7451 | O89: 3 | P89: 138 | Q89: 41 | R89: 21 | S89: 943 | U89: 1137 | V89: -11 | X89: -205 | Y89: 1 | Z89: 9 | AA89: -6 | AB89: -13 | AD89: -232 | AF89: -198 | AI89: -539 | AL89: 1944 | AN89: 9145 | AQ89: 1967 | AR89: 21.5 | AU89: 5798 | AV89: 18419 | AW89: 12 | AX89: 4685 | AY89: 706 | AZ89: 492 | BA89: 5883 | BB89: 7665 | BC89: 3 | BD89: 146 | BE89: 124 | BF89: 21 | BG89: 896 | BI89: 1017 | BJ89: 0 | BL89: -121 | BM89: 0 | BN89: 10 | BO89: -4 | BP89: -16 | BQ89: -151 | BS89: -428 | BY89: 2638 | CA89: 10723 | CF89: 21.5 | CG89: 10.09 | CL89: 5249 | CM89: 0 | CN89: 6975.327733 | CO89: 6703.863081 | CQ89: 6703.863081 | CS89: 7451 | CU89: 69 | CV89: -1738 | CW89: 2 | CX89: 131 | CY89: 41
A90: 256 | B90: Kinnula | C90: 1699 | D90: 20.5 | G90: 6500 | H90: 17762 | I90: 0 | J90: 3896 | K90: 505 | L90: 364 | M90: 4765 | N90: 7659 | O90: 88 | P90: 12 | Q90: 58 | R90: 46 | S90: 1245 | U90: 986 | V90: 0 | X90: 259 | Y90: 0 | Z90: 0 | AA90: 0 | AB90: 0 | AD90: 259 | AF90: 6436 | AI90: -1689 | AL90: 3137 | AN90: 7472 | AQ90: 1656 | AR90: 20.5 | AU90: 6144 | AV90: 17047 | AW90: 0 | AX90: 3838 | AY90: 578 | AZ90: 365 | BA90: 4781 | BB90: 7543 | BC90: 90 | BD90: 6 | BE90: 61 | BF90: 5 | BG90: 1558 | BI90: 990 | BJ90: 0 | BL90: 568 | BM90: 2 | BN90: 0 | BO90: 0 | BP90: 0 | BQ90: 570 | BS90: 7397 | BY90: 3927 | CA90: 7980 | CF90: 20.5 | CG90: 9.09 | CL90: 6712 | CM90: 0 | CN90: 7131.336862 | CO90: 6652.597043 | CQ90: 6652.597043 | CS90: 7659 | CU90: 19 | CV90: -1137 | CW90: 1 | CX90: 146 | CY90: 0
A91: 257 | B91: Kirkkonummi | C91: 39033 | D91: 19.5 | G91: 111256 | H91: 302460 | I91: 11 | J91: 168325 | K91: 6644 | L91: 9806 | M91: 184775 | N91: 31602 | O91: 26 | P91: 2046 | Q91: 712 | R91: 319 | S91: 23557 | U91: 19968 | V91: 0 | X91: 3589 | Y91: 36 | Z91: 1 | AA91: -6 | AB91: 54 | AD91: 3672 | AF91: 25076 | AI91: -26950 | AL91: 33601 | AN91: 163451 | AQ91: 39170 | AR91: 19.5 | AU91: 112139 | AV91: 307827 | AW91: -55 | AX91: 171018 | AY91: 7265 | AZ91: 11436 | BA91: 189719 | BB91: 29021 | BC91: 69 | BD91: 1733 | BE91: 644 | BF91: 292 | BG91: 21678 | BI91: 20514 | BJ91: 150 | BL91: 1314 | BM91: 83 | BN91: 0 | BO91: -136 | BP91: 52 | BQ91: 1313 | BS91: 26943 | BY91: 27864 | CA91: 162359 | CF91: 19.5 | CG91: 8.09 | CL91: 23248 | CM91: 0 | CN91: 22519.01799 | CO91: 19650.41766 | CQ91: 19650.41766 | CS91: 31602 | CU91: -1502 | CV91: -29756 | CW91: -295 | CX91: 1766 | CY91: 87
A92: 260 | B92: Kitee | C92: 10719 | D92: 22 | G92: 36118 | H92: 99240 | I92: 1 | J92: 29349 | K92: 2263 | L92: 3105 | M92: 34717 | N92: 40355 | O92: 53 | P92: 417 | Q92: 421 | R92: 17 | S92: 11790 | U92: 5058 | V92: 0 | X92: 6732 | Y92: 11 | Z92: 0 | AA92: -80 | AB92: -25 | AD92: 6638 | AF92: 14282 | AI92: -5278 | AL92: 9425 | AN92: 30246 | AQ92: 10486 | AR92: 21.5 | AU92: 62385 | AV92: 124759 | AW92: 0 | AX92: 28980 | AY92: 2594 | AZ92: 2748 | BA92: 34322 | BB92: 40203 | BC92: 44 | BD92: 318 | BE92: 454 | BF92: 5 | BG92: 12207 | BI92: 5796 | BJ92: 533 | BL92: 6944 | BM92: -55 | BN92: 67 | BO92: -94 | BP92: -31 | BQ92: 6697 | BS92: 20997 | BY92: 14202 | CA92: 25747 | CF92: 21.5 | CG92: 10.09 | CL92: 20251 | CM92: 0 | CN92: 38024.94675 | CO92: 36954.6482 | CQ92: 36954.6482 | CS92: 40355 | CU92: -44 | CV92: -14176 | CW92: 23 | CX92: 11309 | CY92: -303
A93: 261 | B93: Kittilä | C93: 6383 | D93: 20.25 | G93: 49113 | H93: 83063 | I93: 1010 | J93: 19016 | K93: 3484 | L93: 5995 | M93: 28495 | N93: 21584 | O93: 19 | P93: 1054 | Q93: 488 | R93: 604 | S93: 15988 | U93: 8661 | V93: 4 | X93: 7331 | Y93: 519 | Z93: 51 | AA93: -64 | AB93: -455 | AD93: 7280 | AF93: 38466 | AI93: -7108 | AL93: 5382 | AN93: 56718 | AQ93: 6421 | AR93: 20.25 | AU93: 49471 | AV93: 83698 | AW93: 0 | AX93: 19635 | AY93: 7107 | AZ93: 2402 | BA93: 29144 | BB93: 20402 | BC93: 17 | BD93: 895 | BE93: 768 | BF93: 1179 | BG93: 14030 | BI93: 8419 | BJ93: -55 | BL93: 5556 | BM93: 891 | BN93: 529 | BO93: -84 | BP93: 584 | BQ93: 6418 | BS93: 44152 | BY93: 6068 | CA93: 50840 | CF93: 20.25 | CG93: 8.84 | CL93: 16777 | CM93: 0 | CN93: 20430.34681 | CO93: 21129.46523 | CQ93: 21129.46523 | CS93: 21584 | CU93: 42 | CV93: -7950 | CW93: 139 | CX93: 90 | CY93: 46
A94: 263 | B94: Kiuruvesi | C94: 8444 | D94: 20.75 | G94: 46966 | H94: 100500 | I94: 67 | J94: 20093 | K94: 1780 | L94: 1683 | M94: 23556 | N94: 35302 | O94: 13 | P94: 488 | Q94: 679 | R94: 234 | S94: 5218 | U94: 5236 | V94: 122 | X94: 104 | Y94: 88 | Z94: 4 | AA94: -13 | AB94: -16 | AD94: 159 | AF94: 2254 | AI94: -5730 | AL94: 11048 | AN94: 54562 | AQ94: 8283 | AR94: 20.75 | AU94: 47164 | AV94: 100169 | AW94: 118 | AX94: 20787 | AY94: 1986 | AZ94: 1717 | BA94: 24490 | BB94: 34732 | BC94: 20 | BD94: 523 | BE94: 1219 | BF94: 199 | BG94: 6711 | BI94: 6436 | BJ94: 1 | BL94: 276 | BM94: 9 | BN94: 9 | BO94: -51 | BP94: -13 | BQ94: 212 | BS94: 2622 | BY94: 10841 | CA94: 56500 | CF94: 20.75 | CG94: 9.34 | CL94: 27709 | CM94: 0 | CN94: 31254.27332 | CO94: 29686.99675 | CQ94: 29686.99675 | CS94: 35302 | CU94: -18 | CV94: -7498 | CW94: 533 | CX94: 109 | CY94: -1
A95: 265 | B95: Kivijärvi | C95: 1161 | D95: 21 | G95: 10659 | H95: 19151 | I95: 0 | J95: 2511 | K95: 386 | L95: 530 | M95: 3427 | N95: 5820 | O95: 11 | P95: 73 | Q95: 11 | R95: 1 | S95: 703 | U95: 1273 | V95: 0 | X95: -570 | Y95: -1 | Z95: 1 | AA95: 0 | AB95: 0 | AD95: -572 | AF95: 2250 | AI95: -713 | AL95: 2816 | AN95: 7566 | AQ95: 1132 | AR95: 21 | AU95: 10431 | AV95: 18291 | AW95: 0 | AX95: 2518 | AY95: 619 | AZ95: 379 | BA95: 3516 | BB95: 5541 | BC95: 10 | BD95: 67 | BE95: 13 | BF95: 1 | BG95: 1152 | BI95: 1369 | BJ95: 0 | BL95: -217 | BM95: 1 | BN95: 0 | BO95: -1 | BP95: 0 | BQ95: -217 | BS95: 2060 | BY95: 2657 | CA95: 7771 | CF95: 21.5 | CG95: 10.09 | CL95: 5040 | CM95: 0 | CN95: 5252.621035 | CO95: 4813.350646 | CQ95: 4813.350646 | CS95: 5820 | CU95: -1 | CV95: -1112 | CW95: 1 | CX95: 20 | CY95: -12
A96: 271 | B96: Kokemäki | C96: 7498 | D96: 21.25 | G96: 32221 | H96: 75437 | I96: 0 | J96: 22613 | K96: 1508 | L96: 2382 | M96: 26503 | N96: 21069 | O96: 7 | P96: 302 | Q96: 49 | R96: 29 | S96: 4157 | U96: 3509 | V96: 0 | X96: 648 | Y96: 44 | Z96: 0 | AA96: -30 | AB96: 4 | AD96: 666 | AF96: -127 | AI96: -5378 | AL96: 5083 | AN96: 37974 | AQ96: 7381 | AR96: 21.75 | AU96: 31895 | AV96: 74205 | AW96: 15 | AX96: 22874 | AY96: 1653 | AZ96: 2301 | BA96: 26828 | BB96: 19889 | BC96: 10 | BD96: 276 | BE96: 58 | BF96: 38 | BG96: 4128 | BI96: 3484 | BJ96: 0 | BL96: 644 | BM96: 25 | BN96: 0 | BO96: -24 | BP96: 0 | BQ96: 645 | BS96: 1069 | BY96: 4480 | CA96: 35522 | CF96: 21.75 | CG96: 10.34 | CL96: 16561 | CM96: 0 | CN96: 18091.88089 | CO96: 17110.43362 | CQ96: 17110.43362 | CS96: 21069 | CU96: 64 | CV96: -3662 | CW96: 70 | CX96: 11 | CY96: 0
A97: 272 | B97: Kokkola | C97: 47723 | D97: 21.5 | G97: 358041 | H97: 579936 | I97: -67 | J97: 156556 | K97: 12923 | L97: 14432 | M97: 183911 | N97: 86936 | O97: 176 | P97: 5632 | Q97: 1192 | R97: 157 | S97: 44464 | U97: 40395 | V97: -52 | X97: 4017 | Y97: 103 | Z97: 92 | AA97: -1296 | AB97: -35 | AD97: 2697 | AF97: 55287 | AI97: -40981 | AL97: 80324 | AN97: 461743 | AQ97: 47723 | AR97: 21.75 | AU97: 327002 | AV97: 537772 | AW97: 520 | AX97: 159221 | AY97: 16028 | AZ97: 15456 | BA97: 190705 | BB97: 86873 | BC97: 445 | BD97: 4593 | BE97: 2005 | BF97: 355 | BG97: 64363 | BI97: 42548 | BJ97: 25022 | BL97: 46837 | BM97: -1261 | BN97: 2222 | BO97: -1119 | BP97: -325 | BQ97: 41910 | BS97: 98572 | BY97: 108562 | CA97: 452664 | CF97: 21.75 | CG97: 10.34 | CL97: 66787 | CM97: 0 | CN97: 86990.13575 | CO97: 86450.54871 | CQ97: 86450.54871 | CS97: 86936 | CU97: -4605 | CV97: -55797 | CW97: 1833 | CX97: -43 | CY97: -575
B98: KOKO MAA (Manner-Suomi) | C98: 5474083 | D98: 19.89 | G98: 23891978 | H98: 50389944 | I98: 68081 | J98: 18807344 | K98: 1539341 | L98: 1640918 | M98: 21987603 | N98: 10050212 | O98: 77076 | P98: 461683 | Q98: 186106 | R98: 69647 | S98: 5294232 | U98: 3936135 | V98: 322374 | X98: 1680471 | Y98: -15533 | Z98: 68562 | AA98: -43947 | AB98: -32889 | AD98: 1519540 | AF98: 10805452 | AI98: -5640611 | AL98: 6826757 | AN98: 33709261 | AQ98: 5483641 | AR98: 19.92 | AU98: 24653392 | AV98: 50758330 | AW98: 81900 | AX98: 18827691 | AY98: 1887798 | AZ98: 1719296 | BA98: 22434785 | BB98: 9699290 | BC98: 78182 | BD98: 449810 | BE98: 223419 | BF98: 67744 | BG98: 5909985 | BI98: 4146302 | BJ98: 84151 | BL98: 1847834 | BM98: -9621 | BN98: 78796 | BO98: -48127 | BP98: -39026 | BQ98: 1672264 | BS98: 12311904 | BY98: 7560048 | CA98: 34624959 | CF98: 19.87 | CG98: 8.46 | CL98: 7374694 | CM98: 20000 | CN98: 8501912.987 | CO98: 8201794.861 | CQ98: 8201794.861 | CS98: 10050212 | CU98: -515804 | CV98: -7342002 | CW98: 215662 | CX98: 1299721 | CY98: -36484
A99: 273 | B99: Kolari | C99: 3827 | D99: 20 | G99: 14886 | H99: 37908 | I99: 0 | J99: 10199 | K99: 630 | L99: 3097 | M99: 13926 | N99: 14194 | O99: 6 | P99: 187 | Q99: 52 | R99: 18 | S99: 4907 | U99: 3109 | V99: 0 | X99: 1798 | Y99: 0 | Z99: 7 | AA99: -4 | AB99: -11 | AD99: 1776 | AF99: 8490 | AI99: -3422 | AL99: 4642 | AN99: 12473 | AQ99: 3854 | AR99: 20 | AU99: 13684 | AV99: 36769 | AW99: 0 | AX99: 9989 | AY99: 3410 | AZ99: 732 | BA99: 14131 | BB99: 14401 | BC99: 7 | BD99: 144 | BE99: 20 | BF99: 15 | BG99: 5269 | BI99: 3140 | BJ99: -381 | BL99: 1748 | BM99: -29 | BN99: 5 | BO99: -9 | BP99: -6 | BQ99: 1699 | BS99: 12271 | BY99: 3844 | CA99: 11012 | CF99: 20 | CG99: 8.59 | CL99: 10196 | CM99: 0 | CN99: 14368.65125 | CO99: 14352.11688 | CQ99: 14352.11688 | CS99: 14194 | CU99: -30 | CV99: -6267 | CW99: 133 | CX99: 492 | CY99: -584
A100: 275 | B100: Konnevesi | C100: 2753 | D100: 21.5 | G100: 9089 | H100: 26265 | I100: 0 | J100: 7270 | K100: 675 | L100: 772 | M100: 8717 | N100: 9929 | O100: 135 | P100: 156 | Q100: 5 | R100: 32 | S100: 1402 | U100: 1410 | V100: 0 | X100: -8 | Y100: -30 | Z100: 23 | AA100: 0 | AB100: 0 | AD100: -61 | AF100: 3640 | AI100: -6884 | AL100: 3247 | AN100: 23472 | AQ100: 2748 | AR100: 21.5 | AU100: 8854 | AV100: 26500 | AW100: 0 | AX100: 7241 | AY100: 808 | AZ100: 765 | BA100: 8814 | BB100: 9500 | BC100: 240 | BD100: 230 | BE100: 4 | BF100: 23 | BG100: 638 | BI100: 1814 | BJ100: 0 | BL100: -1176 | BM100: -65 | BN100: 21 | BO100: 1 | BP100: 0 | BQ100: -1261 | BS100: 2680 | BY100: 3295 | CA100: 27023 | CF100: 22 | CG100: 10.59 | CL100: 7998 | CM100: 0 | CN100: 8999.532681 | CO100: 8570.32975 | CQ100: 8570.32975 | CS100: 9929 | CU100: -1 | CV100: -4208 | CW100: 15 | CX100: 168 | CY100: 63
A101: 276 | B101: Kontiolahti | C101: 14806 | D101: 20.5 | G101: 34020 | H101: 96881 | I101: 18 | J101: 46273 | K101: 2005 | L101: 2601 | M101: 50879 | N101: 22092 | O101: 26 | P101: 1117 | Q101: 280 | R101: 5 | S101: 9312 | U101: 5631 | V101: 7 | X101: 3688 | Y101: 89 | Z101: 0 | AA101: -4 | AB101: 4 | AD101: 3777 | AF101: 24094 | AI101: -5937 | AL101: 14318 | AN101: 65149 | AQ101: 14830 | AR101: 20.5 | AU101: 55600 | AV101: 121480 | AW101: 19 | AX101: 46157 | AY101: 1873 | AZ101: 2721 | BA101: 50751 | BB101: 23393 | BC101: 17 | BD101: 1021 | BE101: 307 | BF101: 10 | BG101: 7577 | BI101: 6116 | BJ101: 418 | BL101: 1879 | BM101: 39 | BN101: 0 | BO101: -1 | BP101: -4 | BQ101: 1913 | BS101: 25920 | BY101: 10276 | CA101: 59344 | CF101: 20.5 | CG101: 9.09 | CL101: 21930 | CM101: 0 | CN101: 23443.6051 | CO101: 22293.23588 | CQ101: 22293.23588 | CS101: 22092 | CU101: -487 | CV101: -19485 | CW101: 218 | CX101: 4065 | CY101: -1
A102: 280 | B102: Korsnäs | C102: 2171 | D102: 21 | G102: 7869 | H102: 19768 | I102: 0 | J102: 5467 | K102: 882 | L102: 694 | M102: 7043 | N102: 7121 | O102: 0 | P102: 58 | Q102: 19 | R102: 23 | S102: 2203 | U102: 1312 | V102: 0 | X102: 891 | Y102: 0 | Z102: 0 | AA102: 0 | AB102: 0 | AD102: 891 | AF102: 8844 | AI102: -2322 | AL102: 1492 | AN102: 3834 | AQ102: 2154 | AR102: 21 | AU102: 7558 | AV102: 19680 | AW102: -3 | AX102: 5407 | AY102: 975 | AZ102: 709 | BA102: 7091 | BB102: 6824 | BC102: 0 | BD102: 56 | BE102: 16 | BF102: 1 | BG102: 1748 | BI102: 1256 | BJ102: 20 | BL102: 512 | BM102: 0 | BN102: 0 | BO102: 0 | BP102: 0 | BQ102: 512 | BS102: 9341 | BY102: 873 | CA102: 3540 | CF102: 21 | CG102: 9.59 | CL102: 5701 | CM102: 0 | CN102: 6824.470678 | CO102: 6451.208499 | CQ102: 6451.208499 | CS102: 7121 | CU102: -19 | CV102: -1820 | CW102: 70 | CX102: 50 | CY102: -10
A103: 284 | B103: Koski tl | C103: 2416 | D103: 19.5 | G103: 9567 | H103: 22621 | I103: 0 | J103: 5938 | K103: 374 | L103: 475 | M103: 6787 | N103: 7515 | O103: 18 | P103: 19 | Q103: 23 | R103: 2 | S103: 1266 | U103: 1026 | V103: 0 | X103: 240 | Y103: 127 | Z103: 0 | AA103: 0 | AB103: 0 | AD103: 367 | AF103: 4359 | AI103: -1478 | AL103: 3010 | AN103: 1760 | AQ103: 2359 | AR103: 19.5 | AU103: 9690 | AV103: 22564 | AW103: 1 | AX103: 6359 | AY103: 543 | AZ103: 536 | BA103: 7438 | BB103: 7397 | BC103: 7 | BD103: 29 | BE103: 22 | BF103: 1 | BG103: 1958 | BI103: 1064 | BJ103: 0 | BL103: 894 | BM103: 65 | BN103: 0 | BO103: 0 | BP103: 0 | BQ103: 959 | BS103: 5381 | BY103: 2271 | CA103: 1515 | CF103: 19.5 | CG103: 8.09 | CL103: 6324 | CM103: 0 | CN103: 7348.382786 | CO103: 7183.21518 | CQ103: 7183.21518 | CS103: 7515 | CU103: 53 | CV103: -2002 | CW103: 53 | CX103: 38 | CY103: 0
A104: 285 | B104: Kotka | C104: 54187 | D104: 20.5 | G104: 282298 | H104: 538861 | I104: 4292 | J104: 185958 | K104: 8225 | L104: 15395 | M104: 209578 | N104: 123450 | O104: 119 | P104: 8381 | Q104: 129 | R104: 3041 | S104: 68154 | U104: 56064 | V104: 159 | X104: 12249 | Y104: 0 | Z104: 2547 | AA104: -185 | AB104: -2760 | AD104: 6757 | AF104: -41678 | AI104: -52461 | AL104: 53238 | AN104: 594337 | AQ104: 53539 | AR104: 21.5 | AU104: 283620 | AV104: 530822 | AW104: 1172 | AX104: 191014 | AY104: 10128 | AZ104: 15046 | BA104: 216188 | BB104: 120860 | BC104: 157 | BD104: 6917 | BE104: 209 | BF104: 3402 | BG104: 79654 | BI104: 64407 | BJ104: 48218 | BL104: 63465 | BM104: 0 | BN104: 3058 | BO104: -212 | BP104: -2700 | BQ104: 57495 | BS104: 15728 | BY104: 130548 | CA104: 560306 | CF104: 21.5 | CG104: 10.09 | CL104: 75460 | CM104: 0 | CN104: 106481.1603 | CO104: 110114.8524 | CQ104: 110114.8524 | CS104: 123450 | CU104: -1371 | CV104: -89381 | CW104: 1826 | CX104: 48626 | CY104: 107
A105: 286 | B105: Kouvola | C105: 85306 | D105: 20.75 | G105: 291984 | H105: 748987 | I105: 122 | J105: 294657 | K105: 17467 | L105: 28776 | M105: 340900 | N105: 175852 | O105: 343 | P105: 5743 | Q105: 4000 | R105: 1360 | S105: 55624 | U105: 37804 | V105: 1492 | X105: 19312 | Y105: 2 | Z105: 2184 | AA105: -187 | AB105: -40 | AD105: 16903 | AF105: 19071 | AI105: -42325 | AL105: 58095 | AN105: 333587 | AQ105: 84196 | AR105: 20.75 | AU105: 295120 | AV105: 743319 | AW105: 1968 | AX105: 289198 | AY105: 20631 | AZ105: 28306 | BA105: 338135 | BB105: 169167 | BC105: 446 | BD105: 5366 | BE105: 2534 | BF105: 409 | BG105: 56800 | BI105: 44774 | BJ105: 0 | BL105: 12026 | BM105: 0 | BN105: 2649 | BO105: -522 | BP105: 9 | BQ105: 8864 | BS105: 36695 | BY105: 69515 | CA105: 346723 | CF105: 20.75 | CG105: 9.34 | CL105: 146689 | CM105: 0 | CN105: 169315.38 | CO105: 164686.8053 | CQ105: 164686.8053 | CS105: 175852 | CU105: -3042 | CV105: -63890 | CW105: 957 | CX105: 4778 | CY105: 3
A106: 287 | B106: Kristiinankaupunki | C106: 6727 | D106: 21.5 | G106: 24125 | H106: 58948 | I106: 0 | J106: 19971 | K106: 1257 | L106: 2026 | M106: 23254 | N106: 20967 | O106: 2 | P106: 502 | Q106: 67 | R106: 61 | S106: 8903 | U106: 3057 | V106: 0 | X106: 5846 | Y106: 5 | Z106: 0 | AA106: -16 | AB106: 0 | AD106: 5835 | AF106: 7763 | AI106: 1901 | AL106: 5602 | AN106: 27071 | AQ106: 6638 | AR106: 21.5 | AU106: 16952 | AV106: 54919 | AW106: 0 | AX106: 20406 | AY106: 1573 | AZ106: 2118 | BA106: 24097 | BB106: 20662 | BC106: 1 | BD106: 513 | BE106: 99 | BF106: 68 | BG106: 6311 | BI106: 3176 | BJ106: 40 | BL106: 3175 | BM106: -35 | BN106: 0 | BO106: -4 | BP106: 0 | BQ106: 3136 | BS106: 10654 | BY106: 2246 | CA106: 26451 | CF106: 21.5 | CG106: 10.09 | CL106: 16902 | CM106: 0 | CN106: 20843.24101 | CO106: 20052.91895 | CQ106: 20052.91895 | CS106: 20967 | CU106: -1585 | CV106: -9419 | CW106: 0 | CX106: 1635 | CY106: 0
A107: 288 | B107: Kruunupyy | C107: 6620 | D107: 20.75 | G107: 20736 | H107: 56429 | I107: 8 | J107: 18792 | K107: 1509 | L107: 2037 | M107: 22338 | N107: 16499 | O107: 14 | P107: 406 | Q107: 195 | R107: 19 | S107: 2936 | U107: 2488 | V107: -1 | X107: 447 | Y107: 141 | Z107: 0 | AA107: 0 | AB107: -1 | AD107: 587 | AF107: 7276 | AI107: -3146 | AL107: 4711 | AN107: 24642 | AQ107: 6531 | AR107: 21.25 | AU107: 24300 | AV107: 59838 | AW107: 29 | AX107: 18706 | AY107: 1585 | AZ107: 2466 | BA107: 22757 | BB107: 16625 | BC107: 10 | BD107: 385 | BE107: 438 | BF107: 7 | BG107: 3929 | BI107: 2460 | BJ107: 22 | BL107: 1491 | BM107: 114 | BN107: 14 | BO107: -3 | BP107: 1 | BQ107: 1589 | BS107: 8868 | BY107: 4276 | CA107: 26247 | CF107: 22 | CG107: 10.59 | CL107: 15567 | CM107: 0 | CN107: 16560.55015 | CO107: 15909.28051 | CQ107: 15909.28051 | CS107: 16499 | CU107: -64 | CV107: -4801 | CW107: 153 | CX107: 49 | CY107: -3
A108: 290 | B108: Kuhmo | C108: 8647 | D108: 21.5 | G108: 48786 | H108: 105791 | I108: 0 | J108: 23817 | K108: 2734 | L108: 2156 | M108: 28707 | N108: 32534 | O108: 36 | P108: 245 | Q108: 1433 | R108: 441 | S108: 5019 | U108: 4329 | V108: 294 | X108: 984 | Y108: -48 | Z108: 0 | AA108: -28 | AB108: -69 | AD108: 839 | AF108: 7259 | AI108: -8364 | AL108: 26769 | AN108: 33946 | AQ108: 8499 | AR108: 21.5 | AU108: 50942 | AV108: 106694 | AW108: 2 | AX108: 23766 | AY108: 3190 | AZ108: 2141 | BA108: 29097 | BB108: 32233 | BC108: 86 | BD108: 224 | BE108: 1492 | BF108: 243 | BG108: 6691 | BI108: 5095 | BJ108: 0 | BL108: 1596 | BM108: 12 | BN108: 0 | BO108: -147 | BP108: -159 | BQ108: 1302 | BS108: 8637 | BY108: 32023 | CA108: 50402 | CF108: 21.5 | CG108: 10.09 | CL108: 26933 | CM108: 0 | CN108: 32204.9834 | CO108: 31514.991 | CQ108: 31514.991 | CS108: 32534 | CU108: 747 | CV108: -20934 | CW108: 160 | CX108: 541 | CY108: -149
A109: 291 | B109: Kuhmoinen | C109: 2286 | D109: 20.75 | G109: 4341 | H109: 21187 | I109: 1 | J109: 6063 | K109: 861 | L109: 1343 | M109: 8267 | N109: 10594 | O109: 120 | P109: 48 | Q109: 83 | R109: 71 | S109: 2100 | U109: 1638 | V109: 3 | X109: 465 | Y109: 0 | Z109: 2 | AA109: 0 | AB109: 89 | AD109: 552 | AF109: 4452 | AI109: -3234 | AL109: 6170 | AN109: 8266 | AQ109: 2252 | AR109: 20.75 | AU109: 4784 | AV109: 20319 | AW109: 4 | AX109: 5721 | AY109: 1005 | AZ109: 1341 | BA109: 8067 | BB109: 10368 | BC109: 105 | BD109: 42 | BE109: 62 | BF109: 108 | BG109: 2921 | BI109: 1785 | BJ109: 4 | BL109: 1140 | BM109: -2 | BN109: 3 | BO109: -1 | BP109: -40 | BQ109: 1094 | BS109: 5535 | BY109: 4674 | CA109: 7596 | CF109: 20.75 | CG109: 9.34 | CL109: 7978 | CM109: 0 | CN109: 9184.371042 | CO109: 8338.758772 | CQ109: 8338.758772 | CS109: 10594 | CU109: 18 | CV109: -3093 | CW109: 40 | CX109: 25 | CY109: -1
A110: 297 | B110: Kuopio | C110: 117740 | D110: 20.5 | G110: 557569 | H110: 1092468 | I110: 418 | J110: 372394 | K110: 20477 | L110: 36264 | M110: 429135 | N110: 244730 | O110: 403 | P110: 14905 | Q110: 2576 | R110: 641 | S110: 126816 | U110: 99407 | V110: 1392 | X110: 28801 | Y110: -99 | Z110: 906 | AA110: -2417 | AB110: -1448 | AD110: 23931 | AF110: -15766 | AI110: -119307 | AL110: 186817 | AN110: 906583 | AQ110: 118209 | AR110: 20.5 | AU110: 614581 | AV110: 1170587 | AW110: 1068 | AX110: 388768 | AY110: 38434 | AZ110: 25537 | BA110: 452739 | BB110: 258004 | BC110: 390 | BD110: 14107 | BE110: 2501 | BF110: 714 | BG110: 143875 | BI110: 103555 | BJ110: 0 | BL110: 40320 | BM110: 23 | BN110: 2434 | BO110: -2510 | BP110: -2623 | BQ110: 32776 | BS110: 2177 | BY110: 158193 | CA110: 947219 | CF110: 20.5 | CG110: 9.09 | CL110: 128128 | CM110: 0 | CN110: 197764.6887 | CO110: 191857.7447 | CQ110: 191857.7447 | CS110: 244730 | CU110: -5486 | CV110: -218638 | CW110: 2399 | CX110: 55790 | CY110: -806
A111: 300 | B111: Kuortane | C111: 3690 | D111: 21 | G111: 28594 | H111: 50665 | I111: 3 | J111: 9655 | K111: 602 | L111: 855 | M111: 11112 | N111: 14243 | O111: 19 | P111: 97 | Q111: 27 | R111: 17 | S111: 3218 | U111: 1918 | V111: 0 | X111: 1300 | Y111: -31 | Z111: 0 | AA111: 0 | AB111: -13 | AD111: 1256 | AF111: 2696 | AI111: -2422 | AL111: 3174 | AN111: 15320 | AQ111: 3637 | AR111: 21 | AU111: 30555 | AV111: 52970 | AW111: -22 | AX111: 9700 | AY111: 755 | AZ111: 850 | BA111: 11305 | BB111: 14262 | BC111: 14 | BD111: 72 | BE111: 188 | BF111: 340 | BG111: 2920 | BI111: 2244 | BJ111: 0 | BL111: 676 | BM111: -94 | BN111: 0 | BO111: 0 | BP111: -11 | BQ111: 571 | BS111: 3195 | BY111: 2893 | CA111: 15071 | CF111: 21 | CG111: 9.59 | CL111: 10844 | CM111: 0 | CN111: 13457.05779 | CO111: 12947.07445 | CQ111: 12947.07445 | CS111: 14243 | CU111: -175 | CV111: -2819 | CW111: 188 | CX111: 792 | CY111: -389
A112: 301 | B112: Kurikka | C112: 21501 | D112: 20 | G112: 93598 | H112: 217471 | I112: 14 | J112: 55388 | K112: 3439 | L112: 4342 | M112: 63169 | N112: 66796 | O112: 307 | P112: 1341 | Q112: 8604 | R112: 243 | S112: 13433 | U112: 16033 | V112: 0 | X112: -2600 | Y112: 59 | Z112: 0 | AA112: -68 | AB112: -61 | AD112: -2670 | AF112: 13876 | AI112: -14411 | AL112: 46398 | AN112: 132104 | AQ112: 21203 | AR112: 21 | AU112: 91921 | AV112: 213779 | AW112: -6 | AX112: 57835 | AY112: 4318 | AZ112: 4336 | BA112: 66489 | BB112: 67652 | BC112: 224 | BD112: 1372 | BE112: 9198 | BF112: 263 | BG112: 20064 | BI112: 14373 | BJ112: 0 | BL112: 5691 | BM112: -95 | BN112: 0 | BO112: -14 | BP112: 49 | BQ112: 5631 | BS112: 19953 | BY112: 57651 | CA112: 137520 | CF112: 21 | CG112: 9.59 | CL112: 31058 | CM112: 0 | CN112: 61228.02691 | CO112: 59889.89844 | CQ112: 59889.89844 | CS112: 66796 | CU112: -322 | CV112: -18027 | CW112: 189 | CX112: 2475 | CY112: 3
A113: 304 | B113: Kustavi | C113: 908 | D113: 19.25 | G113: 4652 | H113: 10297 | I113: 0 | J113: 2684 | K113: 149 | L113: 1400 | M113: 4233 | N113: 2492 | O113: 0 | P113: 51 | Q113: 10 | R113: 1 | S113: 1038 | U113: 489 | V113: 0 | X113: 549 | Y113: -407 | Z113: 0 | AA113: 0 | AB113: 0 | AD113: 142 | AF113: 2716 | AI113: -989 | AL113: 1010 | AN113: 4353 | AQ113: 923 | AR113: 19 | AU113: 5195 | AV113: 10376 | AW113: 1 | AX113: 2425 | AY113: 201 | AZ113: 1402 | BA113: 4028 | BB113: 2367 | BC113: 0 | BD113: 58 | BE113: 4 | BF113: 0 | BG113: 1159 | BI113: 524 | BJ113: 0 | BL113: 635 | BM113: 30 | BN113: 0 | BO113: 0 | BP113: 0 | BQ113: 665 | BS113: 3432 | BY113: 1100 | CA113: 4408 | CF113: 18.75 | CG113: 7.34 | CL113: 2254 | CM113: 0 | CN113: 2366.901974 | CO113: 2317.827289 | CQ113: 2317.827289 | CS113: 2492 | CU113: 16 | CV113: -1148 | CW113: 5 | CX113: 7 | CY113: 0
A114: 305 | B114: Kuusamo | C114: 15533 | D114: 20 | G114: 49234 | H114: 136667 | I114: 1 | J114: 41662 | K114: 3304 | L114: 6828 | M114: 51794 | N114: 46600 | O114: -29 | P114: 953 | Q114: 1726 | R114: 237 | S114: 11469 | U114: 8409 | V114: 0 | X114: 3060 | Y114: 538 | Z114: 15 | AA114: -147 | AB114: 2 | AD114: 3438 | AF114: 18557 | AI114: -7168 | AL114: 33441 | AN114: 60769 | AQ114: 15386 | AR114: 20 | AU114: 47965 | AV114: 135460 | AW114: 2 | AX114: 41781 | AY114: 4067 | AZ114: 6737 | BA114: 52585 | BB114: 46187 | BC114: 20 | BD114: 914 | BE114: 993 | BF114: 110 | BG114: 11269 | BI114: 9222 | BJ114: 0 | BL114: 2047 | BM114: 414 | BN114: 46 | BO114: -66 | BP114: -39 | BQ114: 2310 | BS114: 21081 | BY114: 31134 | CA114: 55375 | CF114: 20 | CG114: 8.59 | CL114: 40265 | CM114: 0 | CN114: 46150.12209 | CO114: 45023.71289 | CQ114: 45023.71289 | CS114: 46600 | CU114: -71 | CV114: -9976 | CW114: 580 | CX114: 674 | CY114: 0
A115: 312 | B115: Kyyjärvi | C115: 1375 | D115: 20.5 | G115: 9707 | H115: 18494 | I115: 0 | J115: 3083 | K115: 541 | L115: 283 | M115: 3907 | N115: 4259 | O115: 22 | P115: 44 | Q115: 112 | R115: 4 | S115: -535 | U115: 1080 | V115: 0 | X115: -1615 | Y115: 0 | Z115: 0 | AA115: 0 | AB115: 0 | AD115: -1615 | AF115: -393 | AI115: -1304 | AL115: 6580 | AN115: 14499 | AQ115: 1352 | AR115: 21 | AU115: 9627 | AV115: 17810 | AW115: 0 | AX115: 3421 | AY115: 577 | AZ115: 321 | BA115: 4319 | BB115: 4420 | BC115: 28 | BD115: 35 | BE115: 355 | BF115: 5 | BG115: 899 | BI115: 954 | BJ115: 0 | BL115: -55 | BM115: 2 | BN115: 0 | BO115: 0 | BP115: 48 | BQ115: -5 | BS115: -1539 | BY115: 6415 | CA115: 14982 | CF115: 21.75 | CG115: 10.34 | CL115: 4298 | CM115: 0 | CN115: 4388.210596 | CO115: 4193.680938 | CQ115: 4193.680938 | CS115: 4259 | CU115: -1 | CV115: -1245 | CW115: 71 | CX115: 15 | CY115: 43
A116: 316 | B116: Kärkölä | C116: 4540 | D116: 21.75 | G116: 17070 | H116: 40138 | I116: 0 | J116: 14435 | K116: 625 | L116: 1163 | M116: 16223 | N116: 8576 | O116: 4 | P116: 151 | Q116: 28 | R116: 13 | S116: 1599 | U116: 1610 | V116: 4842 | X116: 4831 | Y116: 1 | Z116: 10 | AA116: 0 | AB116: -10 | AD116: 4812 | AF116: 333 | AI116: -1068 | AL116: 2686 | AN116: 10567 | AQ116: 4508 | AR116: 21.75 | AU116: 25035 | AV116: 46680 | AW116: 1 | AX116: 14790 | AY116: 736 | AZ116: 1161 | BA116: 16687 | BB116: 8203 | BC116: 1 | BD116: 156 | BE116: 30 | BF116: 29 | BG116: 3092 | BI116: 1587 | BJ116: 20 | BL116: 1525 | BM116: 0 | BN116: 0 | BO116: 0 | BP116: -9 | BQ116: 1516 | BS116: 1861 | BY116: 3310 | CA116: 9986 | CF116: 21.75 | CG116: 10.34 | CL116: 8022 | CM116: 0 | CN116: 8205.491103 | CO116: 7666.843021 | CQ116: 7666.843021 | CS116: 8576 | CU116: -72 | CV116: -830 | CW116: 24 | CX116: 281 | CY116: -43
A117: 317 | B117: Kärsämäki | C117: 2655 | D117: 21.5 | G117: 24223 | H117: 40199 | I117: 0 | J117: 6065 | K117: 500 | L117: 498 | M117: 7063 | N117: 11223 | O117: 8 | P117: 179 | Q117: 451 | R117: 225 | S117: 2329 | U117: 1328 | V117: 0 | X117: 1001 | Y117: -86 | Z117: 2 | AA117: -9 | AB117: 2 | AD117: 906 | AF117: 4960 | AI117: -854 | AL117: 11371 | AN117: 18529 | AQ117: 2611 | AR117: 21.5 | AU117: 22453 | AV117: 39888 | AW117: 1 | AX117: 5781 | AY117: 626 | AZ117: 470 | BA117: 6877 | BB117: 12025 | BC117: 11 | BD117: 143 | BE117: 480 | BF117: 22 | BG117: 1752 | BI117: 1898 | BJ117: 0 | BL117: -146 | BM117: 277 | BN117: 6 | BO117: -2 | BP117: -1 | BQ117: 122 | BS117: 5051 | BY117: 11468 | CA117: 20282 | CF117: 21.5 | CG117: 10.09 | CL117: 9676 | CM117: 0 | CN117: 11174.81898 | CO117: 11185.86669 | CQ117: 11185.86669 | CS117: 11223 | CU117: 14 | CV117: -3341 | CW117: 11 | CX117: 316 | CY117: -100
A118: 398 | B118: Lahti | C118: 119452 | D118: 20.25 | G118: 558052 | H118: 1118146 | I118: 36 | J118: 390502 | K118: 22132 | L118: 36543 | M118: 449177 | N118: 265390 | O118: 1138 | P118: 21399 | Q118: 666 | R118: 2801 | S118: 127689 | U118: 117466 | V118: -135 | X118: 10088 | Y118: -10 | Z118: 5346 | AA118: -1079 | AB118: 390 | AD118: 4043 | AF118: 132152 | AI118: -157882 | AL118: 113155 | AN118: 989489 | AQ118: 119573 | AR118: 20.25 | AU118: 610585 | AV118: 1134068 | AW118: 156 | AX118: 390185 | AY118: 26717 | AZ118: 35898 | BA118: 452800 | BB118: 253230 | BC118: 1176 | BD118: 21877 | BE118: 1111 | BF118: -465 | BG118: 159162 | BI118: 118319 | BJ118: 1047 | BL118: 41890 | BM118: -138 | BN118: 5764 | BO118: -1862 | BP118: -1048 | BQ118: 33078 | BS118: 162740 | BY118: 158601 | CA118: 1098025 | CF118: 20.75 | CG118: 9.34 | CL118: 134371 | CM118: 0 | CN118: 189230.0761 | CO118: 185476.5291 | CQ118: 185476.5291 | CS118: 265390 | CU118: -10001 | CV118: -211894 | CW118: 530 | CX118: -5232 | CY118: -13407
A119: 399 | B119: Laihia | C119: 8139 | D119: 21.5 | G119: 19205 | H119: 61821 | I119: 0 | J119: 27054 | K119: 933 | L119: 1227 | M119: 29214 | N119: 14938 | O119: 7 | P119: 285 | Q119: 136 | R119: 63 | S119: 1267 | U119: 2897 | V119: 0 | X119: -1630 | Y119: 21 | Z119: 0 | AA119: -28 | AB119: 4 | AD119: -1633 | AF119: -423 | AI119: -4762 | AL119: 3025 | AN119: 31671 | AQ119: 8051 | AR119: 21.75 | AU119: 18597 | AV119: 60277 | AW119: 0 | AX119: 27660 | AY119: 1217 | AZ119: 1132 | BA119: 30009 | BB119: 15041 | BC119: 3 | BD119: 263 | BE119: 95 | BF119: 61 | BG119: 3081 | BI119: 2931 | BJ119: 0 | BL119: 150 | BM119: -34 | BN119: 0 | BO119: -38 | BP119: 21 | BQ119: 99 | BS119: -336 | BY119: 2869 | CA119: 35436 | CF119: 21.75 | CG119: 10.34 | CL119: 12512 | CM119: 0 | CN119: 15122.84175 | CO119: 14812.87557 | CQ119: 14812.87557 | CS119: 14938 | CU119: 19 | CV119: -8208 | CW119: 65 | CX119: 226 | CY119: 0
A120: 400 | B120: Laitila | C120: 8520 | D120: 20.75 | G120: 37761 | H120: 81043 | I120: 17 | J120: 24978 | K120: 1928 | L120: 1778 | M120: 28684 | N120: 20488 | O120: 5 | P120: 185 | Q120: 41 | R120: -30 | S120: 5797 | U120: 4354 | V120: 0 | X120: 1443 | Y120: 0 | Z120: 0 | AA120: 30 | AB120: -118 | AD120: 1355 | AF120: 9292 | AI120: -5363 | AL120: 3850 | AN120: 32541 | AQ120: 8610 | AR120: 20.75 | AU120: 38145 | AV120: 81498 | AW120: 12 | AX120: 25112 | AY120: 2046 | AZ120: 2074 | BA120: 29232 | BB120: 20509 | BC120: 6 | BD120: 194 | BE120: 59 | BF120: -44 | BG120: 6315 | BI120: 6583 | BJ120: -1 | BL120: -269 | BM120: -293 | BN120: 33 | BO120: -14 | BP120: -98 | BQ120: -707 | BS120: 8617 | BY120: 4357 | CA120: 31673 | CF120: 20.5 | CG120: 9.09 | CL120: 15878 | CM120: 0 | CN120: 20468.16043 | CO120: 20053.66393 | CQ120: 20053.66393 | CS120: 20488 | CU120: -1047 | CV120: -5269 | CW120: -573 | CX120: 1094 | CY120: 0
A121: 407 | B121: Lapinjärvi | C121: 2739 | D121: 20.5 | G121: 9028 | H121: 24905 | I121: 0 | J121: 7551 | K121: 406 | L121: 545 | M121: 8502 | N121: 7065 | O121: 7 | P121: 206 | Q121: 811 | R121: 28 | S121: 253 | U121: 1476 | V121: 0 | X121: -1223 | Y121: -1 | Z121: 0 | AA121: 0 | AB121: 0 | AD121: -1224 | AF121: -421 | AI121: -574 | AL121: 1101 | AN121: 12629 | AQ121: 2706 | AR121: 20.5 | AU121: 9643 | AV121: 25315 | AW121: 1 | AX121: 7595 | AY121: 508 | AZ121: 547 | BA121: 8650 | BB121: 7161 | BC121: 6 | BD121: 113 | BE121: 811 | BF121: 55 | BG121: 769 | BI121: 1697 | BJ121: 0 | BL121: -928 | BM121: 1 | BN121: 0 | BO121: 0 | BP121: 0 | BQ121: -927 | BS121: -1348 | BY121: 1554 | CA121: 14685 | CF121: 20.5 | CG121: 9.09 | CL121: 6931 | CM121: 0 | CN121: 6800.818666 | CO121: 6582.766835 | CQ121: 6582.766835 | CS121: 7065 | CU121: -27 | CV121: -2304 | CW121: 98 | CX121: 31 | CY121: 0
A122: 402 | B122: Lapinlahti | C122: 9882 | D122: 20.25 | G122: 35233 | H122: 93723 | I122: 109 | J122: 25300 | K122: 1707 | L122: 2223 | M122: 29230 | N122: 33673 | O122: 28 | P122: 554 | Q122: 418 | R122: 50 | S122: 4241 | U122: 5565 | V122: 43 | X122: -1281 | Y122: -4 | Z122: 70 | AA122: 16 | AB122: 30 | AD122: -1309 | AF122: -1062 | AI122: -7928 | AL122: 3438 | AN122: 59777 | AQ122: 9692 | AR122: 20.25 | AU122: 35963 | AV122: 91828 | AW122: 115 | AX122: 25412 | AY122: 1767 | AZ122: 2219 | BA122: 29398 | BB122: 33354 | BC122: 26 | BD122: 593 | BE122: 849 | BF122: 51 | BG122: 7110 | BI122: 5962 | BJ122: -3 | BL122: 1145 | BM122: 1 | BN122: 24 | BO122: -3 | BP122: 66 | BQ122: 1185 | BS122: 126 | BY122: 3591 | CA122: 57754 | CF122: 21.25 | CG122: 9.84 | CL122: 27251 | CM122: 0 | CN122: 31099.25926 | CO122: 29858.92902 | CQ122: 29858.92902 | CS122: 33673 | CU122: -494 | CV122: -6179 | CW122: 453 | CX122: 544 | CY122: -13
A123: 403 | B123: Lappajärvi | C123: 3176 | D123: 21 | G123: 16234 | H123: 36321 | I123: 5 | J123: 8424 | K123: 1003 | L123: 927 | M123: 10354 | N123: 12572 | O123: 9 | P123: 163 | Q123: 32 | R123: 13 | S123: 2709 | U123: 1667 | V123: 0 | X123: 1042 | Y123: 9 | Z123: 0 | AA123: 6 | AB123: 7 | AD123: 1064 | AF123: 2732 | AI123: -2057 | AL123: 3866 | AN123: 17969 | AQ123: 3140 | AR123: 21 | AU123: 16092 | AV123: 36262 | AW123: -90 | AX123: 8038 | AY123: 982 | AZ123: 886 | BA123: 9906 | BB123: 12386 | BC123: 7 | BD123: 150 | BE123: 86 | BF123: 24 | BG123: 1951 | BI123: 1945 | BJ123: 0 | BL123: 6 | BM123: 2 | BN123: 3 | BO123: -7 | BP123: 8 | BQ123: 6 | BS123: 2912 | BY123: 3876 | CA123: 18416 | CF123: 21 | CG123: 9.59 | CL123: 8898 | CM123: 0 | CN123: 10748.97287 | CO123: 10767.56218 | CQ123: 10767.56218 | CS123: 12572 | CU123: -40 | CV123: -3056 | CW123: 183 | CX123: 295 | CY123: 1
A124: 405 | B124: Lappeenranta | C124: 72872 | D124: 21 | G124: 376468 | H124: 693585 | I124: 1327 | J124: 250126 | K124: 21482 | L124: 24813 | M124: 296421 | N124: 122300 | O124: 218 | P124: 7097 | Q124: 494 | R124: 1121 | S124: 92917 | U124: 49567 | V124: 0 | X124: 43350 | Y124: -29 | Z124: 2177 | AA124: -2087 | AB124: -662 | AD124: 38395 | AF124: 69752 | AI124: -74979 | AL124: 43894 | AN124: 520003 | AQ124: 72909 | AR124: 21 | AU124: 365675 | AV124: 683920 | AW124: -31 | AX124: 244562 | AY124: 24745 | AZ124: 24626 | BA124: 293933 | BB124: 117435 | BC124: 179 | BD124: 6103 | BE124: 259 | BF124: 891 | BG124: 84102 | BI124: 61837 | BJ124: 0 | BL124: 22265 | BM124: 812 | BN124: 3399 | BO124: -2524 | BP124: -602 | BQ124: 16552 | BS124: 80222 | BY124: 42773 | CA124: 500519 | CF124: 21 | CG124: 9.59 | CL124: 90361 | CM124: 0 | CN124: 104931.1215 | CO124: 103306.1033 | CQ124: 103306.1033 | CS124: 122300 | CU124: -858 | CV124: -78830 | CW124: 1719 | CX124: 20239 | CY124: -10807
A125: 408 | B125: Lapua | C125: 14575 | D125: 21 | G125: 43967 | H125: 118806 | I125: 59 | J125: 43199 | K125: 2207 | L125: 2851 | M125: 48257 | N125: 39415 | O125: 13 | P125: 1319 | Q125: 453 | R125: 67 | S125: 11971 | U125: 8802 | V125: 0 | X125: 3169 | Y125: 16 | Z125: -1 | AA125: -29 | AB125: -38 | AD125: 3119 | AF125: 14497 | AI125: -8308 | AL125: 10730 | AN125: 90378 | AQ125: 14494 | AR125: 21 | AU125: 43993 | AV125: 118217 | AW125: 34 | AX125: 43335 | AY125: 2468 | AZ125: 2884 | BA125: 48687 | BB125: 38734 | BC125: 33 | BD125: 1067 | BE125: 429 | BF125: 95 | BG125: 12531 | BI125: 8802 | BJ125: 0 | BL125: 3729 | BM125: 58 | BN125: 47 | BO125: -82 | BP125: -35 | BQ125: 3623 | BS125: 18249 | BY125: 12215 | CA125: 92343 | CF125: 21.5 | CG125: 10.09 | CL125: 30856 | CM125: 0 | CN125: 36472.22633 | CO125: 35211.74808 | CQ125: 35211.74808 | CS125: 39415 | CU125: -997 | CV125: -15702 | CW125: 412 | CX125: 2109 | CY125: 4
A126: 410 | B126: Laukaa | C126: 18970 | D126: 21.5 | G126: 41588 | H126: 142812 | I126: 0 | J126: 59865 | K126: 2057 | L126: 4824 | M126: 66746 | N126: 43720 | O126: 55 | P126: 307 | Q126: 302 | R126: 40 | S126: 9252 | U126: 9020 | V126: 0 | X126: 232 | Y126: -8 | Z126: 22 | AA126: -120 | AB126: 0 | AD126: 82 | AF126: -3969 | AI126: -18551 | AL126: 7387 | AN126: 112039 | AQ126: 18978 | AR126: 21.5 | AU126: 44331 | AV126: 144285 | AW126: 0 | AX126: 60612 | AY126: 2606 | AZ126: 4713 | BA126: 67931 | BB126: 44071 | BC126: 57 | BD126: 118 | BE126: 248 | BF126: 33 | BG126: 12201 | BI126: 8993 | BJ126: 0 | BL126: 3208 | BM126: -201 | BN126: 17 | BO126: -87 | BP126: 0 | BQ126: 2903 | BS126: -886 | BY126: 6693 | CA126: 118285 | CF126: 21.5 | CG126: 10.09 | CL126: 29357 | CM126: 0 | CN126: 37051.6239 | CO126: 35732.11199 | CQ126: 35732.11199 | CS126: 43720 | CU126: -171 | CV126: -21436 | CW126: 717 | CX126: 680 | CY126: 619
A127: 416 | B127: Lemi | C127: 3076 | D127: 21 | G127: 14123 | H127: 29337 | I127: 29 | J127: 9579 | K127: 486 | L127: 813 | M127: 10878 | N127: 6190 | O127: 1 | P127: 139 | Q127: 18 | R127: 2 | S127: 1731 | U127: 1103 | V127: 0 | X127: 628 | Y127: -29 | Z127: 0 | AA127: 0 | AB127: 0 | AD127: 599 | AF127: 679 | AI127: -1174 | AL127: 1429 | AN127: 9791 | AQ127: 3063 | AR127: 21 | AU127: 13656 | AV127: 29523 | AW127: 0 | AX127: 9242 | AY127: 520 | AZ127: 815 | BA127: 10577 | BB127: 6011 | BC127: 1 | BD127: 75 | BE127: 7 | BF127: 5 | BG127: 618 | BI127: 1146 | BJ127: 0 | BL127: -528 | BM127: -43 | BN127: 0 | BO127: 0 | BP127: 0 | BQ127: -571 | BS127: 179 | BY127: 715 | CA127: 10350 | CF127: 21 | CG127: 9.59 | CL127: 5553 | CM127: 0 | CN127: 6011.972607 | CO127: 6025.769338 | CQ127: =CO127-CP127 -> 6025.769338 | CS127: 6190 | CU127: 753 | CV127: -2315 | CW127: 21 | CX127: 232 | CY127: -334
A128: 418 | B128: Lempäälä | C128: 22745 | D128: 20.5 | G128: 58520 | H128: 158752 | I128: 33 | J128: 83808 | K128: 3901 | L128: 5243 | M128: 92952 | N128: 26429 | O128: 158 | P128: 971 | Q128: 371 | R128: 183 | S128: 18388 | U128: 15066 | V128: 69 | X128: 3391 | Y128: 7 | Z128: 115 | AA128: 2 | AB128: -76 | AD128: 3209 | AF128: 9188 | AI128: -9921 | AL128: 8128 | AN128: 112685 | AQ128: 22829 | AR128: 20.5 | AU128: 59699 | AV128: 158465 | AW128: 79 | AX128: 83968 | AY128: 4684 | AZ128: 5313 | BA128: 93965 | BB128: 23547 | BC128: 19 | BD128: 956 | BE128: 845 | BF128: 79 | BG128: 18487 | BI128: 15034 | BJ128: 0 | BL128: 3453 | BM128: 1 | BN128: 120 | BO128: -122 | BP128: -108 | BQ128: 3104 | BS128: 20919 | BY128: 9948 | CA128: 112590 | CF128: 20.5 | CG128: 9.09 | CL128: 21852 | CM128: 0 | CN128: 23115.00888 | CO128: 21470.62581 | CQ128: 21470.62581 | CS128: 26429 | CU128: -1343 | CV128: -19399 | CW128: 496 | CX128: 3200 | CY128: 1
A129: 420 | B129: Leppävirta | C129: 9865 | D129: 20 | G129: 35218 | H129: 88431 | I129: 31 | J129: 28524 | K129: 2317 | L129: 2346 | M129: 33187 | N129: 26710 | O129: 58 | P129: 516 | Q129: 364 | R129: 73 | S129: 6547 | U129: 6232 | V129: 0 | X129: 315 | Y129: -224 | Z129: 5 | AA129: -3 | AB129: -21 | AD129: 62 | AF129: 4770 | AI129: -5187 | AL129: 9689 | AN129: 35078 | AQ129: 9782 | AR129: 20 | AU129: 35297 | AV129: 87515 | AW129: 44 | AX129: 27957 | AY129: 2821 | AZ129: 2420 | BA129: 33198 | BB129: 25796 | BC129: 54 | BD129: 476 | BE129: 704 | BF129: 80 | BG129: 7022 | BI129: 6746 | BJ129: 3 | BL129: 279 | BM129: -149 | BN129: 10 | BO129: -7 | BP129: -27 | BQ129: 86 | BS129: 4779 | BY129: 6802 | CA129: 35673 | CF129: 21 | CG129: 9.59 | CL129: 21592 | CM129: 0 | CN129: 25247.61934 | CO129: 24413.4058 | CQ129: 24413.4058 | CS129: 26710 | CU129: -172 | CV129: -11504 | CW129: 1463 | CX129: 196 | CY129: 12
A130: 421 | B130: Lestijärvi | C130: 811 | D130: 21 | G130: 6001 | H130: 10907 | I130: 26 | J130: 1681 | K130: 330 | L130: 245 | M130: 2256 | N130: 3112 | O130: 14 | P130: 38 | Q130: 7 | R130: 1 | S130: 470 | U130: 566 | V130: 49 | X130: -47 | Y130: 0 | Z130: 0 | AA130: 0 | AB130: 0 | AD130: -47 | AF130: 3246 | AI130: -947 | AL130: 1449 | AN130: 3242 | AQ130: 789 | AR130: 21 | AU130: 8199 | AV130: 13219 | AW130: 39 | AX130: 1886 | AY130: 405 | AZ130: 278 | BA130: 2569 | BB130: 3011 | BC130: 8 | BD130: 35 | BE130: 9 | BF130: 1 | BG130: 580 | BI130: 588 | BJ130: 50 | BL130: 42 | BM130: -9 | BN130: 0 | BO130: 0 | BP130: -1 | BQ130: 32 | BS130: 2497 | BY130: 1655 | CA130: 4076 | CF130: 21 | CG130: 9.59 | CL130: 2977 | CM130: 130 | CN130: 3017.778163 | CO130: 2977.922817 | CQ130: 2977.922817 | CS130: =N130-CR130 -> 3112 | CU130: -32 | CV130: -690 | CW130: 5 | CX130: 5 | CY130: 30
A131: 422 | B131: Lieksa | C131: 11580 | D131: 21 | G131: 38796 | H131: 115486 | I131: -3 | J131: 32192 | K131: 3316 | L131: 4303 | M131: 39811 | N131: 45454 | O131: 268 | P131: 715 | Q131: 609 | R131: 40 | S131: 8543 | U131: 6017 | V131: 0 | X131: 2526 | Y131: 14 | Z131: 0 | AA131: -11 | AB131: 5 | AD131: 2534 | AF131: 27357 | AI131: -5057 | AL131: 14624 | AN131: 48278 | AQ131: 11297 | AR131: 21 | AU131: 66785 | AV131: 139928 | AW131: -3 | AX131: 32294 | AY131: 5054 | AZ131: 3282 | BA131: 40630 | BB131: 43414 | BC131: 213 | BD131: 654 | BE131: 618 | BF131: 44 | BG131: 10883 | BI131: 6583 | BJ131: 574 | BL131: 4874 | BM131: -62 | BN131: 1 | BO131: 11 | BP131: 1 | BQ131: 4823 | BS131: 31860 | BY131: 19817 | CA131: 45460 | CF131: 21 | CG131: 9.59 | CL131: 34065 | CM131: 0 | CN131: 38724.91662 | CO131: 36975.78914 | CQ131: 36975.78914 | CS131: 45454 | CU131: -909 | CV131: -18607 | CW131: 256 | CX131: 12568 | CY131: 8
A132: 423 | B132: Lieto | C132: 19418 | D132: 19.5 | G132: 55532 | H132: 142880 | I132: 2 | J132: 69108 | K132: 2697 | L132: 3559 | M132: 75364 | N132: 22796 | O132: 12 | P132: 666 | Q132: 55 | R132: 28 | S132: 10186 | U132: 8122 | V132: 0 | X132: 2064 | Y132: 0 | Z132: 0 | AA132: -29 | AB132: -49 | AD132: 1986 | AF132: 8452 | AI132: -11665 | AL132: 10696 | AN132: 76102 | AQ132: 19596 | AR132: 19.5 | AU132: 52269 | AV132: 138306 | AW132: 5 | AX132: 68995 | AY132: 3393 | AZ132: 3567 | BA132: =AX132+AY132+AZ132 -> 75955 | BB132: 21394 | BC132: 8 | BD132: 620 | BE132: 55 | BF132: 15 | BG132: 10745 | BI132: 8790 | BJ132: 0 | BL132: 1955 | BM132: 0 | BN132: 0 | BO132: -64 | BP132: -1 | BQ132: 1890 | BS132: 9613 | BY132: 6968 | CA132: 80724 | CF132: 19.5 | CG132: =CF132-$CG$1 -> 8.09 | CL132: 16925 | CM132: 0 | CN132: 20083.25655 | CO132: 18964.18252 | CQ132: 18964.18252 | CS132: 22796 | CU132: -2317 | CV132: -23087 | CW132: 2268 | CX132: 3113 | CY132: 0
A133: 425 | B133: Liminka | C133: 10000 | D133: 20.5 | G133: 20265 | H133: 72301 | I133: 1 | J133: 28187 | K133: 622 | L133: 1181 | M133: 29990 | N133: 28110 | O133: 3 | P133: 233 | Q133: 51 | R133: 0 | S133: 5854 | U133: 7482 | V133: 0 | X133: -1628 | Y133: -3 | Z133: 5 | AA133: -32 | AB133: 57 | AD133: -1611 | AF133: 27359 | AI133: -3321 | AL133: 5453 | AN133: 23100 | AQ133: 10133 | AR133: 21 | AU133: 22895 | AV133: 72060 | AW133: 2 | AX133: 29443 | AY133: 758 | AZ133: 1183 | BA133: 31384 | BB133: 25236 | BC133: 2 | BD133: 193 | BE133: 61 | BF133: 2 | BG133: 7325 | BI133: 5510 | BJ133: -15 | BL133: 1800 | BM133: 43 | BN133: 8 | BO133: -37 | BP133: 44 | BQ133: 1842 | BS133: 29126 | BY133: 12711 | CA133: 33585 | CF133: 21.5 | CG133: 10.09 | CL133: 21999 | CM133: 0 | CN133: 25133.43718 | CO133: 23477.36599 | CQ133: 23477.36599 | CS133: 28110 | CU133: -767 | CV133: -11174 | CW133: 47 | CX133: 1604 | CY133: 7
A134: 426 | B134: Liperi | C134: 12301 | D134: 21.5 | G134: 35280 | H134: 98314 | I134: -229 | J134: 36586 | K134: 1316 | L134: 2381 | M134: 40283 | N134: 29715 | O134: 33 | P134: 732 | Q134: 347 | R134: 6 | S134: 6378 | U134: 5081 | V134: 0 | X134: 1297 | Y134: 8 | Z134: 26 | AA134: -83 | AB134: 6 | AD134: 1202 | AF134: 8680 | AI134: -3344 | AL134: 7774 | AN134: 49363 | AQ134: 12150 | AR134: 21.5 | AU134: 60486 | AV134: 121387 | AW134: -67 | AX134: 36068 | AY134: 1533 | AZ134: 2419 | BA134: 40020 | BB134: 28984 | BC134: 23 | BD134: 626 | BE134: 388 | BF134: 5 | BG134: 7816 | BI134: 5284 | BJ134: -305 | BL134: 2227 | BM134: -48 | BN134: -19 | BO134: -87 | BP134: -19 | BQ134: 2092 | BS134: 11095 | BY134: 10886 | CA134: 49859 | CF134: 21.5 | CG134: 10.09 | CL134: 24656 | CM134: 0 | CN134: 27185.72705 | CO134: 26435.74297 | CQ134: 26435.74297 | CS134: 29715 | CU134: -516 | CV134: -15196 | CW134: 69 | CX134: 10738 | CY134: -19
A135: 444 | B135: Lohja | C135: 47149 | D135: 20.5 | G135: 156079 | H135: 402266 | I135: 128 | J135: 172144 | K135: 5582 | L135: 12405 | M135: 190131 | N135: 81722 | O135: 54 | P135: 1900 | Q135: 796 | R135: 631 | S135: 24113 | U135: 26207 | V135: 0 | X135: -2094 | Y135: -7 | Z135: 377 | AA135: 51 | AB135: 40 | AD135: -2387 | AF135: 16931 | AI135: -38769 | AL135: 17993 | AN135: 180376 | AQ135: 46785 | AR135: 20.5 | AU135: 163705 | AV135: 406111 | AW135: 88 | AX135: 170627 | AY135: 6613 | AZ135: 12616 | BA135: 189856 | BB135: 79116 | BC135: 134 | BD135: 1830 | BE135: 863 | BF135: 742 | BG135: 25079 | BI135: 23234 | BJ135: 282 | BL135: 2127 | BM135: 13 | BN135: 335 | BO135: 10 | BP135: -54 | BQ135: 1761 | BS135: 18775 | BY135: 21704 | CA135: 208715 | CF135: 20.5 | CG135: 9.09 | CL135: 42170 | CM135: 0 | CN135: 68193.67889 | CO135: 65943.26622 | CQ135: 65943.26622 | CS135: 81722 | CU135: -990 | CV135: -52881 | CW135: 1136 | CX135: 2441 | CY135: 0
A136: 430 | B136: Loimaa | C136: 16267 | D136: 20.5 | G136: 65627 | H136: 163078 | I136: 3 | J136: 46513 | K136: 3001 | L136: 4211 | M136: 53725 | N136: 52058 | O136: 5 | P136: 505 | Q136: 114 | R136: 50 | S136: 7899 | U136: 8068 | V136: 0 | X136: -169 | Y136: 0 | Z136: 0 | AA136: 9 | AB136: -298 | AD136: -458 | AF136: 11153 | AI136: -4344 | AL136: 7989 | AN136: 53500 | AQ136: 16150 | AR136: 20.5 | AU136: 68944 | AV136: 163492 | AW136: 9 | AX136: 45770 | AY136: 3595 | AZ136: 4149 | BA136: 53514 | BB136: 50312 | BC136: 3 | BD136: 592 | BE136: 85 | BF136: 16 | BG136: 8768 | BI136: 8219 | BJ136: 0 | BL136: 549 | BM136: 0 | BN136: 201 | BO136: -11 | BP136: -374 | BQ136: -37 | BS136: 11159 | BY136: 11239 | CA136: 54645 | CF136: 20.5 | CG136: 9.09 | CL136: 37550 | CM136: 0 | CN136: 42401.6307 | CO136: 40267.20862 | CQ136: 40267.20862 | CS136: 52058 | CU136: -277 | CV136: -8127 | CW136: 95 | CX136: 375 | CY136: 867
A137: 433 | B137: Loppi | C137: 8098 | D137: 21.5 | G137: 24289 | H137: 63233 | I137: -47 | J137: 25091 | K137: 1450 | L137: 2031 | M137: 28572 | N137: 15986 | O137: 17 | P137: 461 | Q137: 55 | R137: 4 | S137: 5174 | U137: 3316 | V137: 0 | X137: 1858 | Y137: 2 | Z137: 0 | AA137: 0 | AB137: 0 | AD137: 1860 | AF137: 12888 | AI137: -8547 | AL137: 2990 | AN137: 30269 | AQ137: 8028 | AR137: 21.5 | AU137: 24606 | AV137: 65185 | AW137: -44 | AX137: 25505 | AY137: 1684 | AZ137: 2029 | BA137: 29218 | BB137: 15871 | BC137: 3 | BD137: 419 | BE137: 59 | BF137: 4 | BG137: 4079 | BI137: 3061 | BJ137: 163 | BL137: 1181 | BM137: 2 | BN137: 1 | BO137: -4 | BP137: 0 | BQ137: 1178 | BS137: 13651 | BY137: 2889 | CA137: 28791 | CF137: 21.5 | CG137: 10.09 | CL137: 14314 | CM137: 0 | CN137: 16016.97421 | CO137: 14998.84283 | CQ137: 14998.84283 | CS137: 15986 | CU137: 114 | CV137: -6286 | CW137: 105 | CX137: 2916 | CY137: 9
A138: 434 | B138: Loviisa | C138: 15208 | D138: 19.75 | G138: 50698 | H138: 137554 | I138: -3 | J138: 49366 | K138: 8586 | L138: 8001 | M138: 65953 | N138: 29758 | O138: 49 | P138: 531 | Q138: 1708 | R138: 170 | S138: 9839 | U138: 7986 | V138: -130 | X138: 1723 | Y138: -2 | Z138: 38 | AA138: -24 | AB138: 5 | AD138: 1664 | AF138: 6164 | AI138: -10627 | AL138: 11559 | AN138: 54364 | AQ138: 15085 | AR138: 19.75 | AU138: 52563 | AV138: 136560 | AW138: -10 | AX138: 47747 | AY138: 9950 | AZ138: 8252 | BA138: 65949 | BB138: 27852 | BC138: 32 | BD138: 451 | BE138: 1711 | BF138: 133 | BG138: 10953 | BI138: 6525 | BJ138: -91 | BL138: 4337 | BM138: 188 | BN138: 12 | BO138: -17 | BP138: -140 | BQ138: 4356 | BS138: 10617 | BY138: 10617 | CA138: 57322 | CF138: 19.75 | CG138: 8.34 | CL138: 22724 | CM138: 0 | CN138: 25196.30385 | CO138: 23992.80336 | CQ138: 23992.80336 | CS138: 29758 | CU138: -1000 | CV138: -22713 | CW138: 1985 | CX138: 8160 | CY138: 27
A139: 435 | B139: Luhanka | C139: 756 | D139: 18.5 | G139: 2653 | H139: 7645 | I139: 0 | J139: 1593 | K139: 238 | L139: 498 | M139: 2329 | N139: 3089 | O139: 21 | P139: 27 | Q139: 13 | R139: 108 | S139: 325 | U139: 302 | V139: 68 | X139: 91 | Y139: 0 | Z139: 2 | AA139: 0 | AB139: 0 | AD139: 89 | AF139: 2354 | AI139: -755 | AL139: 1771 | AN139: 1996 | AQ139: 734 | AR139: 18.5 | AU139: 2813 | AV139: 7614 | AW139: 0 | AX139: 1655 | AY139: 286 | AZ139: 495 | BA139: 2436 | BB139: 3144 | BC139: 20 | BD139: 28 | BE139: 82 | BF139: 39 | BG139: 814 | BI139: 307 | BJ139: 0 | BL139: 507 | BM139: 0 | BN139: 0 | BO139: 0 | BP139: 0 | BQ139: 507 | BS139: 2860 | BY139: 1293 | CA139: 3164 | CF139: 18.5 | CG139: 7.09 | CL139: 2731 | CM139: 0 | CN139: 3207.989411 | CO139: 3058.346298 | CQ139: 3058.346298 | CS139: 3089 | CU139: 3 | CV139: -2085 | CW139: 3 | CX139: 1 | CY139: 80
A140: 436 | B140: Lumijoki | C140: 2105 | D140: 20.75 | G140: 5599 | H140: 16644 | I140: 0 | J140: 4942 | K140: 132 | L140: 291 | M140: 5365 | N140: 6840 | O140: 5 | P140: 81 | Q140: 3 | R140: 1 | S140: 1074 | U140: 1032 | V140: 0 | X140: 42 | Y140: -1 | Z140: 2 | AA140: -13 | AB140: -8 | AD140: 18 | AF140: 1007 | AI140: -394 | AL140: 770 | AN140: 7613 | AQ140: 2081 | AR140: 20.75 | AU140: 5422 | AV140: 16981 | AW140: 1 | AX140: 5349 | AY140: 164 | AZ140: 288 | BA140: 5801 | BB140: 6824 | BC140: 2 | BD140: 71 | BE140: 15 | BF140: 2 | BG140: 998 | BI140: 996 | BJ140: 0 | BL140: 2 | BM140: -4 | BN140: 4 | BO140: -1 | BP140: 0 | BQ140: -7 | BS140: 999 | BY140: 1780 | CA140: 8729 | CF140: 21 | CG140: 9.59 | CL140: 4969 | CM140: 0 | CN140: 6288.875618 | CO140: 6096.8641 | CQ140: 6096.8641 | CS140: 6840 | CU140: -13 | CV140: -948 | CW140: 10 | CX140: 57 | CY140: 0
A141: 440 | B141: Luoto | C141: 5176 | D141: 19.5 | G141: 8975 | H141: 33423 | I141: 0 | J141: 13618 | K141: 283 | L141: 998 | M141: 14899 | N141: 13703 | O141: 78 | P141: 77 | Q141: 365 | R141: 131 | S141: 4389 | U141: 1990 | V141: 0 | X141: 2399 | Y141: -176 | Z141: 0 | AA141: 0 | AB141: 0 | AD141: 2223 | AF141: 15683 | AI141: -3985 | AL141: 9105 | AN141: 21252 | AQ141: 5264 | AR141: 19.5 | AU141: 9289 | AV141: 34196 | AW141: 0 | AX141: 13596 | AY141: 362 | AZ141: 1026 | BA141: 14984 | BB141: 13720 | BC141: 109 | BD141: 59 | BE141: 221 | BF141: 562 | BG141: 3507 | BI141: 2130 | BJ141: 18 | BL141: 1395 | BM141: -55 | BN141: 0 | BO141: 0 | BP141: 0 | BQ141: 1340 | BS141: 16753 | BY141: 12709 | CA141: 35526 | CF141: 19.5 | CG141: 8.09 | CL141: 10541 | CM141: 0 | CN141: 13722.61996 | CO141: 13091.00871 | CQ141: 13091.00871 | CS141: 13703 | CU141: 77 | CV141: -12878 | CW141: 412 | CX141: 502 | CY141: -1150
A142: 441 | B142: Luumäki | C142: 4831 | D142: 19.75 | G142: 23629 | H142: 50849 | I142: 8 | J142: 13196 | K142: 1905 | L142: 1343 | M142: 16444 | N142: 12316 | O142: 105 | P142: 164 | Q142: 466 | R142: 54 | S142: 1901 | U142: 3056 | V142: 0 | X142: -1155 | Y142: -2 | Z142: 2 | AA142: -40 | AB142: 0 | AD142: -1199 | AF142: 17497 | AI142: -4338 | AL142: 16589 | AN142: 17273 | AQ142: 4747 | AR142: 19.75 | AU142: 23202 | AV142: 49695 | AW142: -37 | AX142: 13559 | AY142: 2202 | AZ142: 1503 | BA142: 17264 | BB142: 12340 | BC142: 232 | BD142: 151 | BE142: 700 | BF142: 1 | BG142: 3854 | BI142: 3225 | BJ142: 0 | BL142: 629 | BM142: 178 | BN142: 0 | BO142: -26 | BP142: 0 | BQ142: 781 | BS142: 17898 | BY142: 15930 | CA142: 19867 | CF142: 20.5 | CG142: 9.09 | CL142: 10655 | CM142: 0 | CN142: 12066.31907 | CO142: 11380.25129 | CQ142: 11380.25129 | CS142: 12316 | CU142: 198 | CV142: -8088 | CW142: 179 | CX142: 179 | CY142: 0
A143: 475 | B143: Maalahti | C143: 5517 | D143: 21.5 | G143: 23790 | H143: 55995 | I143: -10 | J143: 16991 | K143: 925 | L143: 1332 | M143: 19248 | N143: 16833 | O143: 7 | P143: 158 | Q143: 46 | R143: 39 | S143: 3692 | U143: 3353 | V143: 0 | X143: 339 | Y143: 9 | Z143: 21 | AA143: -18 | AB143: 0 | AD143: 309 | AF143: 5062 | AI143: -6774 | AL143: 1757 | AN143: 24064 | AQ143: 5477 | AR143: 21.5 | AU143: 23054 | AV143: 55336 | AW143: -10 | AX143: 17027 | AY143: 1075 | AZ143: 1387 | BA143: 19489 | BB143: 16508 | BC143: 9 | BD143: 144 | BE143: 42 | BF143: 36 | BG143: 3546 | BI143: 2832 | BJ143: 76 | BL143: 790 | BM143: -61 | BN143: 19 | BO143: -15 | BP143: 0 | BQ143: 695 | BS143: 5655 | BY143: 1282 | CA143: 25761 | CF143: 21.5 | CG143: 10.09 | CL143: 14643 | CM143: 0 | CN143: 16510.26141 | CO143: 15901.05984 | CQ143: 15901.05984 | CS143: 16833 | CU143: -157 | CV143: -6513 | CW143: 394 | CX143: 252 | CY143: 0
A144: 480 | B144: Marttila | C144: 2021 | D144: 20.25 | G144: 6124 | H144: 15912 | I144: 0 | J144: 5454 | K144: 255 | L144: 370 | M144: 6079 | N144: 5050 | O144: 3 | P144: 44 | Q144: 7 | R144: 1 | S144: 1305 | U144: 754 | V144: 0 | X144: 551 | Y144: -485 | Z144: 0 | AA144: 0 | AB144: 0 | AD144: 66 | AF144: 2086 | AI144: -800 | AL144: 1203 | AN144: 4050 | AQ144: 1988 | AR144: 20.25 | AU144: 6143 | AV144: 16365 | AW144: 0 | AX144: 5951 | AY144: 330 | AZ144: 350 | BA144: 6631 | BB144: 5051 | BC144: 3 | BD144: 48 | BE144: 11 | BF144: 0 | BG144: 1426 | BI144: 758 | BJ144: 0 | BL144: 668 | BM144: -19 | BN144: 0 | BO144: 0 | BP144: 0 | BQ144: 649 | BS144: 2810 | BY144: 1098 | CA144: 3548 | CF144: 20.75 | CG144: 9.34 | CL144: 4007 | CM144: 0 | CN144: 5036.789031 | CO144: 4544.548228 | CQ144: 4544.548228 | CS144: 5050 | CU144: -28 | CV144: -1789 | CW144: 232 | CX144: 116 | CY144: -1
A145: 481 | B145: Masku | C145: 9675 | D145: 20.75 | G145: 32799 | H145: 78227 | I145: 1 | J145: 35859 | K145: 1443 | L145: 1862 | M145: 39164 | N145: 10281 | O145: 92 | P145: 231 | Q145: 51 | R145: 73 | S145: 3857 | U145: 6174 | V145: 0 | X145: -2317 | Y145: 23 | Z145: 0 | AA145: -33 | AB145: 1 | AD145: -2326 | AF145: -1800 | AI145: -3616 | AL145: 3281 | AN145: 37464 | AQ145: 9656 | AR145: 20.75 | AU145: 32645 | AV145: 76611 | AW145: 3 | AX145: 36930 | AY145: 1647 | AZ145: 1864 | BA145: 40441 | BB145: 10056 | BC145: 5 | BD145: 150 | BE145: 123 | BF145: 41 | BG145: 6471 | BI145: 3952 | BJ145: 0 | BL145: 2519 | BM145: -37 | BN145: 0 | BO145: 0 | BP145: 1 | BQ145: 2483 | BS145: 614 | BY145: 5564 | CA145: 39813 | CF145: 20.75 | CG145: 9.34 | CL145: 9002 | CM145: 0 | CN145: 8632.209783 | CO145: 7468.58164 | CQ145: 7468.58164 | CS145: 10281 | CU145: -291 | CV145: -4129 | CW145: 27 | CX145: 405 | CY145: 0
A146: 483 | B146: Merijärvi | C146: 1131 | D146: 21.5 | G146: 4214 | H146: 10765 | I146: 0 | J146: 2178 | K146: 108 | L146: 198 | M146: 2484 | N146: 4342 | O146: 1 | P146: 27 | Q146: 158 | R146: 10 | S146: 397 | U146: 542 | V146: 0 | X146: -145 | Y146: 0 | Z146: 1 | AA146: -1 | AB146: -1 | AD146: -148 | AF146: 2809 | AI146: -230 | AL146: 3440 | AN146: 3301 | AQ146: 1119 | AR146: 21.5 | AU146: 4465 | AV146: 11044 | AW146: 1 | AX146: 2268 | AY146: 136 | AZ146: 202 | BA146: 2606 | BB146: 4303 | BC146: 1 | BD146: 24 | BE146: 70 | BF146: 2 | BG146: 376 | BI146: 510 | BJ146: 0 | BL146: -134 | BM146: 0 | BN146: 0 | BO146: -1 | BP146: 0 | BQ146: -135 | BS146: 2671 | BY146: 4306 | CA146: 4595 | CF146: 21.5 | CG146: 10.09 | CL146: 3996 | CM146: 0 | CN146: 4302.532821 | CO146: 4196.345852 | CQ146: 4196.345852 | CS146: 4342 | CU146: 13 | CV146: -740 | CW146: 23 | CX146: 44 | CY146: 2
A147: 484 | B147: Merikarvia | C147: 3169 | D147: 19.5 | G147: 10576 | H147: 30552 | I147: -2 | J147: 7406 | K147: 696 | L147: 998 | M147: 9100 | N147: 12486 | O147: 6 | P147: 28 | Q147: 42 | R147: 1 | S147: 1627 | U147: 1515 | V147: 0 | X147: 112 | Y147: 0 | Z147: 4 | AA147: 0 | AB147: -10 | AD147: 98 | AF147: 6012 | AI147: -1365 | AL147: 4321 | AN147: 2584 | AQ147: 3156 | AR147: 19.5 | AU147: 10682 | AV147: 31445 | AW147: -1 | AX147: 7975 | AY147: 789 | AZ147: 992 | BA147: 9756 | BB147: 12279 | BC147: 1 | BD147: 24 | BE147: 89 | BF147: 3 | BG147: 1334 | BI147: 1495 | BJ147: 0 | BL147: -161 | BM147: -14 | BN147: -4 | BO147: 1 | BP147: 0 | BQ147: -170 | BS147: 5803 | BY147: 3760 | CA147: 2409 | CF147: 19.5 | CG147: 8.09 | CL147: 11004 | CM147: 0 | CN147: 12334.32215 | CO147: 11705.7261 | CQ147: 11705.7261 | CS147: 12486 | CU147: 0 | CV147: -1792 | CW147: 8 | CX147: 61 | CY147: 15
A148: 489 | B148: Miehikkälä | C148: 2034 | D148: 20 | G148: 14552 | H148: 26200 | I148: 0 | J148: 4706 | K148: 716 | L148: 496 | M148: 5918 | N148: 7731 | O148: 12 | P148: 69 | Q148: 30 | R148: 11 | S148: 1963 | U148: 1304 | V148: 0 | X148: 659 | Y148: 6 | Z148: 0 | AA148: 18 | AB148: 0 | AD148: 683 | AF148: 5252 | AI148: -1737 | AL148: 1829 | AN148: 8280 | AQ148: 1992 | AR148: 20 | AU148: 13743 | AV148: 25702 | AW148: 1 | AX148: 4667 | AY148: 834 | AZ148: 495 | BA148: 5996 | BB148: 7909 | BC148: 11 | BD148: 57 | BE148: 20 | BF148: 2 | BG148: 1919 | BI148: 1232 | BJ148: 0 | BL148: 687 | BM148: -4 | BN148: 0 | BO148: -10 | BP148: 0 | BQ148: 673 | BS148: 5817 | BY148: 2863 | CA148: 9765 | CF148: 20 | CG148: 8.59 | CL148: 6902 | CM148: 0 | CN148: 7837.23274 | CO148: 7533.408421 | CQ148: 7533.408421 | CS148: 7731 | CU148: -20 | CV148: -2456 | CW148: 380 | CX148: -115 | CY148: -41
A149: 491 | B149: Mikkeli | C149: 54517 | D149: 20 | G149: 253655 | H149: 533898 | I149: 168 | J149: 169039 | K149: 11378 | L149: 18215 | M149: 198632 | N149: 141338 | O149: 495 | P149: 4852 | Q149: 792 | R149: 2774 | S149: 51530 | U149: 41542 | V149: 14 | X149: 10002 | Y149: -88 | Z149: 1244 | AA149: -664 | AB149: -407 | AD149: 7599 | AF149: 64536 | AI149: -63530 | AL149: 38905 | AN149: 476923 | AQ149: 54261 | AR149: 20.5 | AU149: 273023 | AV149: 551934 | AW149: 3714 | AX149: 169353 | AY149: 13293 | AZ149: 18948 | BA149: 201594 | BB149: 139118 | BC149: 662 | BD149: 4792 | BE149: 961 | BF149: 1948 | BG149: 58154 | BI149: 50042 | BJ149: 24 | BL149: 8136 | BM149: -73 | BN149: 1462 | BO149: -815 | BP149: 95 | BQ149: 5881 | BS149: 63358 | BY149: 36514 | CA149: 505223 | CF149: 20.5 | CG149: 9.09 | CL149: 79610 | CM149: 0 | CN149: 112621.5592 | CO149: 110846.0353 | CQ149: 110846.0353 | CS149: 141338 | CU149: -3042 | CV149: -111464 | CW149: 2394 | CX149: 24918 | CY149: 131
A150: 494 | B150: Muhos | C150: 8995 | D150: 20.5 | G150: 34471 | H150: 82654 | I150: 49 | J150: 24867 | K150: 1209 | L150: 3595 | M150: 29671 | N150: 25615 | O150: 26 | P150: 488 | Q150: 16 | R150: 5 | S150: 6701 | U150: 4640 | V150: 0 | X150: 2061 | Y150: -5 | Z150: 4 | AA150: -3 | AB150: -3 | AD150: 2046 | AF150: 3227 | AI150: -6047 | AL150: 4125 | AN150: 45520 | AQ150: 9019 | AR150: 20.5 | AU150: 32127 | AV150: 83488 | AW150: 34 | AX150: 24970 | AY150: 1204 | AZ150: 3662 | BA150: 29836 | BB150: 27679 | BC150: 36 | BD150: 445 | BE150: 46 | BF150: 3 | BG150: 5823 | BI150: 5014 | BJ150: 0 | BL150: 809 | BM150: 39 | BN150: 3 | BO150: -6 | BP150: -2 | BQ150: 837 | BS150: 4020 | BY150: 5142 | CA150: 46978 | CF150: 21 | CG150: 9.59 | CL150: 21009 | CM150: 0 | CN150: 25186.62348 | CO150: 24440.04096 | CQ150: 24440.04096 | CS150: 25615 | CU150: -149 | CV150: -7875 | CW150: 90 | CX150: 518 | CY150: 0
A151: 495 | B151: Multia | C151: 1663 | D151: 21.75 | G151: 2587 | H151: 13361 | I151: 1 | J151: 4252 | K151: 932 | L151: 404 | M151: 5588 | N151: 6460 | O151: 6 | P151: 22 | Q151: 22 | R151: 9 | S151: 1272 | U151: 593 | V151: 0 | X151: 679 | Y151: -43 | Z151: 0 | AA151: 0 | AB151: 0 | AD151: 636 | AF151: 861 | AI151: -762 | AL151: 2274 | AN151: 2999 | AQ151: 1636 | AR151: 21.75 | AU151: 2592 | AV151: 13057 | AW151: 0 | AX151: 3973 | AY151: 1081 | AZ151: 404 | BA151: 5458 | BB151: 5886 | BC151: 5 | BD151: 13 | BE151: 15 | BF151: 19 | BG151: 867 | BI151: 638 | BJ151: 0 | BL151: 229 | BM151: -55 | BN151: 0 | BO151: 0 | BP151: 0 | BQ151: 174 | BS151: 1159 | BY151: 1663 | CA151: 2940 | CF151: 22 | CG151: 10.59 | CL151: 5826 | CM151: 280 | CN151: 5885.677679 | CO151: 5582.111771 | CQ151: 5582.111771 | CS151: 6460 | CU151: -28 | CV151: -1345 | CW151: 17 | CX151: 50 | CY151: 6
A152: 498 | B152: Muonio | C152: 2350 | D152: 21 | G152: 8628 | H152: 25328 | I152: 0 | J152: 7044 | K152: 575 | L152: 921 | M152: 8540 | N152: 9670 | O152: 2 | P152: 134 | Q152: 18 | R152: 17 | S152: 1379 | U152: 1032 | V152: 0 | X152: 347 | Y152: 4 | Z152: -7 | AA152: 0 | AB152: 0 | AD152: 358 | AF152: -132 | AI152: -1789 | AL152: 2090 | AN152: 11316 | AQ152: 2332 | AR152: 21.5 | AU152: 9266 | AV152: 24954 | AW152: 0 | AX152: 7044 | AY152: 728 | AZ152: 966 | BA152: 8738 | BB152: 9054 | BC152: 4 | BD152: 106 | BE152: 20 | BF152: 20 | BG152: 2002 | BI152: 1131 | BJ152: -11 | BL152: 860 | BM152: 15 | BN152: 0 | BO152: 7 | BP152: 0 | BQ152: 882 | BS152: 798 | BY152: 1630 | CA152: 9610 | CF152: 21.5 | CG152: 10.09 | CL152: 6889 | CM152: 0 | CN152: 9072.19596 | CO152: 9071.932082 | CQ152: 9071.932082 | CS152: 9670 | CU152: -1 | CV152: -933 | CW152: 62 | CX152: 27 | CY152: 8
A153: 499 | B153: Mustasaari | C153: 19380 | D153: 20.75 | G153: 56883 | H153: 150521 | I153: 66 | J153: 69120 | K153: 2197 | L153: 4598 | M153: 75915 | N153: 30106 | O153: 12 | P153: 644 | Q153: 283 | R153: 76 | S153: 12024 | U153: 9033 | V153: 0 | X153: 2991 | Y153: 21 | Z153: 0 | AA153: 8 | AB153: 17 | AD153: 3037 | AF153: 8892 | AI153: -11669 | AL153: 5834 | AN153: 77432 | AQ153: 19384 | AR153: 20.75 | AU153: 55054 | AV153: 149557 | AW153: 198 | AX153: 69600 | AY153: 2650 | AZ153: 4579 | BA153: 76829 | BB153: 31479 | BC153: 3 | BD153: 578 | BE153: 154 | BF153: 60 | BG153: 13489 | BI153: 11022 | BJ153: 168 | BL153: 2635 | BM153: -136 | BN153: 8 | BO153: -31 | BP153: 1 | BQ153: 2461 | BS153: 11345 | BY153: 5541 | CA153: 76742 | CF153: 20.75 | CG153: 9.34 | CL153: 24207 | CM153: 0 | CN153: 31550.96731 | CO153: 30866.46501 | CQ153: 30866.46501 | CS153: 30106 | CU153: -678 | CV153: -15485 | CW153: 284 | CX153: 776 | CY153: 8
A154: 500 | B154: Muurame | C154: 9941 | D154: 19.5 | G154: 24022 | H154: 67618 | I154: 18 | J154: 33671 | K154: 1923 | L154: 2094 | M154: 37688 | N154: 12747 | O154: 6 | P154: 460 | Q154: 134 | R154: 21 | S154: 6516 | U154: 5967 | V154: 0 | X154: 549 | Y154: 9 | Z154: 0 | AA154: -32 | AB154: 2 | AD154: 528 | AF154: 3585 | AI154: -5048 | AL154: 2297 | AN154: 49454 | AQ154: 10097 | AR154: 19.5 | AU154: 23809 | AV154: 67183 | AW154: 30 | AX154: 34205 | AY154: 2316 | AZ154: 2134 | BA154: 38655 | BB154: 12744 | BC154: 17 | BD154: 401 | BE154: 135 | BF154: 19 | BG154: 7787 | BI154: 5734 | BJ154: 0 | BL154: 2053 | BM154: 12 | BN154: 9 | BO154: -53 | BP154: 0 | BQ154: 2003 | BS154: 4693 | BY154: 3496 | CA154: 49795 | CF154: 19.5 | CG154: 8.09 | CL154: 9917 | CM154: 0 | CN154: 9980.546595 | CO154: 9873.443881 | CQ154: 9873.443881 | CS154: 12747 | CU154: -926 | CV154: -7339 | CW154: 131 | CX154: 1291 | CY154: -74
A155: 503 | B155: Mynämäki | C155: 7842 | D155: 21 | G155: 36048 | H155: 78080 | I155: -26 | J155: 24604 | K155: 885 | L155: 1581 | M155: 27070 | N155: 18720 | O155: 22 | P155: 139 | Q155: 158 | R155: 16 | S155: 3758 | U155: 3386 | V155: 0 | X155: 372 | Y155: 0 | Z155: 0 | AA155: 0 | AB155: 17 | AD155: 389 | AF155: 2484 | AI155: -1891 | AL155: 4070 | AN155: 23169 | AQ155: 7838 | AR155: 21 | AU155: 36158 | AV155: 77091 | AW155: 26 | AX155: 25161 | AY155: 1587 | AZ155: 1113 | BA155: 27861 | BB155: 17501 | BC155: 8 | BD155: 162 | BE155: 59 | BF155: 15 | BG155: 4345 | BI155: 3436 | BJ155: 0 | BL155: 909 | BM155: -19 | BN155: 22 | BO155: 0 | BP155: 19 | BQ155: 887 | BS155: 3282 | BY155: 5706 | CA155: 21853 | CF155: 21 | CG155: 9.59 | CL155: 15376 | CM155: 0 | CN155: 15850.42565 | CO155: 14942.46435 | CQ155: 14942.46435 | CS155: 18720 | CU155: -10098 | CV155: -22794 | CW155: 45 | CX155: 7894 | CY155: 0
A156: 504 | B156: Myrskylä | C156: 1986 | D156: 21.5 | G156: 5025 | H156: 15851 | I156: 7 | J156: 5586 | K156: 403 | L156: 385 | M156: 6374 | N156: 4626 | O156: 2 | P156: 36 | Q156: 283 | R156: 4 | S156: 426 | U156: 688 | V156: 0 | X156: -262 | Y156: 0 | Z156: 0 | AA156: 0 | AB156: 0 | AD156: -262 | AF156: 1680 | AI156: -117 | AL156: 2266 | AN156: 3525 | AQ156: 1969 | AR156: 21.5 | AU156: 8337 | AV156: 19199 | AW156: 5 | AX156: 5515 | AY156: 463 | AZ156: 400 | BA156: 6378 | BB156: 4569 | BC156: 0 | BD156: 39 | BE156: 298 | BF156: 3 | BG156: 346 | BI156: 681 | BJ156: 0 | BL156: -335 | BM156: 1 | BN156: 0 | BO156: 0 | BP156: 0 | BQ156: -334 | BS156: 1346 | BY156: 2007 | CA156: 2447 | CF156: 21.5 | CG156: 10.09 | CL156: 4291 | CM156: 0 | CN156: 4256.124429 | CO156: 4266.148569 | CQ156: 4266.148569 | CS156: 4626 | CU156: -9 | CV156: -142 | CW156: 0 | CX156: 30 | CY156: -6
A157: 505 | B157: Mäntsälä | C157: 20853 | D157: 20.5 | G157: 87192 | H157: 176725 | I157: -1 | J157: 70565 | K157: 2481 | L157: 6730 | M157: 79776 | N157: 32278 | O157: 20 | P157: 1468 | Q157: 586 | R157: 181 | S157: 21325 | U157: 12399 | V157: 0 | X157: 8926 | Y157: -5 | Z157: 34 | AA157: 168 | AB157: -45 | AD157: 9010 | AF157: 25719 | AI157: -30746 | AL157: 10538 | AN157: 147157 | AQ157: 20803 | AR157: 20.5 | AU157: 91640 | AV157: 182371 | AW157: 2 | AX157: 71545 | AY157: 2877 | AZ157: 6885 | BA157: 81307 | BB157: 31644 | BC157: 84 | BD157: 1470 | BE157: 333 | BF157: 252 | BG157: 20737 | BI157: 15727 | BJ157: 84 | BL157: 5094 | BM157: 5 | BN157: 7 | BO157: 213 | BP157: 9 | BQ157: 5314 | BS157: 31191 | BY157: 7285 | CA157: 152041 | CF157: 20.5 | CG157: 9.09 | CL157: 25311 | CM157: 0 | CN157: 28834.32538 | CO157: 27587.88297 | CQ157: 27587.88297 | CS157: 32278 | CU157: -1055 | CV157: -37701 | CW157: 40 | CX157: 4926 | CY157: 2
A158: 508 | B158: Mänttä-Vilppula | C158: 10448 | D158: 22 | G158: 57123 | H158: 124489 | I158: -75 | J158: 36201 | K158: 1422 | L158: 2896 | M158: 40519 | N158: 32786 | O158: 20 | P158: 709 | Q158: 1826 | R158: 145 | S158: 6855 | U158: 6441 | V158: 509 | X158: 923 | Y158: 16 | Z158: 75 | AA158: -9 | AB158: -152 | AD158: 703 | AF158: 898 | AI158: -7779 | AL158: 9601 | AN158: 63676 | AQ158: 10256 | AR158: 22 | AU158: 61579 | AV158: 124698 | AW158: 845 | AX158: 35684 | AY158: 3252 | AZ158: 1701 | BA158: 40637 | BB158: 32443 | BC158: 214 | BD158: 964 | BE158: 939 | BF158: 146 | BG158: 10849 | BI158: 7165 | BJ158: 0 | BL158: 3684 | BM158: 1 | BN158: 101 | BO158: 119 | BP158: -163 | BQ158: 3540 | BS158: 4133 | BY158: 7607 | CA158: 62987 | CF158: 22 | CG158: 10.59 | CL158: 20512 | CM158: 0 | CN158: 26751.98951 | CO158: 25379.6283 | CQ158: 25379.6283 | CS158: 32786 | CU158: -3367 | CV158: -11287 | CW158: 29 | CX158: 2863 | CY158: -3
A159: 507 | B159: Mäntyharju | C159: 6097 | D159: 19.75 | G159: 23380 | H159: 57656 | I159: 0 | J159: 15573 | K159: 2011 | L159: 2580 | M159: 20164 | N159: 18642 | O159: 1 | P159: 412 | Q159: 199 | R159: 15 | S159: 4303 | U159: 3311 | V159: 67 | X159: 1059 | Y159: 138 | Z159: 0 | AA159: -73 | AB159: -57 | AD159: 1067 | AF159: 6858 | AI159: -6798 | AL159: 2253 | AN159: 28032 | AQ159: 6054 | AR159: 19.75 | AU159: 31571 | AV159: 67005 | AW159: 0 | AX159: 16104 | AY159: 2346 | AZ159: 2568 | BA159: 21018 | BB159: 18626 | BC159: 11 | BD159: 346 | BE159: 440 | BF159: -8 | BG159: 4322 | BI159: 4063 | BJ159: 3 | BL159: 262 | BM159: -22 | BN159: 0 | BO159: -38 | BP159: 0 | BQ159: 202 | BS159: 6868 | BY159: 5185 | CA159: 28320 | CF159: 19.75 | CG159: 8.34 | CL159: 15041 | CM159: 0 | CN159: 18658.24323 | CO159: 17823.13778 | CQ159: 17823.13778 | CS159: 18642 | CU159: -46 | CV159: -2865 | CW159: 97 | CX159: 195 | CY159: 188
A160: 529 | B160: Naantali | C160: 19068 | D160: 18.5 | G160: 77348 | H160: 158651 | I160: 16 | J160: 69760 | K160: 7044 | L160: 6211 | M160: 83015 | N160: 17430 | O160: 95 | P160: 1019 | Q160: 1047 | R160: 42 | S160: 19239 | U160: 13015 | V160: 336 | X160: 6560 | Y160: 10 | Z160: 318 | AA160: -308 | AB160: -11 | AD160: 5933 | AF160: 57043 | AI160: -10904 | AL160: 9086 | AN160: 74050 | AQ160: 19167 | AR160: 19 | AU160: 78332 | AV160: 157780 | AW160: 19 | AX160: 71892 | AY160: 7868 | AZ160: 6545 | BA160: 86305 | BB160: 16028 | BC160: 170 | BD160: 577 | BE160: 895 | BF160: 515 | BG160: 22877 | BI160: 12790 | BJ160: 0 | BL160: 10087 | BM160: 0 | BN160: 294 | BO160: -384 | BP160: 7 | BQ160: 9416 | BS160: 66459 | BY160: 8568 | CA160: 68203 | CF160: 19 | CG160: 7.59 | CL160: 15486 | CM160: 0 | CN160: 16027.82428 | CO160: 13951.16667 | CQ160: 13951.16667 | CS160: 17430 | CU160: -2310 | CV160: -19274 | CW160: 3579 | CX160: 2925 | CY160: -26
A161: 531 | B161: Nakkila | C161: 5548 | D161: 20.75 | G161: 20963 | H161: 50184 | I161: 13 | J161: 17593 | K161: 664 | L161: 1295 | M161: 19552 | N161: 13310 | O161: 5 | P161: 109 | Q161: 49 | R161: 9 | S161: 3590 | U161: 2192 | V161: 0 | X161: 1398 | Y161: 0 | Z161: 1 | AA161: -25 | AB161: 0 | AD161: 1372 | AF161: 2684 | AI161: -1286 | AL161: 6237 | AN161: 9485 | AQ161: 5521 | AR161: 21.25 | AU161: 20494 | AV161: 49483 | AW161: 0 | AX161: 16886 | AY161: 693 | AZ161: 1340 | BA161: 18919 | BB161: 12490 | BC161: 17 | BD161: 75 | BE161: 125 | BF161: 13 | BG161: 2474 | BI161: 2272 | BJ161: 0 | BL161: 202 | BM161: 0 | BN161: 0 | BO161: -24 | BP161: 0 | BQ161: 178 | BS161: 2876 | BY161: 4611 | CA161: 8419 | CF161: 21.25 | CG161: 9.84 | CL161: 10072 | CM161: 0 | CN161: 10694.70899 | CO161: 10555.4191 | CQ161: 10555.4191 | CS161: 13310 | CU161: 70 | CV161: -3828 | CW161: 239 | CX161: 20 | CY161: -1
A162: 535 | B162: Nivala | C162: 10889 | D162: 21.5 | G162: 65967 | H162: 128643 | I162: 100 | J162: 27076 | K162: 1035 | L162: 2435 | M162: 30546 | N162: 40305 | O162: 119 | P162: 843 | Q162: 1500 | R162: -177 | S162: 8841 | U162: 6074 | V162: -317 | X162: 2450 | Y162: -144 | Z162: 7 | AA162: 138 | AB162: 0 | AD162: 2437 | AF162: 10654 | AI162: -4387 | AL162: 29278 | AN162: 95573 | AQ162: 10815 | AR162: 21.5 | AU162: 64451 | AV162: 127363 | AW162: 48 | AX162: 27412 | AY162: 1232 | AZ162: 2334 | BA162: 30978 | BB162: 41875 | BC162: 144 | BD162: 877 | BE162: 1002 | BF162: -172 | BG162: 10068 | BI162: 6257 | BJ162: 0 | BL162: 3811 | BM162: -103 | BN162: 58 | BO162: 95 | BP162: -21 | BQ162: 3724 | BS162: 14399 | BY162: 27624 | CA162: 92564 | CF162: 21.5 | CG162: 10.09 | CL162: 27461 | CM162: 0 | CN162: 37021.86614 | CO162: 36292.08415 | CQ162: 36292.08415 | CS162: 40305 | CU162: -34 | CV162: -12579 | CW162: 156 | CX162: 158 | CY162: -800
A163: 536 | B163: Nokia | C163: 33210 | D163: 19.75 | G163: 88473 | H163: 234781 | I163: 44 | J163: 114099 | K163: 5575 | L163: 6924 | M163: 126598 | N163: 41284 | O163: 83 | P163: 1633 | Q163: 546 | R163: 272 | S163: 20176 | U163: 19338 | V163: -2878 | X163: -2040 | Y163: -346 | Z163: 0 | AA163: 0 | AB163: -141 | AD163: -2527 | AF163: 14102 | AI163: -21400 | AL163: 38763 | AN163: 127983 | AQ163: 33322 | AR163: 20 | AU163: 88813 | AV163: 241585 | AW163: 147 | AX163: 114222 | AY163: 8614 | AZ163: 7240 | BA163: 130076 | BB163: 39434 | BC163: 58 | BD163: 1383 | BE163: 1588 | BF163: 220 | BG163: 16926 | BI163: 20309 | BJ163: 0 | BL163: -3383 | BM163: -453 | BN163: 0 | BO163: 0 | BP163: -163 | BQ163: -3999 | BS163: 9180 | BY163: 31167 | CA163: 134659 | CF163: 20.5 | CG163: 9.09 | CL163: 32524 | CM163: 0 | CN163: 39027.57507 | CO163: 38442.14788 | CQ163: 38442.14788 | CS163: 41284 | CU163: -2278 | CV163: -26831 | CW163: 585 | CX163: 3315 | CY163: 1
A164: 538 | B164: Nousiainen | C164: 4815 | D164: 21 | G164: 19982 | H164: 44826 | I164: 1 | J164: 16254 | K164: 877 | L164: 353 | M164: 17484 | N164: 8727 | O164: 1 | P164: 94 | Q164: 31 | R164: 148 | S164: 1158 | U164: 1525 | V164: 0 | X164: -367 | Y164: 0 | Z164: 0 | AA164: 0 | AB164: -1 | AD164: -368 | AF164: -235 | AI164: -720 | AL164: 1207 | AN164: 11867 | AQ164: 4813 | AR164: 21 | AU164: 19880 | AV164: 44101 | AW164: 2 | AX164: 16097 | AY164: 462 | AZ164: 853 | BA164: 17412 | BB164: 8892 | BC164: 3 | BD164: 115 | BE164: 24 | BF164: 9 | BG164: 1988 | BI164: 1601 | BJ164: 1803 | BL164: 2190 | BM164: 0 | BN164: 0 | BO164: 0 | BP164: 0 | BQ164: 2190 | BS164: 1955 | BY164: 959 | CA164: 10944 | CF164: 21.5 | CG164: 10.09 | CL164: 8748 | CM164: 0 | CN164: 8863.312337 | CO164: 8421.860095 | CQ164: 8421.860095 | CS164: 8727 | CU164: -1803 | CV164: -4711 | CW164: 12 | CX164: 3685 | CY164: 0
A165: 541 | B165: Nurmes | C165: 7885 | D165: 20.5 | G165: 34297 | H165: 82587 | I165: 10 | J165: 20182 | K165: 2304 | L165: 1729 | M165: 24215 | N165: 31491 | O165: 67 | P165: 354 | Q165: 359 | R165: 32 | S165: 7466 | U165: 6128 | V165: 0 | X165: 1338 | Y165: 87 | Z165: 96 | AA165: -3 | AB165: 7 | AD165: 1333 | AF165: 19726 | AI165: -5474 | AL165: 9991 | AN165: 22307 | AQ165: 7765 | AR165: 20.5 | AU165: 51292 | AV165: 97755 | AW165: -19 | AX165: 19703 | AY165: 2881 | AZ165: 1652 | BA165: 24236 | BB165: 32365 | BC165: 54 | BD165: 336 | BE165: 380 | BF165: 42 | BG165: 10175 | BI165: 6114 | BJ165: 370 | BL165: 4431 | BM165: -75 | BN165: 156 | BO165: -1 | BP165: -34 | BQ165: 4165 | BS165: 23889 | BY165: 10623 | CA165: 20319 | CF165: 20.5 | CG165: 9.09 | CL165: 24210 | CM165: 0 | CN165: 29987.60574 | CO165: 29041.0337 | CQ165: 29041.0337 | CS165: 31491 | CU165: -462 | CV165: -15597 | CW165: 405 | CX165: 8026 | CY165: -138
A166: 543 | B166: Nurmijärvi | C166: 42010 | D166: 19.5 | G166: 124498 | H166: 305434 | I166: -2 | J166: 167223 | K166: 6303 | L166: 8012 | M166: 181538 | N166: 33477 | O166: 101 | P166: 2046 | Q166: 1577 | R166: 350 | S166: 33162 | U166: 25792 | V166: 0 | X166: 7370 | Y166: -6 | Z166: 1267 | AA166: 127 | AB166: 5 | AD166: 6229 | AF166: 86997 | AI166: -50320 | AL166: 35021 | AN166: 207442 | AQ166: 42159 | AR166: 19.5 | AU166: 131530 | AV166: 311902 | AW166: 3 | AX166: 165825 | AY166: 7810 | AZ166: 8972 | BA166: 182607 | BB166: 32775 | BC166: 99 | BD166: 2091 | BE166: 2620 | BF166: 653 | BG166: 34989 | BI166: 26876 | BJ166: 162 | BL166: 8275 | BM166: 10 | BN166: 1391 | BO166: 154 | BP166: 11 | BQ166: 7059 | BS166: 94022 | BY166: 42548 | CA166: 232481 | CF166: 19.5 | CG166: 8.09 | CL166: 27250 | CM166: 0 | CN166: 29799.36456 | CO166: 27968.2403 | CQ166: 27968.2403 | CS166: 33477 | CU166: -2656 | CV166: -58398 | CW166: 2999 | CX166: 5924 | CY166: -1004
A167: 545 | B167: Närpiö | C167: 9439 | D167: 21 | G167: 31773 | H167: 81189 | I167: 0 | J167: 25990 | K167: 2188 | L167: 2697 | M167: 30875 | N167: 27754 | O167: 390 | P167: 723 | Q167: 767 | R167: 124 | S167: 9523 | U167: 4729 | V167: 0 | X167: 4794 | Y167: -3145 | Z167: 0 | AA167: -380 | AB167: 0 | AD167: 1269 | AF167: 13739 | AI167: -8443 | AL167: 20876 | AN167: 50826 | AQ167: 9507 | AR167: 21 | AU167: 30854 | AV167: 80262 | AW167: 0 | AX167: 26290 | AY167: 2619 | AZ167: 2910 | BA167: 31819 | BB167: 28279 | BC167: 358 | BD167: 648 | BE167: 865 | BF167: 152 | BG167: 11113 | BI167: 5525 | BJ167: 100 | BL167: 5688 | BM167: 0 | BN167: 58 | BO167: 24 | BP167: -24 | BQ167: 5630 | BS167: 19054 | BY167: 23477 | CA167: 44258 | CF167: 21 | CG167: 9.59 | CL167: 21901 | CM167: 0 | CN167: 28202.17653 | CO167: 28404.77141 | CQ167: 28404.77141 | CS167: 27754 | CU167: -102 | CV167: -10386 | CW167: 1054 | CX167: 181 | CY167: -21
A168: 560 | B168: Orimattila | C168: 16279 | D168: 20.75 | G168: 59377 | H168: 137982 | I168: 2 | J168: 48784 | K168: 2429 | L168: 4427 | M168: 55640 | N168: 33374 | O168: 16 | P168: 760 | Q168: 1508 | R168: 79 | S168: 11097 | U168: 7841 | V168: -10 | X168: 3246 | Y168: -6 | Z168: 71 | AA168: -42 | AB168: -100 | AD168: 3027 | AF168: 14755 | AI168: -6748 | AL168: 14527 | AN168: 53017 | AQ168: 16221 | AR168: 20.75 | AU168: 81380 | AV168: 159406 | AW168: 7 | AX168: 48770 | AY168: 2691 | AZ168: 4380 | BA168: 55841 | BB168: 32288 | BC168: 18 | BD168: 698 | BE168: 1551 | BF168: 27 | BG168: 10955 | BI168: 8027 | BJ168: 112 | BL168: 3040 | BM168: 0 | BN168: 111 | BO168: -93 | BP168: -102 | BQ168: 2734 | BS168: 17452 | BY168: 15439 | CA168: 58533 | CF168: 20.75 | CG168: 9.34 | CL168: 31324 | CM168: 0 | CN168: 32394.05766 | CO168: 31780.25299 | CQ168: 31780.25299 | CS168: 33374 | CU168: -48 | CV168: -17575 | CW168: 488 | CX168: 2208 | CY168: -1208
A169: 561 | B169: Oripää | C169: 1363 | D169: 19.5 | G169: 4458 | H169: 11634 | I169: 0 | J169: 3331 | K169: 395 | L169: 342 | M169: 4068 | N169: 3860 | O169: 4 | P169: 46 | Q169: 3 | R169: 1 | S169: 712 | U169: 589 | V169: 0 | X169: 123 | Y169: 15 | Z169: 0 | AA169: 0 | AB169: 0 | AD169: 138 | AF169: 1422 | AI169: -394 | AL169: 207 | AN169: 4191 | AQ169: 1382 | AR169: 19.5 | AU169: 4106 | AV169: 12226 | AW169: 0 | AX169: 3458 | AY169: 388 | AZ169: 327 | BA169: 4173 | BB169: 4195 | BC169: 2 | BD169: 52 | BE169: 7 | BF169: 0 | BG169: 205 | BI169: 634 | BJ169: 0 | BL169: -429 | BM169: 15 | BN169: 0 | BO169: 0 | BP169: 0 | BQ169: -414 | BS169: 1183 | BY169: 234 | CA169: 4435 | CF169: 19.5 | CG169: 8.09 | CL169: 2793 | CM169: 0 | CN169: 3795.691939 | CO169: 3612.453279 | CQ169: 3612.453279 | CS169: 3860 | CU169: 26 | CV169: -1085 | CW169: 29 | CX169: 7 | CY169: 0
A170: 562 | B170: Orivesi | C170: 9312 | D170: 22.25 | G170: 27769 | H170: 78760 | I170: 194 | J170: 29201 | K170: 1658 | L170: 3036 | M170: 33895 | N170: 25129 | O170: 53 | P170: 552 | Q170: 115 | R170: 96 | S170: 7654 | U170: 4560 | V170: 55 | X170: 3149 | Y170: 192 | Z170: 41 | AA170: 2 | AB170: -60 | AD170: 3242 | AF170: 6009 | AI170: -4815 | AL170: 7857 | AN170: 37871 | AQ170: 9285 | AR170: 22 | AU170: 28964 | AV170: 79855 | AW170: 217 | AX170: 28775 | AY170: 1972 | AZ170: 3022 | BA170: 33769 | BB170: 23814 | BC170: 60 | BD170: 472 | BE170: 113 | BF170: 96 | BG170: 6414 | BI170: 4367 | BJ170: 0 | BL170: 2047 | BM170: 1 | BN170: 47 | BO170: -82 | BP170: -71 | BQ170: 1848 | BS170: 7744 | BY170: 9543 | CA170: 33530 | CF170: 22 | CG170: 10.59 | CL170: 20650 | CM170: 0 | CN170: 23806.14901 | CO170: 21789.49407 | CQ170: 21789.49407 | CS170: 25129 | CU170: -102 | CV170: -3691 | CW170: 65 | CX170: 387 | CY170: 23
A171: 563 | B171: Oulainen | C171: 7514 | D171: 21.75 | G171: 30220 | H171: 75485 | I171: 1 | J171: 22052 | K171: 1022 | L171: 1847 | M171: 24921 | N171: 24393 | O171: 28 | P171: 247 | Q171: 1130 | R171: 127 | S171: 4834 | U171: 3617 | V171: 0 | X171: 1217 | Y171: -8 | Z171: 5 | AA171: -3 | AB171: -3 | AD171: 1198 | AF171: 6573 | AI171: -6396 | AL171: 18052 | AN171: 43093 | AQ171: 7472 | AR171: 21.5 | AU171: 29638 | AV171: 74314 | AW171: 3 | AX171: 21436 | AY171: 1279 | AZ171: 1901 | BA171: 24616 | BB171: 24633 | BC171: 31 | BD171: 200 | BE171: 599 | BF171: 250 | BG171: 4756 | BI171: 3703 | BJ171: 835 | BL171: 1888 | BM171: -2 | BN171: 4 | BO171: -6 | BP171: -2 | BQ171: 1874 | BS171: 8555 | BY171: 19608 | CA171: 42813 | CF171: 21.5 | CG171: 10.09 | CL171: 19497 | CM171: 0 | CN171: 24667.82567 | CO171: 23705.63093 | CQ171: 23705.63093 | CS171: 24393 | CU171: 192 | CV171: -4878 | CW171: 259 | CX171: 354 | CY171: 40
A172: 564 | B172: Oulu | C172: 200526 | D172: 20 | G172: 829752 | H172: 1742649 | I172: 991 | J172: 664334 | K172: 33793 | L172: 45522 | M172: 743649 | N172: 380684 | O172: 2528 | P172: 15108 | Q172: 4503 | R172: 1365 | S172: 200303 | U172: 147785 | V172: 0 | X172: 52518 | Y172: -182 | Z172: 3381 | AA172: -5436 | AB172: -3064 | AD172: 40455 | AF172: 676948 | AI172: -177261 | AL172: 211408 | AN172: 874166 | AQ172: 201810 | AR172: 20 | AU172: 831894 | AV172: 1735601 | AW172: -89 | AX172: 665862 | AY172: 42612 | AZ172: 56086 | BA172: 764560 | BB172: 370328 | BC172: 2562 | BD172: 15254 | BE172: 6281 | BF172: 4781 | BG172: 216246 | BI172: 146844 | BJ172: 0 | BL172: 69402 | BM172: 805 | BN172: 2747 | BO172: -6167 | BP172: -2132 | BQ172: 59161 | BS172: 735963 | BY172: 213819 | CA172: 808073 | CF172: 20 | CG172: 8.59 | CL172: 134043 | CM172: 0 | CN172: 269792.6067 | CO172: 264130.9435 | CQ172: 264130.9435 | CS172: 380684 | CU172: 9167 | CV172: -212449 | CW172: 3665 | CX172: 33913 | CY172: 1298
A173: 309 | B173: Outokumpu | C173: 7091 | D173: 22.25 | G173: 31343 | H173: 71552 | I173: 0 | J173: 19876 | K173: 1319 | L173: 1775 | M173: 22970 | N173: 22678 | O173: 150 | P173: 496 | Q173: 45 | R173: 8 | S173: 5063 | U173: 4841 | V173: 0 | X173: 222 | Y173: 376 | Z173: 7 | AA173: 198 | AB173: -3 | AD173: 786 | AF173: 4961 | AI173: -7483 | AL173: 2816 | AN173: 37156 | AQ173: 7003 | AR173: 21.75 | AU173: 52585 | AV173: 90014 | AW173: 0 | AX173: 19165 | AY173: 1436 | AZ173: 1764 | BA173: 22365 | BB173: 22518 | BC173: 132 | BD173: 406 | BE173: 76 | BF173: 16 | BG173: 7240 | BI173: 5060 | BJ173: -228 | BL173: 1952 | BM173: -44 | BN173: 82 | BO173: -37 | BP173: 9 | BQ173: 1798 | BS173: 6996 | BY173: 7141 | CA173: 34258 | CF173: 21.75 | CG173: 10.34 | CL173: 16528 | CM173: 1000 | CN173: 20738.24203 | CO173: 20404.88278 | CQ173: 20404.88278 | CS173: 22678 | CU173: 298 | CV173: -13021 | CW173: 39 | CX173: 9010 | CY173: 0
A174: 576 | B174: Padasjoki | C174: 3073 | D174: 21 | G174: 14871 | H174: 33423 | I174: 0 | J174: 8425 | K174: 1140 | L174: 1394 | M174: 10959 | N174: 9949 | O174: 152 | P174: 133 | Q174: 19 | R174: 505 | S174: 1889 | U174: 2204 | V174: -2 | X174: -317 | Y174: 375 | Z174: 0 | AA174: -9 | AB174: -18 | AD174: 31 | AF174: 10623 | AI174: -3981 | AL174: 7425 | AN174: 12813 | AQ174: 3027 | AR174: 21 | AU174: 21374 | AV174: 38659 | AW174: 1 | AX174: 7978 | AY174: 1271 | AZ174: 1465 | BA174: 10714 | BB174: 9557 | BC174: 119 | BD174: 131 | BE174: 69 | BF174: 23 | BG174: 3022 | BI174: 2351 | BJ174: 24 | BL174: 695 | BM174: 0 | BN174: 0 | BO174: -25 | BP174: 12 | BQ174: 682 | BS174: 11266 | BY174: 7848 | CA174: 12369 | CF174: 21 | CG174: 9.59 | CL174: 8983 | CM174: 0 | CN174: 9573.693344 | CO174: 9346.463539 | CQ174: 9346.463539 | CS174: 9949 | CU174: -61 | CV174: -2403 | CW174: 155 | CX174: 166 | CY174: -75
A175: 577 | B175: Paimio | C175: 10713 | D175: 20.75 | G175: 32508 | H175: 87548 | I175: 24 | J175: 38973 | K175: 1307 | L175: 1810 | M175: 42090 | N175: 20501 | O175: 457 | P175: 1009 | Q175: 32 | R175: 2 | S175: 7053 | U175: 5227 | V175: -193 | X175: 1633 | Y175: 0 | Z175: 194 | AA175: 0 | AB175: 1 | AD175: 1440 | AF175: -4998 | AI175: -4571 | AL175: 8047 | AN175: 62720 | AQ175: 10730 | AR175: 20.75 | AU175: 34541 | AV175: 86311 | AW175: 33 | AX175: 38296 | AY175: 1494 | AZ175: 2302 | BA175: 42092 | BB175: 19028 | BC175: 27 | BD175: 508 | BE175: 33 | BF175: 1 | BG175: 8933 | BI175: 5408 | BJ175: 0 | BL175: 3525 | BM175: 0 | BN175: 128 | BO175: -22 | BP175: -1 | BQ175: 3374 | BS175: -1159 | BY175: 8828 | CA175: 58874 | CF175: 20.75 | CG175: 9.34 | CL175: 10768 | CM175: 1500 | CN175: 13730.10277 | CO175: 13271.65966 | CQ175: 13271.65966 | CS175: 20501 | CU175: -1612 | CV175: -5624 | CW175: 401 | CX175: 1962 | CY175: 0
A176: 578 | B176: Paltamo | C176: 3491 | D176: 22 | G176: 24769 | H176: 45920 | I176: -1 | J176: 9257 | K176: 622 | L176: 1274 | M176: 11153 | N176: 12645 | O176: 1 | P176: 155 | Q176: 29 | R176: 37 | S176: 2484 | U176: 1651 | V176: 14 | X176: 847 | Y176: -18 | Z176: 0 | AA176: -45 | AB176: 0 | AD176: 784 | AF176: 1408 | AI176: -2596 | AL176: 4361 | AN176: 16886 | AQ176: 3435 | AR176: 22 | AU176: 25295 | AV176: 47544 | AW176: -1 | AX176: 9356 | AY176: 673 | AZ176: 1288 | BA176: 11317 | BB176: 12704 | BC176: 4 | BD176: 55 | BE176: 625 | BF176: 91 | BG176: 2254 | BI176: 2466 | BJ176: 0 | BL176: -212 | BM176: 4 | BN176: 0 | BO176: -47 | BP176: 0 | BQ176: -255 | BS176: 1107 | BY176: 5553 | CA176: 19162 | CF176: 22 | CG176: 10.59 | CL176: 10619 | CM176: 0 | CN176: 12699.96801 | CO176: 12388.30645 | CQ176: 12388.30645 | CS176: 12645 | CU176: 182 | CV176: -3728 | CW176: 151 | CX176: 63 | CY176: 0
A177: 445 | B177: Parainen | C177: 15398 | D177: 19.75 | G177: 48365 | H177: 135253 | I177: 4 | J177: 54746 | K177: 2014 | L177: 9156 | M177: 65916 | N177: 31849 | O177: 4 | P177: 1214 | Q177: 71 | R177: 19 | S177: 9723 | U177: 7293 | V177: 0 | X177: 2430 | Y177: -66 | Z177: 0 | AA177: 0 | AB177: 14 | AD177: 2378 | AF177: 16062 | AI177: -6622 | AL177: 5799 | AN177: 52513 | AQ177: 15285 | AR177: 19.75 | AU177: 49710 | AV177: 137454 | AW177: 13 | AX177: 54787 | AY177: 2254 | AZ177: 9190 | BA177: 66231 | BB177: 30004 | BC177: 1 | BD177: 1221 | BE177: 68 | BF177: 13 | BG177: 7339 | BI177: 7198 | BJ177: 0 | BL177: 141 | BM177: 89 | BN177: 56 | BO177: 15 | BP177: 1 | BQ177: 190 | BS177: 16088 | BY177: 9689 | CA177: 55137 | CF177: 19.75 | CG177: 8.34 | CL177: 27301 | CM177: 0 | CN177: 30036.55354 | CO177: 28329.25036 | CQ177: 28329.25036 | CS177: 31849 | CU177: -106 | CV177: -7093 | CW177: 404 | CX177: 748 | CY177: 0
A178: 580 | B178: Parikkala | C178: 5126 | D178: 19.5 | G178: 30098 | H178: 59624 | I178: 56 | J178: 12990 | K178: 1418 | L178: 1381 | M178: 15789 | N178: 18200 | O178: 36 | P178: 40 | Q178: 43 | R178: 1 | S178: 4545 | U178: 2513 | V178: 0 | X178: 2032 | Y178: -16 | Z178: 0 | AA178: 0 | AB178: -40 | AD178: 1976 | AF178: 17989 | AI178: -3848 | AL178: 5785 | AN178: 4126 | AQ178: 4969 | AR178: 19.5 | AU178: 27793 | AV178: 58376 | AW178: 14 | AX178: 12734 | AY178: 1748 | AZ178: 1332 | BA178: 15814 | BB178: 18571 | BC178: 8 | BD178: 25 | BE178: 40 | BF178: 3 | BG178: 3825 | BI178: 2666 | BJ178: 0 | BL178: 1159 | BM178: 59 | BN178: 27 | BO178: 0 | BP178: -44 | BQ178: 1147 | BS178: 19082 | BY178: 5593 | CA178: 4253 | CF178: 19.5 | CG178: 8.09 | CL178: 15519 | CM178: 0 | CN178: 17758.96031 | CO178: 16324.26617 | CQ178: 16324.26617 | CS178: 18200 | CU178: -26 | CV178: -5283 | CW178: 576 | CX178: 579 | CY178: -507
A179: 581 | B179: Parkano | C179: 6692 | D179: 21 | G179: 35718 | H179: 74186 | I179: 330 | J179: 18541 | K179: 1848 | L179: 1843 | M179: 22232 | N179: 20800 | O179: 17 | P179: 271 | Q179: 112 | R179: 75 | S179: 4625 | U179: 3707 | V179: 39 | X179: 957 | Y179: 4 | Z179: 38 | AA179: 2 | AB179: -20 | AD179: 905 | AF179: 10065 | AI179: -5344 | AL179: 5283 | AN179: 28942 | AQ179: 6562 | AR179: 21 | AU179: 35703 | AV179: 73847 | AW179: 214 | AX179: 18014 | AY179: 2181 | AZ179: 1868 | BA179: 22063 | BB179: 20787 | BC179: 14 | BD179: 314 | BE179: 380 | BF179: 77 | BG179: 4871 | BI179: 2836 | BJ179: 0 | BL179: 2035 | BM179: 0 | BN179: 37 | BO179: -1 | BP179: -61 | BQ179: 1936 | BS179: 11769 | BY179: 4554 | CA179: 28203 | CF179: 22 | CG179: 10.59 | CL179: 13786 | CM179: 0 | CN179: 18455.37116 | CO179: 17952.72992 | CQ179: 17952.72992 | CS179: 20800 | CU179: -1232 | CV179: -5123 | CW179: 373 | CX179: 1269 | CY179: 83
A180: 599 | B180: Pedersören kunta | C180: 11067 | D180: 20.5 | G180: 30303 | H180: 87740 | I180: 24 | J180: 30276 | K180: 3058 | L180: 2146 | M180: 35480 | N180: 25316 | O180: 56 | P180: 181 | Q180: 195 | R180: 203 | S180: 3250 | U180: 3575 | V180: -2 | X180: -327 | Y180: -97 | Z180: 34 | AA180: 0 | AB180: -1 | AD180: -459 | AF180: 12273 | AI180: -5709 | AL180: 3287 | AN180: 30598 | AQ180: 11084 | AR180: 20.5 | AU180: 28460 | AV180: 85473 | AW180: 90 | AX180: 30169 | AY180: 3210 | AZ180: 2184 | BA180: 35563 | BB180: 25471 | BC180: 34 | BD180: 57 | BE180: 165 | BF180: 164 | BG180: 4089 | BI180: 3454 | BJ180: 44 | BL180: 679 | BM180: -105 | BN180: 37 | BO180: 0 | BP180: 0 | BQ180: 537 | BS180: 13191 | BY180: 6510 | CA180: 37401 | CF180: 20.5 | CG180: 9.09 | CL180: 24766 | CM180: 0 | CN180: 25485.84859 | CO180: 25030.10159 | CQ180: 25030.10159 | CS180: 25316 | CU180: -296 | CV180: -9339 | CW180: 190 | CX180: 252 | CY180: 0
A181: 583 | B181: Pelkosenniemi | C181: 951 | D181: 21.5 | G181: 5413 | H181: 13194 | I181: -10 | J181: 2868 | K181: 276 | L181: 1752 | M181: 4896 | N181: 4027 | O181: 13 | P181: 43 | Q181: 38 | R181: 6 | S181: 1106 | U181: 640 | V181: -26 | X181: 440 | Y181: -12 | Z181: 0 | AA181: -9 | AB181: -3 | AD181: 416 | AF181: 2215 | AI181: -890 | AL181: 1429 | AN181: 4739 | AQ181: 958 | AR181: 22 | AU181: 5600 | AV181: 13466 | AW181: -10 | AX181: 2883 | AY181: 357 | AZ181: 1737 | BA181: 4977 | BB181: 3995 | BC181: 3 | BD181: 38 | BE181: 36 | BF181: 6 | BG181: 1062 | BI181: 739 | BJ181: -7 | BL181: 316 | BM181: -8 | BN181: 0 | BO181: -13 | BP181: 8 | BQ181: 303 | BS181: 2518 | BY181: 1620 | CA181: 4081 | CF181: 22.25 | CG181: 10.84 | CL181: 3431 | CM181: 0 | CN181: 3960.185002 | CO181: 3952.583524 | CQ181: 3952.583524 | CS181: 4027 | CU181: -106 | CV181: -373 | CW181: 80 | CX181: 132 | CY181: 0
A182: 854 | B182: Pello | C182: 3565 | D182: 20.25 | G182: 13610 | H182: 39696 | I182: 3 | J182: 9937 | K182: 672 | L182: 720 | M182: 11329 | N182: 16420 | O182: 1 | P182: 84 | Q182: 86 | R182: 19 | S182: 1650 | U182: 1854 | V182: 0 | X182: -204 | Y182: 0 | Z182: 19 | AA182: 0 | AB182: 2 | AD182: -221 | AF182: 4736 | AI182: -2937 | AL182: 2868 | AN182: 9617 | AQ182: 3510 | AR182: 20.25 | AU182: 13802 | AV182: 40850 | AW182: 0 | AX182: 9553 | AY182: 791 | AZ182: 746 | BA182: 11090 | BB182: 16104 | BC182: 1 | BD182: 69 | BE182: 184 | BF182: 52 | BG182: 210 | BI182: 2091 | BJ182: -21 | BL182: -1902 | BM182: 20 | BN182: 37 | BO182: 0 | BP182: 1 | BQ182: -1918 | BS182: 2861 | BY182: 2485 | CA182: 10906 | CF182: 21 | CG182: 9.59 | CL182: 14081 | CM182: 0 | CN182: 14833.95078 | CO182: 14851.61064 | CQ182: 14851.61064 | CS182: 16420 | CU182: 1 | CV182: -1659 | CW182: 143 | CX182: 38 | CY182: 46
A183: 584 | B183: Perho | C183: 2907 | D183: 21 | G183: 9874 | H183: 28066 | I183: -7 | J183: 6094 | K183: 547 | L183: 487 | M183: 7128 | N183: 13024 | O183: 226 | P183: 46 | Q183: 11 | R183: -5 | S183: 2143 | U183: 1746 | V183: -8 | X183: 389 | Y183: 1 | Z183: 0 | AA183: 0 | AB183: -4 | AD183: 386 | AF183: 5474 | AI183: -3990 | AL183: 6474 | AN183: 10666 | AQ183: 2860 | AR183: 21.5 | AU183: 13725 | AV183: 32479 | AW183: 4 | AX183: 6569 | AY183: 650 | AZ183: 583 | BA183: 7802 | BB183: 12672 | BC183: 347 | BD183: 79 | BE183: 31 | BF183: 26 | BG183: 1990 | BI183: 1778 | BJ183: 0 | BL183: 212 | BM183: 55 | BN183: 0 | BO183: 0 | BP183: -4 | BQ183: 263 | BS183: 5739 | BY183: 7449 | CA183: 15218 | CF183: 21.5 | CG183: 10.09 | CL183: 10360 | CM183: 0 | CN183: 11536.8457 | CO183: 11227.07278 | CQ183: 11227.07278 | CS183: 13024 | CU183: -65 | CV183: -5121 | CW183: 87 | CX183: 55 | CY183: 12
A184: 588 | B184: Pertunmaa | C184: 1796 | D184: 21 | G184: 7052 | H184: 17932 | I184: 0 | J184: 4056 | K184: 734 | L184: 836 | M184: 5626 | N184: 6479 | O184: 0 | P184: 44 | Q184: 62 | R184: 2 | S184: 1241 | U184: 827 | V184: 0 | X184: 414 | Y184: -3 | Z184: 0 | AA184: 4 | AB184: -3 | AD184: 412 | AF184: 409 | AI184: -1803 | AL184: 1870 | AN184: 7657 | AQ184: 1739 | AR184: 21 | AU184: 10297 | AV184: 21391 | AW184: 0 | AX184: 4126 | AY184: 841 | AZ184: 813 | BA184: 5780 | BB184: 6328 | BC184: 3 | BD184: 50 | BE184: 136 | BF184: 1 | BG184: 1102 | BI184: 877 | BJ184: 6 | BL184: 231 | BM184: -10 | BN184: 0 | BO184: 15 | BP184: -4 | BQ184: 232 | BS184: 656 | BY184: 2048 | CA184: 9210 | CF184: 21.5 | CG184: 10.09 | CL184: 5420 | CM184: 0 | CN184: 6163.135615 | CO184: 5714.545087 | CQ184: 5714.545087 | CS184: 6479 | CU184: 23 | CV184: -1900 | CW184: 12 | CX184: 21 | CY184: -27
A185: 592 | B185: Petäjävesi | C185: 3981 | D185: 21.25 | G185: 10820 | H185: 34218 | I185: 0 | J185: 10960 | K185: 884 | L185: 852 | M185: 12696 | N185: 12238 | O185: 26 | P185: 180 | Q185: 151 | R185: 22 | S185: 1511 | U185: 1771 | V185: 0 | X185: -260 | Y185: -218 | Z185: 0 | AA185: 0 | AB185: 0 | AD185: -478 | AF185: 9184 | AI185: -3376 | AL185: 5902 | AN185: 19679 | AQ185: 3920 | AR185: 21.25 | AU185: 11014 | AV185: 34317 | AW185: 0 | AX185: 11046 | AY185: 1081 | AZ185: 882 | BA185: 13009 | BB185: 11941 | BC185: 2 | BD185: 148 | BE185: 219 | BF185: 31 | BG185: 1689 | BI185: 2356 | BJ185: 0 | BL185: -667 | BM185: 221 | BN185: 0 | BO185: 0 | BP185: 0 | BQ185: -446 | BS185: 8527 | BY185: 6122 | CA185: 20387 | CF185: 21.75 | CG185: 10.34 | CL185: 9266 | CM185: 0 | CN185: 10788.01996 | CO185: 10118.00314 | CQ185: 10118.00314 | CS185: 12238 | CU185: -46 | CV185: -2839 | CW185: 55 | CX185: 109 | CY185: 4
A186: 593 | B186: Pieksämäki | C186: 18475 | D186: 22 | G186: 53162 | H186: 156586 | I186: 80 | J186: 59467 | K186: 4151 | L186: 4264 | M186: 67882 | N186: 49675 | O186: 29 | P186: 887 | Q186: 579 | R186: 23 | S186: 13640 | U186: 8695 | V186: 3 | X186: 4948 | Y186: 102 | Z186: 10 | AA186: -124 | AB186: -9 | AD186: 4907 | AF186: -3491 | AI186: -9105 | AL186: 8270 | AN186: 98935 | AQ186: 18220 | AR186: 22 | AU186: 71597 | AV186: 172931 | AW186: -413 | AX186: 58000 | AY186: 4818 | AZ186: 4152 | BA186: 66970 | BB186: 49505 | BC186: 72 | BD186: 837 | BE186: 741 | BF186: 200 | BG186: 14254 | BI186: 9299 | BJ186: 10 | BL186: 4965 | BM186: 0 | BN186: 39 | BO186: -162 | BP186: -30 | BQ186: 4734 | BS186: 1247 | BY186: 11212 | CA186: 95033 | CF186: 22 | CG186: 10.59 | CL186: 41062 | CM186: 0 | CN186: 49602.32225 | CO186: 47737.66045 | CQ186: 47737.66045 | CS186: 49675 | CU186: 544 | CV186: -10114 | CW186: 182 | CX186: 258 | CY186: 47
A187: 595 | B187: Pielavesi | C187: 4697 | D187: 20.75 | G187: 19410 | H187: 51519 | I187: 20 | J187: 10470 | K187: 1339 | L187: 1164 | M187: 12973 | N187: 21288 | O187: 53 | P187: 217 | Q187: 243 | R187: 34 | S187: 2183 | U187: 2382 | V187: 42 | X187: -157 | Y187: -3 | Z187: 3 | AA187: -3 | AB187: -14 | AD187: -180 | AF187: -1964 | AI187: -10021 | AL187: 3260 | AN187: 26255 | AQ187: 4624 | AR187: 20.75 | AU187: 19604 | AV187: 50944 | AW187: 33 | AX187: 10348 | AY187: 1534 | AZ187: 1178 | BA187: 13060 | BB187: 21825 | BC187: 45 | BD187: 261 | BE187: 524 | BF187: 33 | BG187: 3820 | BI187: 2982 | BJ187: 2 | BL187: 840 | BM187: 6 | BN187: 7 | BO187: -13 | BP187: -18 | BQ187: 808 | BS187: -1094 | BY187: 3803 | CA187: 26351 | CF187: 21.75 | CG187: 10.34 | CL187: 17265 | CM187: 0 | CN187: 20364.45725 | CO187: 19723.97552 | CQ187: 19723.97552 | CS187: 21288 | CU187: -5 | CV187: -5679 | CW187: 3476 | CX187: 16 | CY187: 132
A188: 598 | B188: Pietarsaari | C188: 19377 | D188: 21.25 | G188: 132705 | H188: 241366 | I188: 6303 | J188: 67731 | K188: 5140 | L188: 4677 | M188: 77548 | N188: 39204 | O188: 129 | P188: 1332 | Q188: 1520 | R188: 311 | S188: 14400 | U188: 10681 | V188: -1047 | X188: 2672 | Y188: 0 | Z188: 0 | AA188: 0 | AB188: 4 | AD188: 2676 | AF188: 93902 | AI188: -11517 | AL188: 5930 | AN188: 93625 | AQ188: 19379 | AR188: 21.25 | AU188: 122038 | AV188: 231005 | AW188: 3641 | AX188: 66694 | AY188: 5922 | AZ188: 5119 | BA188: 77735 | BB188: 39672 | BC188: 234 | BD188: 1102 | BE188: -206 | BF188: 271 | BG188: 10736 | BI188: 11974 | BJ188: -278 | BL188: -1516 | BM188: 1396 | BN188: 0 | BO188: 200 | BP188: -14 | BQ188: 66 | BS188: 90127 | BY188: 9860 | CA188: 109002 | CF188: 21.25 | CG188: 9.84 | CL188: 33518 | CM188: 0 | CN188: 39249.62324 | CO188: 38649.39181 | CQ188: 38649.39181 | CS188: 39204 | CU188: -1462 | CV188: -14737 | CW188: 772 | CX188: 498 | CY188: -1076
A189: 601 | B189: Pihtipudas | C189: 4202 | D189: 21 | G189: 26501 | H189: 53840 | I189: 0 | J189: 9536 | K189: 1398 | L189: 859 | M189: 11793 | N189: 18965 | O189: 365 | P189: 159 | Q189: 61 | R189: 61 | S189: 3625 | U189: 2347 | V189: 0 | X189: 1278 | Y189: 0 | Z189: 0 | AA189: 0 | AB189: 0 | AD189: 1278 | AF189: 10522 | AI189: -6466 | AL189: 11528 | AN189: 27551 | AQ189: 4127 | AR189: 21 | AU189: 26768 | AV189: 54316 | AW189: 0 | AX189: 9872 | AY189: 1628 | AZ189: 935 | BA189: 12435 | BB189: 18158 | BC189: 263 | BD189: 130 | BE189: 78 | BF189: 76 | BG189: 3180 | BI189: 2542 | BJ189: 0 | BL189: 638 | BM189: -22 | BN189: 0 | BO189: 0 | BP189: 0 | BQ189: 616 | BS189: 13448 | BY189: 12156 | CA189: 27901 | CF189: 21 | CG189: 9.59 | CL189: 15100 | CM189: 0 | CN189: 17185.75717 | CO189: 16315.52903 | CQ189: =CO189-CP189 -> 16315.52903 | CS189: 18965 | CU189: -13 | CV189: -3830 | CW189: 3 | CX189: 92 | CY189: 0
A190: 604 | B190: Pirkkala | C190: 19163 | D190: 20 | G190: 50863 | H190: 129875 | I190: 9 | J190: 77696 | K190: 2989 | L190: 4124 | M190: 84809 | N190: 11735 | O190: 4 | P190: 595 | Q190: 631 | R190: 534 | S190: 17047 | U190: 10078 | V190: 38 | X190: 7007 | Y190: 4 | Z190: 29 | AA190: 1 | AB190: 49 | AD190: 7032 | AF190: 54538 | AI190: -2423 | AL190: 12193 | AN190: 46945 | AQ190: 19237 | AR190: 20 | AU190: 47171 | AV190: 132603 | AW190: 38 | AX190: 76541 | AY190: 3743 | AZ190: 5164 | BA190: 85448 | BB190: 11272 | BC190: 3 | BD190: 486 | BE190: 354 | BF190: 177 | BG190: 11020 | BI190: 8997 | BJ190: 0 | BL190: 2023 | BM190: -400 | BN190: 33 | BO190: -2 | BP190: 57 | BQ190: 1645 | BS190: 56183 | BY190: 6879 | CA190: 42237 | CF190: 20 | CG190: 8.59 | CL190: 12842 | CM190: 0 | CN190: 11264.74413 | CO190: 10576.65385 | CQ190: 10576.65385 | CS190: 11735 | CU190: -5237 | CV190: -14833 | CW190: 47 | CX190: 5506 | CY190: 1
A191: 607 | B191: Polvijärvi | C191: 4514 | D191: 20.25 | G191: 17066 | H191: 40873 | I191: 0 | J191: 9659 | K191: 1026 | L191: 919 | M191: 11604 | N191: 15123 | O191: 20 | P191: 100 | Q191: 243 | R191: 19 | S191: 3064 | U191: 2391 | V191: 4 | X191: 677 | Y191: 355 | Z191: 0 | AA191: 0 | AB191: 0 | AD191: 1032 | AF191: 17865 | AI191: -2491 | AL191: 10037 | AN191: 6196 | AQ191: 4414 | AR191: 20.25 | AU191: 30998 | AV191: 55734 | AW191: 0 | AX191: 9963 | AY191: 1241 | AZ191: 909 | BA191: 12113 | BB191: 15790 | BC191: 12 | BD191: 84 | BE191: 280 | BF191: 108 | BG191: 3267 | BI191: 2165 | BJ191: 0 | BL191: 1102 | BM191: -801 | BN191: 0 | BO191: 0 | BP191: 0 | BQ191: 301 | BS191: 22210 | BY191: 11855 | CA191: 6330 | CF191: 20.25 | CG191: 8.84 | CL191: 14119 | CM191: 0 | CN191: 14490.69587 | CO191: 14120.86116 | CQ191: 14120.86116 | CS191: 15123 | CU191: 292 | CV191: -7662 | CW191: 46 | CX191: 87 | CY191: -1
A192: 608 | B192: Pomarkku | C192: 2233 | D192: 20.5 | G192: 11090 | H192: 25364 | I192: 0 | J192: 5578 | K192: 434 | L192: 443 | M192: 6455 | N192: 8456 | O192: 2 | P192: 36 | Q192: 18 | R192: 9 | S192: 604 | U192: 779 | V192: 0 | X192: -175 | Y192: 0 | Z192: 0 | AA192: -4 | AB192: 0 | AD192: -179 | AF192: 3914 | AI192: -295 | AL192: 968 | AN192: 5225 | AQ192: 2166 | AR192: 20.5 | AU192: 10984 | AV192: 25278 | AW192: 0 | AX192: 5495 | AY192: 530 | AZ192: 534 | BA192: 6559 | BB192: 8188 | BC192: 1 | BD192: 33 | BE192: 14 | BF192: 9 | BG192: 416 | BI192: 758 | BJ192: 0 | BL192: -342 | BM192: 0 | BN192: 0 | BO192: -20 | BP192: -3 | BQ192: -365 | BS192: 3548 | BY192: 1049 | CA192: 5276 | CF192: 20.5 | CG192: 9.09 | CL192: 7283 | CM192: 0 | CN192: 7763.786984 | CO192: 7631.852236 | CQ192: 7631.852236 | CS192: 8456 | CU192: 16 | CV192: -464 | CW192: 5 | CX192: 32 | CY192: 7
A193: 609 | B193: Pori | C193: 85059 | D193: 19.75 | G193: 423624 | H193: 863129 | I193: -681 | J193: 271049 | K193: 14121 | L193: 23230 | M193: 308400 | N193: 221256 | O193: 1594 | P193: 5429 | Q193: 3544 | R193: 275 | S193: 87157 | U193: 66301 | V193: 0 | X193: 20856 | Y193: 66 | Z193: 0 | AA193: -2576 | AB193: -516 | AD193: 17830 | AF193: 41079 | AI193: -71904 | AL193: 100109 | AN193: 450965 | AQ193: 84587 | AR193: 19.75 | AU193: 420243 | AV193: 849848 | AW193: -918 | AX193: 263387 | AY193: 16961 | AZ193: 23139 | BA193: 303487 | BB193: 211754 | BC193: 703 | BD193: 5311 | BE193: 3598 | BF193: 196 | BG193: 81535 | BI193: 63540 | BJ193: 0 | BL193: 17995 | BM193: -12 | BN193: 0 | BO193: -3550 | BP193: 480 | BQ193: 14913 | BS193: 64942 | BY193: 93825 | CA193: 451663 | CF193: 19.75 | CG193: 8.34 | CL193: 162805 | CM193: 0 | CN193: 139000.0646 | CO193: 138742.1088 | CQ193: 138742.1088 | CS193: =N193-CR193 -> 221256 | CU193: -8693 | CV193: -73402 | CW193: 1718 | CX193: -7631 | CY193: 186
A194: 611 | B194: Pornainen | C194: 5108 | D194: 20.5 | G194: 9657 | H194: 32397 | I194: 3 | J194: 17837 | K194: 351 | L194: 1099 | M194: 19287 | N194: 7348 | O194: 49 | P194: 219 | Q194: 8 | R194: 33 | S194: 3703 | U194: 2189 | V194: 0 | X194: 1514 | Y194: 17 | Z194: 0 | AA194: 0 | AB194: 0 | AD194: 1531 | AF194: 7856 | AI194: -2019 | AL194: 4395 | AN194: 16216 | AQ194: 5121 | AR194: 20.5 | AU194: 10329 | AV194: 32999 | AW194: 9 | AX194: 18040 | AY194: 627 | AZ194: 1129 | BA194: 19796 | BB194: 7123 | BC194: 48 | BD194: 208 | BE194: 8 | BF194: 33 | BG194: 4073 | BI194: 2171 | BJ194: 18 | BL194: 1920 | BM194: 19 | BN194: 0 | BO194: 0 | BP194: 0 | BQ194: 1939 | BS194: 9774 | BY194: 5595 | CA194: 15865 | CF194: 20.5 | CG194: 9.09 | CL194: 6500 | CM194: 0 | CN194: 6002.922386 | CO194: 5452.21349 | CQ194: 5452.21349 | CS194: 7348 | CU194: -466 | CV194: -2095 | CW194: 6 | CX194: 599 | CY194: 35
A195: 638 | B195: Porvoo | C195: 50144 | D195: 19.75 | G195: 230928 | H195: 469088 | I195: 467 | J195: 196962 | K195: 14924 | L195: 16841 | M195: 228727 | N195: 70944 | O195: 367 | P195: 3521 | Q195: 912 | R195: 591 | S195: 59145 | U195: 46478 | V195: 2030 | X195: 14697 | Y195: -2763 | Z195: 477 | AA195: -461 | AB195: -152 | AD195: 10844 | AF195: 36598 | AI195: -73314 | AL195: 34730 | AN195: 294488 | AQ195: 50159 | AR195: 19.75 | AU195: 236146 | AV195: 467662 | AW195: 565 | AX195: 190592 | AY195: 13931 | AZ195: 16658 | BA195: 221181 | BB195: 66196 | BC195: 117 | BD195: 3729 | BE195: 1209 | BF195: 553 | BG195: 53470 | BI195: 48947 | BJ195: 231 | BL195: 4754 | BM195: -924 | BN195: -1 | BO195: 391 | BP195: -129 | BQ195: 4093 | BS195: 40627 | BY195: 44047 | CA195: 332690 | CF195: 19.75 | CG195: 8.34 | CL195: 47509 | CM195: 0 | CN195: 49098.30335 | CO195: 48447.3613 | CQ195: 48447.3613 | CS195: 70944 | CU195: -9992 | CV195: -88513 | CW195: 1539 | CX195: 12404 | CY195: -6
A196: 614 | B196: Posio | C196: 3424 | D196: 21.75 | G196: 18573 | H196: 42294 | I196: 1 | J196: 8126 | K196: 705 | L196: 1234 | M196: 10065 | N196: 15907 | O196: 2 | P196: 470 | Q196: 81 | R196: -4 | S196: 1869 | U196: 1750 | V196: 0 | X196: 119 | Y196: 165 | Z196: 0 | AA196: 0 | AB196: -1 | AD196: 283 | AF196: -1348 | AI196: -1104 | AL196: 6432 | AN196: 19949 | AQ196: 3310 | AR196: 21.75 | AU196: 18741 | AV196: 41555 | AW196: 6 | AX196: 8590 | AY196: 786 | AZ196: 1277 | BA196: =AX196+AY196+AZ196 -> 10653 | BB196: 17140 | BC196: 4 | BD196: 337 | BE196: 284 | BF196: 55 | BG196: 4880 | BI196: 1778 | BJ196: 1 | BL196: 3103 | BM196: 12 | BN196: 0 | BO196: 0 | BP196: 0 | BQ196: 3115 | BS196: 1751 | BY196: 10385 | CA196: 18334 | CF196: 21.75 | CG196: =CF196-$CG$1 -> 10.34 | CL196: 14059 | CM196: 0 | CN196: 17214.19948 | CO196: 16583.16364 | CQ196: 16583.16364 | CS196: 15907 | CU196: -51 | CV196: -1181 | CW196: 20 | CX196: 1 | CY196: 0
A197: 615 | B197: Pudasjärvi | C197: 8187 | D197: 20.5 | G197: 60663 | H197: 114867 | I197: 1 | J197: 18211 | K197: 2398 | L197: 1839 | M197: 22448 | N197: 38491 | O197: 38 | P197: 879 | Q197: 494 | R197: 155 | S197: 6234 | U197: 7744 | V197: 0 | X197: -1510 | Y197: 131 | Z197: 0 | AA197: 0 | AB197: -4 | AD197: -1383 | AF197: 11322 | AI197: -10745 | AL197: 19420 | AN197: 48689 | AQ197: 8103 | AR197: 20.5 | AU197: 60389 | AV197: 115300 | AW197: 32 | AX197: 18463 | AY197: 2832 | AZ197: 1971 | BA197: 23266 | BB197: 36935 | BC197: 66 | BD197: 554 | BE197: 2176 | BF197: 10 | BG197: 7000 | BI197: 5950 | BJ197: 0 | BL197: 1050 | BM197: 591 | BN197: 30 | BO197: -7 | BP197: -3 | BQ197: 1601 | BS197: 12732 | BY197: 20677 | CA197: 47681 | CF197: 20.5 | CG197: 9.09 | CL197: 33842 | CM197: 1200 | CN197: 37145.96677 | CO197: 35460.43633 | CQ197: 35460.43633 | CS197: 38491 | CU197: 109 | CV197: -8876 | CW197: 90 | CX197: 355 | CY197: 54
A198: 616 | B198: Pukkila | C198: 1988 | D198: 22 | G198: 6855 | H198: 17513 | I198: 0 | J198: 6509 | K198: 399 | L198: 406 | M198: 7314 | N198: 3837 | O198: 1 | P198: 137 | Q198: 147 | R198: 4 | S198: 500 | U198: 2866 | V198: 4409 | X198: 2043 | Y198: -1 | Z198: 0 | AA198: 0 | AB198: 0 | AD198: 2042 | AF198: 2889 | AI198: 4236 | AL198: 982 | AN198: 5859 | AQ198: 1940 | AR198: 22 | AU198: 9946 | AV198: 20099 | AW198: 0 | AX198: 6556 | AY198: 455 | AZ198: 445 | BA198: 7456 | BB198: 3662 | BC198: 22 | BD198: 102 | BE198: 148 | BF198: 3 | BG198: 1030 | BI198: 900 | BJ198: 491 | BL198: 621 | BM198: 0 | BN198: 0 | BO198: 0 | BP198: 0 | BQ198: 621 | BS198: 3470 | BY198: 1494 | CA198: 5908 | CF198: 21.5 | CG198: 10.09 | CL198: 3759 | CM198: 0 | CN198: 3433.341008 | CO198: 3224.802007 | CQ198: 3224.802007 | CS198: 3837 | CU198: -507 | CV198: -377 | CW198: 0 | CX198: 585 | CY198: -6
A199: 619 | B199: Punkalaidun | C199: 3003 | D199: 21.5 | G199: 11281 | H199: 29194 | I199: 1 | J199: 7507 | K199: 522 | L199: 617 | M199: 8646 | N199: 11231 | O199: 0 | P199: 63 | Q199: 11 | R199: 0 | S199: 1913 | U199: 1497 | V199: 0 | X199: 416 | Y199: 0 | Z199: 0 | AA199: 0 | AB199: 0 | AD199: 416 | AF199: 3840 | AI199: -985 | AL199: 1264 | AN199: 6102 | AQ199: 2949 | AR199: 21.5 | AU199: 11158 | AV199: 28793 | AW199: 2 | AX199: 7772 | AY199: 603 | AZ199: 606 | BA199: 8981 | BB199: 10920 | BC199: 1 | BD199: 65 | BE199: 6 | BF199: 0 | BG199: 2210 | BI199: 1802 | BJ199: 0 | BL199: 408 | BM199: 0 | BN199: 0 | BO199: 0 | BP199: -1 | BQ199: 407 | BS199: 4242 | BY199: 1723 | CA199: 4390 | CF199: 22 | CG199: 10.59 | CL199: 10219 | CM199: 0 | CN199: 10917.47897 | CO199: 10151.05897 | CQ199: 10151.05897 | CS199: 11231 | CU199: 43 | CV199: -715 | CW199: 23 | CX199: 20 | CY199: 14
A200: 620 | B200: Puolanka | C200: 2735 | D200: 21.5 | G200: 20531 | H200: 41562 | I200: 0 | J200: 6859 | K200: 1244 | L200: 813 | M200: 8916 | N200: 14110 | O200: 2 | P200: 64 | Q200: 41 | R200: 37 | S200: 1937 | U200: 1639 | V200: 11 | X200: 309 | Y200: -16 | Z200: 0 | AA200: 0 | AB200: 0 | AD200: 293 | AF200: 3014 | AI200: -903 | AL200: 1409 | AN200: 9595 | AQ200: 2669 | AR200: 21.5 | AU200: 19587 | AV200: 41098 | AW200: 0 | AX200: 6697 | AY200: 1367 | AZ200: 798 | BA200: 8862 | BB200: 14220 | BC200: 3 | BD200: 64 | BE200: 1415 | BF200: 24 | BG200: 2901 | BI200: 1759 | BJ200: 0 | BL200: 1142 | BM200: 4 | BN200: 0 | BO200: -23 | BP200: 0 | BQ200: 1123 | BS200: 3644 | BY200: 3295 | CA200: 9864 | CF200: 21.5 | CG200: 10.09 | CL200: 12863 | CM200: 0 | CN200: 14220.02569 | CO200: 13754.53295 | CQ200: 13754.53295 | CS200: 14110 | CU200: 120 | CV200: -1844 | CW200: 30 | CX200: 59 | CY200: 1492
... 98 more rows

Sheet väestöennuste
A1: Väestöennuste 2015 kunnittain 2017-2024
A2: TK, 28.9.2015
A3: 2017 kuntajako | B3: 3 | C3: 4 | D3: 6 | E3: 7 | F3: 8 | G3: 9 | H3: 10 | I3: 11 | J3: 12 | K3: 13
B5: 2015 | C5: 2016 | D5: 2017 | E5: 2018 | F5: 2019 | G5: 2020 | H5: 2021 | I5: 2022 | J5: 2023 | K5: 2024
A8: Akaa | B8: =pohjatiedot!C3 -> 16923 | C8: =pohjatiedot!AQ3 -> 16769 | D8: 17070 | E8: 17092 | F8: 17116 | G8: 17150 | H8: 17184 | I8: 17218 | J8: 17248 | K8: 17275
A9: Alajärvi | B9: =pohjatiedot!C4 -> 9899 | C9: =pohjatiedot!AQ4 -> 9831 | D9: 10001 | E9: 9923 | F9: 9845 | G9: 9769 | H9: 9697 | I9: 9629 | J9: 9560 | K9: 9499
A10: Alavieska | B10: =pohjatiedot!C5 -> 2639 | C10: =pohjatiedot!AQ5 -> 2610 | D10: 2650 | E10: 2631 | F10: 2615 | G10: 2599 | H10: 2586 | I10: 2572 | J10: 2560 | K10: 2549
A11: Alavus | B11: =pohjatiedot!C6 -> 11907 | C11: =pohjatiedot!AQ6 -> 11713 | D11: 11877 | E11: 11780 | F11: 11689 | G11: 11605 | H11: 11527 | I11: 11454 | J11: 11384 | K11: 11319
A12: Asikkala | B12: =pohjatiedot!C7 -> 8323 | C12: =pohjatiedot!AQ7 -> 8248 | D12: 8294 | E12: 8262 | F12: 8239 | G12: 8219 | H12: 8200 | I12: 8184 | J12: 8172 | K12: 8159
A13: Askola | B13: =pohjatiedot!C8 -> 5046 | C13: =pohjatiedot!AQ8 -> 4990 | D13: 5169 | E13: 5220 | F13: 5270 | G13: 5320 | H13: 5365 | I13: 5410 | J13: 5449 | K13: 5490
A14: Aura | B14: =pohjatiedot!C9 -> 3984 | C14: =pohjatiedot!AQ9 -> 3991 | D14: 4035 | E14: 4058 | F14: 4079 | G14: 4099 | H14: 4118 | I14: 4134 | J14: 4152 | K14: 4168
A15: Enonkoski | B15: =pohjatiedot!C10 -> 1453 | C15: =pohjatiedot!AQ10 -> 1416 | D15: 1462 | E15: 1445 | F15: 1430 | G15: 1416 | H15: 1401 | I15: 1388 | J15: 1375 | K15: 1363
A16: Enontekiö | B16: =pohjatiedot!C11 -> 1872 | C16: =pohjatiedot!AQ11 -> 1893 | D16: 1896 | E16: 1902 | F16: 1910 | G16: 1917 | H16: 1926 | I16: 1936 | J16: 1945 | K16: 1956
A17: Espoo | B17: =pohjatiedot!C12 -> 274583 | C17: =pohjatiedot!AQ12 -> 279044 | D17: 273484 | E17: 277445 | F17: 281312 | G17: 285087 | H17: 288763 | I17: 292333 | J17: 295784 | K17: 299117
A18: Eura | B18: =pohjatiedot!C13 -> 12004 | C18: =pohjatiedot!AQ13 -> 11910 | D18: 12205 | E18: 12166 | F18: 12127 | G18: 12091 | H18: 12059 | I18: 12028 | J18: 11995 | K18: 11960
A19: Eurajoki | B19: =pohjatiedot!C14 -> 9418 | C19: =pohjatiedot!AQ14 -> 9521 | D19: 5964 | E19: 5972 | F19: 5984 | G19: 5995 | H19: 6007 | I19: 6016 | J19: 6024 | K19: 6029
A20: Evijärvi | B20: =pohjatiedot!C15 -> 2535 | C20: =pohjatiedot!AQ15 -> 2499 | D20: 2596 | E20: 2571 | F20: 2548 | G20: 2528 | H20: 2510 | I20: 2492 | J20: 2474 | K20: 2458
A21: Forssa | B21: =pohjatiedot!C16 -> 17332 | C21: =pohjatiedot!AQ16 -> 17185 | D21: 17389 | E21: 17336 | F21: 17286 | G21: 17237 | H21: 17197 | I21: 17163 | J21: 17132 | K21: 17101
A22: Haapajärvi | B22: =pohjatiedot!C17 -> 7332 | C22: =pohjatiedot!AQ17 -> 7251 | D22: 7381 | E22: 7332 | F22: 7284 | G22: 7237 | H22: 7195 | I22: 7153 | J22: 7117 | K22: 7080
A23: Haapavesi | B23: =pohjatiedot!C18 -> 7098 | C23: =pohjatiedot!AQ18 -> 6970 | D23: 7069 | E23: 7020 | F23: 6974 | G23: 6927 | H23: 6886 | I23: 6844 | J23: 6803 | K23: 6763
A24: Hailuoto | B24: =pohjatiedot!C19 -> 994 | C24: =pohjatiedot!AQ19 -> 967 | D24: 995 | E24: 994 | F24: 996 | G24: 997 | H24: 997 | I24: 998 | J24: 999 | K24: 1000
A25: Halsua | B25: =pohjatiedot!C20 -> 1219 | C25: =pohjatiedot!AQ20 -> 1171 | D25: 1177 | E25: 1156 | F25: 1137 | G25: 1116 | H25: 1096 | I25: 1078 | J25: 1062 | K25: 1047
A26: Hamina | B26: =pohjatiedot!C21 -> 20636 | C26: =pohjatiedot!AQ21 -> 20493 | D26: 20848 | E26: 20752 | F26: 20659 | G26: 20565 | H26: 20470 | I26: 20376 | J26: 20285 | K26: 20196
A27: Hankasalmi | B27: =pohjatiedot!C22 -> 5159 | C27: =pohjatiedot!AQ22 -> 5019 | D27: 5213 | E27: 5171 | F27: 5133 | G27: 5096 | H27: 5063 | I27: 5031 | J27: 5000 | K27: 4971
A28: Hanko | B28: =pohjatiedot!C23 -> 8663 | C28: =pohjatiedot!AQ23 -> 8517 | D28: 8789 | E28: 8690 | F28: 8598 | G28: 8510 | H28: 8428 | I28: 8351 | J28: 8281 | K28: 8211
A29: Harjavalta | B29: =pohjatiedot!C24 -> 7240 | C29: =pohjatiedot!AQ24 -> 7151 | D29: 7292 | E29: 7255 | F29: 7221 | G29: 7190 | H29: 7159 | I29: 7126 | J29: 7094 | K29: 7063
A30: Hartola | B30: =pohjatiedot!C25 -> 2924 | C30: =pohjatiedot!AQ25 -> 2882 | D30: 2960 | E30: 2914 | F30: 2875 | G30: 2843 | H30: 2816 | I30: 2790 | J30: 2767 | K30: 2746
A31: Hattula | B31: =pohjatiedot!C26 -> 9682 | C31: =pohjatiedot!AQ26 -> 9610 | D31: 9788 | E31: 9807 | F31: 9824 | G31: 9837 | H31: 9848 | I31: 9861 | J31: 9873 | K31: 9885
A32: Hausjärvi | B32: =pohjatiedot!C27 -> 8641 | C32: =pohjatiedot!AQ27 -> 8504 | D32: 8814 | E32: 8817 | F32: 8825 | G32: 8836 | H32: 8848 | I32: 8863 | J32: 8880 | K32: 8895
A33: Heinola | B33: =pohjatiedot!C28 -> 19350 | C33: =pohjatiedot!AQ28 -> 19128 | D33: 19359 | E33: 19213 | F33: 19081 | G33: 18961 | H33: 18845 | I33: 18743 | J33: 18644 | K33: 18547
A34: Heinävesi | B34: =pohjatiedot!C29 -> 3514 | C34: =pohjatiedot!AQ29 -> 3455 | D34: 3497 | E34: 3434 | F34: 3376 | G34: 3319 | H34: 3267 | I34: 3216 | J34: 3170 | K34: 3124
A35: Helsinki | B35: =pohjatiedot!C30 -> 635181 | C35: =pohjatiedot!AQ30 -> 643272 | D35: 634731 | E35: 641830 | F35: 648760 | G35: 655512 | H35: 662101 | I35: 668491 | J35: 674714 | K35: 680782
A36: Hirvensalmi | B36: =pohjatiedot!C31 -> 2274 | C36: =pohjatiedot!AQ31 -> 2236 | D36: 2287 | E36: 2265 | F36: 2241 | G36: 2222 | H36: 2203 | I36: 2188 | J36: 2174 | K36: 2160
A37: Hollola | B37: =pohjatiedot!C32 -> 23791 | C37: =pohjatiedot!AQ32 -> 23782 | D37: 23976 | E37: 23981 | F37: 23987 | G37: 23991 | H37: 23989 | I37: 23981 | J37: 23970 | K37: 23949
A38: Honkajoki | B38: =pohjatiedot!C33 -> 1759 | C38: =pohjatiedot!AQ33 -> 1707 | D38: 1744 | E38: 1727 | F38: 1714 | G38: 1701 | H38: 1689 | I38: 1679 | J38: 1670 | K38: 1663
A39: Huittinen | B39: =pohjatiedot!C34 -> 10403 | C39: =pohjatiedot!AQ34 -> 10207 | D39: 10383 | E39: 10337 | F39: 10295 | G39: 10258 | H39: 10220 | I39: 10189 | J39: 10158 | K39: 10130
A40: Humppila | B40: =pohjatiedot!C35 -> 2345 | C40: =pohjatiedot!AQ35 -> 2290 | D40: 2409 | E40: 2390 | F40: 2373 | G40: 2357 | H40: 2343 | I40: 2332 | J40: 2320 | K40: 2309
A41: Hyrynsalmi | B41: =pohjatiedot!C36 -> 2406 | C41: =pohjatiedot!AQ36 -> 2326 | D41: 2372 | E41: 2320 | F41: 2270 | G41: 2225 | H41: 2182 | I41: 2140 | J41: 2102 | K41: 2066
A42: Hyvinkää | B42: =pohjatiedot!C37 -> 46596 | C42: =pohjatiedot!AQ37 -> 46739 | D42: 46732 | E42: 46921 | F42: 47115 | G42: 47313 | H42: 47514 | I42: 47715 | J42: 47916 | K42: 48116
A43: Hämeenkyrö | B43: =pohjatiedot!C38 -> 10681 | C43: =pohjatiedot!AQ38 -> 10599 | D43: 10672 | E43: 10709 | F43: 10744 | G43: 10782 | H43: 10818 | I43: 10852 | J43: 10883 | K43: 10916
A44: Hämeenlinna | B44: =pohjatiedot!C39 -> 67850 | C44: =pohjatiedot!AQ39 -> 67662 | D44: 68509 | E44: 68785 | F44: 69056 | G44: 69317 | H44: 69584 | I44: 69852 | J44: 70115 | K44: 70372
A45: Ii | B45: =pohjatiedot!C40 -> 9628 | C45: =pohjatiedot!AQ40 -> 9966 | D45: 9791 | E45: 9847 | F45: 9897 | G45: 9944 | H45: 9982 | I45: 10018 | J45: 10048 | K45: 10074
A46: Iisalmi | B46: =pohjatiedot!C41 -> 21767 | C46: =pohjatiedot!AQ41 -> 21639 | D46: 22111 | E46: 22106 | F46: 22098 | G46: 22089 | H46: 22080 | I46: 22067 | J46: 22058 | K46: 22047
A47: Iitti | B47: =pohjatiedot!C42 -> 6889 | C47: =pohjatiedot!AQ42 -> 6820 | D47: 6892 | E47: 6872 | F47: 6855 | G47: 6842 | H47: 6831 | I47: 6823 | J47: 6814 | K47: 6807
A48: Ikaalinen | B48: =pohjatiedot!C43 -> 7128 | C48: =pohjatiedot!AQ43 -> 7119 | D48: 7229 | E48: 7209 | F48: 7195 | G48: 7182 | H48: 7175 | I48: 7172 | J48: 7171 | K48: 7173
A49: Ilmajoki | B49: =pohjatiedot!C44 -> 12167 | C49: =pohjatiedot!AQ44 -> 12205 | D49: 12327 | E49: 12399 | F49: 12470 | G49: 12541 | H49: 12609 | I49: 12674 | J49: 12743 | K49: 12812
A50: Ilomantsi | B50: =pohjatiedot!C45 -> 5237 | C50: =pohjatiedot!AQ45 -> 5128 | D50: 5295 | E50: 5201 | F50: 5112 | G50: 5030 | H50: 4951 | I50: 4878 | J50: 4807 | K50: 4740
A51: Imatra | B51: =pohjatiedot!C46 -> 27517 | C51: =pohjatiedot!AQ46 -> 27269 | D51: 27722 | E51: 27589 | F51: 27470 | G51: 27359 | H51: 27254 | I51: 27152 | J51: 27052 | K51: 26951
A52: Inari | B52: =pohjatiedot!C47 -> 6825 | C52: =pohjatiedot!AQ47 -> 6869 | D52: 6800 | E52: 6796 | F52: 6797 | G52: 6800 | H52: 6803 | I52: 6810 | J52: 6817 | K52: 6823
A53: Inkoo | B53: =pohjatiedot!C48 -> 5585 | C53: =pohjatiedot!AQ48 -> 5481 | D53: 5523 | E53: 5516 | F53: 5512 | G53: 5511 | H53: 5510 | I53: 5512 | J53: 5515 | K53: 5519
A54: Isojoki | B54: =pohjatiedot!C49 -> 2079 | C54: =pohjatiedot!AQ49 -> 2032 | D54: 2120 | E54: 2084 | F54: 2053 | G54: 2026 | H54: 2001 | I54: 1979 | J54: 1957 | K54: 1937
A55: Isokyrö | B55: =pohjatiedot!C50 -> 4712 | C55: =pohjatiedot!AQ50 -> 4673 | D55: 4792 | E55: 4768 | F55: 4747 | G55: 4730 | H55: 4711 | I55: 4692 | J55: 4677 | K55: 4664
A56: Janakkala | B56: =pohjatiedot!C51 -> 16709 | C56: =pohjatiedot!AQ51 -> 16607 | D56: 16857 | E56: 16866 | F56: 16878 | G56: 16885 | H56: 16896 | I56: 16906 | J56: 16915 | K56: 16924
A57: Joensuu | B57: =pohjatiedot!C52 -> 75848 | C57: =pohjatiedot!AQ52 -> 76067 | D57: 75895 | E57: 76269 | F57: 76610 | G57: 76925 | H57: 77223 | I57: 77501 | J57: 77769 | K57: 78031
A58: Jokioinen | B58: =pohjatiedot!C53 -> 5341 | C58: =pohjatiedot!AQ53 -> 5286 | D58: 5436 | E58: 5398 | F58: 5364 | G58: 5331 | H58: 5301 | I58: 5272 | J58: 5244 | K58: 5218
A59: Joroinen | B59: =pohjatiedot!C54 -> 5039 | C59: =pohjatiedot!AQ54 -> 4917 | D59: 5078 | E59: 5035 | F59: 4995 | G59: 4957 | H59: 4923 | I59: 4885 | J59: 4852 | K59: 4820
A60: Joutsa | B60: =pohjatiedot!C55 -> 4673 | C60: =pohjatiedot!AQ55 -> 4567 | D60: 4639 | E60: 4582 | F60: 4533 | G60: 4486 | H60: 4442 | I60: 4403 | J60: 4366 | K60: 4327
A61: Juuka | B61: =pohjatiedot!C56 -> 4938 | C61: =pohjatiedot!AQ56 -> 4817 | D61: 4924 | E61: 4823 | F61: 4728 | G61: 4638 | H61: 4557 | I61: 4480 | J61: 4403 | K61: 4330
A62: Juupajoki | B62: =pohjatiedot!C57 -> 1957 | C62: =pohjatiedot!AQ57 -> 1904 | D62: 1993 | E62: 1978 | F62: 1967 | G62: 1958 | H62: 1950 | I62: 1941 | J62: 1934 | K62: 1926
A63: Juva | B63: =pohjatiedot!C58 -> 6421 | C63: =pohjatiedot!AQ58 -> 6334 | D63: 6428 | E63: 6343 | F63: 6257 | G63: 6175 | H63: 6093 | I63: 6017 | J63: 5945 | K63: 5875
A64: Jyväskylä | B64: =pohjatiedot!C59 -> 138850 | C64: =pohjatiedot!AQ59 -> 140188 | D64: 138088 | E64: 139151 | F64: 140154 | G64: 141114 | H64: 142035 | I64: 142915 | J64: 143769 | K64: 144599
A65: Jämijärvi | B65: =pohjatiedot!C60 -> 1915 | C65: =pohjatiedot!AQ60 -> 1867 | D65: 1974 | E65: 1961 | F65: 1952 | G65: 1942 | H65: 1934 | I65: 1929 | J65: 1925 | K65: 1922
A66: Jämsä | B66: =pohjatiedot!C61 -> 21259 | C66: =pohjatiedot!AQ61 -> 20877 | D66: 21332 | E66: 21112 | F66: 20901 | G66: 20695 | H66: 20503 | I66: 20320 | J66: 20152 | K66: 19991
A67: Järvenpää | B67: =pohjatiedot!C62 -> 41529 | C67: =pohjatiedot!AQ62 -> 42572 | D67: 40957 | E67: 41265 | F67: 41581 | G67: 41899 | H67: 42225 | I67: 42551 | J67: 42875 | K67: 43192
A68: Kaarina | B68: =pohjatiedot!C63 -> 32738 | C68: =pohjatiedot!AQ63 -> 33099 | D68: 32669 | E68: 32920 | F68: 33164 | G68: 33400 | H68: 33628 | I68: 33855 | J68: 34073 | K68: 34279
A69: Kaavi | B69: =pohjatiedot!C64 -> 3154 | C69: =pohjatiedot!AQ64 -> 3048 | D69: 3133 | E69: 3095 | F69: 3062 | G69: 3029 | H69: 3001 | I69: 2972 | J69: 2946 | K69: 2921
A70: Kajaani | B70: =pohjatiedot!C65 -> 37521 | C70: =pohjatiedot!AQ65 -> 37239 | D70: 37617 | E70: 37547 | F70: 37483 | G70: 37419 | H70: 37360 | I70: 37308 | J70: 37255 | K70: 37203
A71: Kalajoki | B71: =pohjatiedot!C66 -> 12586 | C71: =pohjatiedot!AQ66 -> 12516 | D71: 12654 | E71: 12671 | F71: 12686 | G71: 12701 | H71: 12712 | I71: 12721 | J71: 12727 | K71: 12729
A72: Kangasala | B72: =pohjatiedot!C67 -> 31190 | C72: =pohjatiedot!AQ67 -> 31437 | D72: 30760 | E72: 30917 | F72: 31080 | G72: 31239 | H72: 31393 | I72: 31541 | J72: 31680 | K72: 31798
A73: Kangasniemi | B73: =pohjatiedot!C68 -> 5603 | C73: =pohjatiedot!AQ68 -> 5549 | D73: 5545 | E73: 5483 | F73: 5425 | G73: 5372 | H73: 5324 | I73: 5277 | J73: 5233 | K73: 5189
A74: Kankaanpää | B74: =pohjatiedot!C69 -> 11637 | C74: =pohjatiedot!AQ69 -> 11585 | D74: 11737 | E74: 11672 | F74: 11610 | G74: 11549 | H74: 11492 | I74: 11440 | J74: 11389 | K74: 11343
A75: Kannonkoski | B75: =pohjatiedot!C70 -> 1424 | C75: =pohjatiedot!AQ70 -> 1408 | D75: 1436 | E75: 1418 | F75: 1402 | G75: 1386 | H75: 1371 | I75: 1358 | J75: 1344 | K75: 1334
A76: Kannus | B76: =pohjatiedot!C71 -> 5578 | C76: =pohjatiedot!AQ71 -> 5520 | D76: 5568 | E76: 5534 | F76: 5503 | G76: 5473 | H76: 5445 | I76: 5418 | J76: 5395 | K76: 5372
A77: Karijoki | B77: =pohjatiedot!C72 -> 1349 | C77: =pohjatiedot!AQ72 -> 1329 | D77: 1351 | E77: 1328 | F77: 1308 | G77: 1289 | H77: 1271 | I77: 1257 | J77: 1242 | K77: 1230
A78: Karkkila | B78: =pohjatiedot!C73 -> 8911 | C78: =pohjatiedot!AQ73 -> 8900 | D78: 8897 | E78: 8873 | F78: 8853 | G78: 8838 | H78: 8825 | I78: 8819 | J78: 8815 | K78: 8814
A79: Karstula | B79: =pohjatiedot!C74 -> 4232 | C79: =pohjatiedot!AQ74 -> 4146 | D79: 4170 | E79: 4114 | F79: 4062 | G79: 4013 | H79: 3966 | I79: 3919 | J79: 3874 | K79: 3832
A80: Karvia | B80: =pohjatiedot!C75 -> 2449 | C80: =pohjatiedot!AQ75 -> 2403 | D80: 2421 | E80: 2387 | F80: 2355 | G80: 2325 | H80: 2296 | I80: 2269 | J80: 2246 | K80: 2222
A81: Kaskinen | B81: =pohjatiedot!C76 -> 1296 | C81: =pohjatiedot!AQ76 -> 1274 | D81: 1278 | E81: 1262 | F81: 1248 | G81: 1237 | H81: 1227 | I81: 1218 | J81: 1212 | K81: 1206
A82: Kauhajoki | B82: =pohjatiedot!C77 -> 13772 | C82: =pohjatiedot!AQ77 -> 13610 | D82: 13865 | E82: 13799 | F82: 13741 | G82: 13687 | H82: 13640 | I82: 13599 | J82: 13561 | K82: 13526
A83: Kauhava | B83: =pohjatiedot!C78 -> 16599 | C83: =pohjatiedot!AQ78 -> 16278 | D83: 16630 | E83: 16502 | F83: 16382 | G83: 16272 | H83: 16164 | I83: 16060 | J83: 15963 | K83: 15863
A84: Kauniainen | B84: =pohjatiedot!C79 -> 9397 | C84: =pohjatiedot!AQ79 -> 9624 | D84: 9603 | E84: 9730 | F84: 9853 | G84: 9978 | H84: 10100 | I84: 10216 | J84: 10330 | K84: 10444
A85: Kaustinen | B85: =pohjatiedot!C80 -> 4298 | C85: =pohjatiedot!AQ80 -> 4309 | D85: 4271 | E85: 4267 | F85: 4264 | G85: 4263 | H85: 4263 | I85: 4264 | J85: 4264 | K85: 4263
A86: Keitele | B86: =pohjatiedot!C81 -> 2346 | C86: =pohjatiedot!AQ81 -> 2309 | D86: 2340 | E86: 2311 | F86: 2283 | G86: 2257 | H86: 2232 | I86: 2208 | J86: 2187 | K86: 2166
A87: Kemi | B87: =pohjatiedot!C82 -> 21602 | C87: =pohjatiedot!AQ82 -> 21256 | D87: 21647 | E87: 21522 | F87: 21405 | G87: 21296 | H87: 21192 | I87: 21095 | J87: 21003 | K87: 20916
A88: Kemijärvi | B88: =pohjatiedot!C83 -> 7661 | C88: =pohjatiedot!AQ83 -> 7534 | D88: 7616 | E88: 7492 | F88: 7376 | G88: 7266 | H88: 7160 | I88: 7058 | J88: 6963 | K88: 6872
A89: Keminmaa | B89: =pohjatiedot!C84 -> 8316 | C89: =pohjatiedot!AQ84 -> 8296 | D89: 8416 | E89: 8395 | F89: 8375 | G89: 8355 | H89: 8339 | I89: 8325 | J89: 8312 | K89: 8299
A90: Kemiönsaari | B90: =pohjatiedot!C85 -> 6872 | C90: =pohjatiedot!AQ85 -> 6793 | D90: 6772 | E90: 6702 | F90: 6638 | G90: 6576 | H90: 6520 | I90: 6469 | J90: 6421 | K90: 6376
A91: Kempele | B91: =pohjatiedot!C86 -> 17297 | C91: =pohjatiedot!AQ86 -> 17535 | D91: 17361 | E91: 17575 | F91: 17777 | G91: 17971 | H91: 18151 | I91: 18318 | J91: 18469 | K91: 18606
A92: Kerava | B92: =pohjatiedot!C87 -> 35511 | C92: =pohjatiedot!AQ87 -> 35554 | D92: 35832 | E92: 36107 | F92: 36384 | G92: 36660 | H92: 36937 | I92: 37211 | J92: 37484 | K92: 37751
A93: Keuruu | B93: =pohjatiedot!C88 -> 9992 | C93: =pohjatiedot!AQ88 -> 9919 | D93: 9939 | E93: 9834 | F93: 9741 | G93: 9656 | H93: 9578 | I93: 9501 | J93: 9430 | K93: 9363
A94: Kihniö | B94: =pohjatiedot!C89 -> 1994 | C94: =pohjatiedot!AQ89 -> 1967 | D94: 2009 | E94: 1977 | F94: 1946 | G94: 1919 | H94: 1891 | I94: 1865 | J94: 1839 | K94: 1816
A95: Kinnula | B95: =pohjatiedot!C90 -> 1699 | C95: =pohjatiedot!AQ90 -> 1656 | D95: 1747 | E95: 1737 | F95: 1727 | G95: 1719 | H95: 1712 | I95: 1706 | J95: 1699 | K95: 1692
A96: Kirkkonummi | B96: =pohjatiedot!C91 -> 39033 | C96: =pohjatiedot!AQ91 -> 39170 | D96: 38798 | E96: 39097 | F96: 39400 | G96: 39703 | H96: 40002 | I96: 40291 | J96: 40573 | K96: 40841
A97: Kitee | B97: =pohjatiedot!C92 -> 10719 | C97: =pohjatiedot!AQ92 -> 10486 | D97: 10603 | E97: 10433 | F97: 10279 | G97: 10129 | H97: 9987 | I97: 9854 | J97: 9725 | K97: 9602
A98: Kittilä | B98: =pohjatiedot!C93 -> 6383 | C98: =pohjatiedot!AQ93 -> 6421 | D98: 6592 | E98: 6655 | F98: 6716 | G98: 6777 | H98: 6836 | I98: 6893 | J98: 6946 | K98: 6992
A99: Kiuruvesi | B99: =pohjatiedot!C94 -> 8444 | C99: =pohjatiedot!AQ94 -> 8283 | D99: 8543 | E99: 8449 | F99: 8361 | G99: 8277 | H99: 8197 | I99: 8123 | J99: 8051 | K99: 7984
A100: Kivijärvi | B100: =pohjatiedot!C95 -> 1161 | C100: =pohjatiedot!AQ95 -> 1132 | D100: 1185 | E100: 1163 | F100: 1143 | G100: 1125 | H100: 1109 | I100: 1095 | J100: 1082 | K100: 1070
A101: Kokemäki | B101: =pohjatiedot!C96 -> 7498 | C101: =pohjatiedot!AQ96 -> 7381 | D101: 7541 | E101: 7472 | F101: 7410 | G101: 7355 | H101: 7301 | I101: 7251 | J101: 7206 | K101: 7162
A102: Kokkola | B102: =pohjatiedot!C97 -> 47723 | C102: =pohjatiedot!AQ97 -> 47723 | D102: 47729 | E102: 47957 | F102: 48186 | G102: 48409 | H102: 48625 | I102: 48836 | J102: 49038 | K102: 49235
A103: KOKO MAA (Manner-Suomi) | B103: =pohjatiedot!C98 -> 5474083 | C103: =pohjatiedot!AQ98 -> 5483641 | D103: 5482281 | E103: 5503261 | F103: 5524063 | G103: 5544619 | H103: 5564874 | I103: 5584791 | J103: 5604290 | K103: 5623257
A104: Kolari | B104: =pohjatiedot!C99 -> 3827 | C104: =pohjatiedot!AQ99 -> 3854 | D104: 3825 | E104: 3827 | F104: 3831 | G104: 3840 | H104: 3849 | I104: 3858 | J104: 3866 | K104: 3873
A105: Konnevesi | B105: =pohjatiedot!C100 -> 2753 | C105: =pohjatiedot!AQ100 -> 2748 | D105: 2773 | E105: 2745 | F105: 2719 | G105: 2695 | H105: 2672 | I105: 2652 | J105: 2631 | K105: 2610
A106: Kontiolahti | B106: =pohjatiedot!C101 -> 14806 | C106: =pohjatiedot!AQ101 -> 14830 | D106: 15108 | E106: 15306 | F106: 15493 | G106: 15669 | H106: 15838 | I106: 15996 | J106: 16147 | K106: 16290
A107: Korsnäs | B107: =pohjatiedot!C102 -> 2171 | C107: =pohjatiedot!AQ102 -> 2154 | D107: 2202 | E107: 2197 | F107: 2194 | G107: 2192 | H107: 2191 | I107: 2193 | J107: 2197 | K107: 2199
A108: Koski | B108: =pohjatiedot!C103 -> 2416 | C108: =pohjatiedot!AQ103 -> 2359 | D108: 2424 | E108: 2419 | F108: 2413 | G108: 2407 | H108: 2400 | I108: 2395 | J108: 2388 | K108: 2385
A109: Kotka | B109: =pohjatiedot!C104 -> 54187 | C109: =pohjatiedot!AQ104 -> 53539 | D109: 54374 | E109: 54321 | F109: 54262 | G109: 54200 | H109: 54141 | I109: 54085 | J109: 54028 | K109: 53971
A110: Kouvola | B110: =pohjatiedot!C105 -> 85306 | C110: =pohjatiedot!AQ105 -> 84196 | D110: 85697 | E110: 85356 | F110: 85030 | G110: 84722 | H110: 84419 | I110: 84130 | J110: 83852 | K110: 83577
A111: Kristiinankaupunki | B111: =pohjatiedot!C106 -> 6727 | C111: =pohjatiedot!AQ106 -> 6638 | D111: 6648 | E111: 6566 | F111: 6492 | G111: 6421 | H111: 6358 | I111: 6299 | J111: 6245 | K111: 6197
A112: Kruunupyy | B112: =pohjatiedot!C107 -> 6620 | C112: =pohjatiedot!AQ107 -> 6531 | D112: 6627 | E112: 6614 | F112: 6605 | G112: 6596 | H112: 6588 | I112: 6583 | J112: 6579 | K112: 6576
A113: Kuhmo | B113: =pohjatiedot!C108 -> 8647 | C113: =pohjatiedot!AQ108 -> 8499 | D113: 8659 | E113: 8526 | F113: 8397 | G113: 8271 | H113: 8149 | I113: 8031 | J113: 7919 | K113: 7809
A114: Kuhmoinen | B114: =pohjatiedot!C109 -> 2286 | C114: =pohjatiedot!AQ109 -> 2252 | D114: 2285 | E114: 2248 | F114: 2210 | G114: 2175 | H114: 2139 | I114: 2106 | J114: 2077 | K114: 2049
A115: Kuopio | B115: =pohjatiedot!C110 -> 117740 | C115: =pohjatiedot!AQ110 -> 118209 | D115: 113230 | E115: 114128 | F115: 114980 | G115: 115790 | H115: 116572 | I115: 117323 | J115: 118050 | K115: 118754
A116: Kuortane | B116: =pohjatiedot!C111 -> 3690 | C116: =pohjatiedot!AQ111 -> 3637 | D116: 3612 | E116: 3562 | F116: 3512 | G116: 3463 | H116: 3418 | I116: 3373 | J116: 3330 | K116: 3289
A117: Kurikka | B117: =pohjatiedot!C112 -> 21501 | C117: =pohjatiedot!AQ112 -> 21203 | D117: 21707 | E117: 21547 | F117: 21398 | G117: 21261 | H117: 21129 | I117: 21004 | J117: 20883 | K117: 20766
A118: Kustavi | B118: =pohjatiedot!C113 -> 908 | C118: =pohjatiedot!AQ113 -> 923 | D118: 892 | E118: 894 | F118: 893 | G118: 893 | H118: 893 | I118: 896 | J118: 898 | K118: 898
A119: Kuusamo | B119: =pohjatiedot!C114 -> 15533 | C119: =pohjatiedot!AQ114 -> 15386 | D119: 15434 | E119: 15264 | F119: 15107 | G119: 14967 | H119: 14838 | I119: 14717 | J119: 14600 | K119: 14489
A120: Kyyjärvi | B120: =pohjatiedot!C115 -> 1375 | C120: =pohjatiedot!AQ115 -> 1352 | D120: 1343 | E120: 1317 | F120: 1293 | G120: 1272 | H120: 1248 | I120: 1226 | J120: 1205 | K120: 1186
A121: Kärkölä | B121: =pohjatiedot!C116 -> 4540 | C121: =pohjatiedot!AQ116 -> 4508 | D121: 4533 | E121: 4495 | F121: 4462 | G121: 4433 | H121: 4409 | I121: 4385 | J121: 4363 | K121: 4345
A122: Kärsämäki | B122: =pohjatiedot!C117 -> 2655 | C122: =pohjatiedot!AQ117 -> 2611 | D122: 2594 | E122: 2548 | F122: 2506 | G122: 2462 | H122: 2422 | I122: 2383 | J122: 2344 | K122: 2308
A123: Lahti | B123: =pohjatiedot!C118 -> 119452 | C123: =pohjatiedot!AQ118 -> 119573 | D123: 119587 | E123: 120041 | F123: 120476 | G123: 120897 | H123: 121300 | I123: 121683 | J123: 122060 | K123: 122425
A124: Laihia | B124: =pohjatiedot!C119 -> 8139 | C124: =pohjatiedot!AQ119 -> 8051 | D124: 8157 | E124: 8205 | F124: 8252 | G124: 8298 | H124: 8341 | I124: 8379 | J124: 8416 | K124: 8451
A125: Laitila | B125: =pohjatiedot!C120 -> 8520 | C125: =pohjatiedot!AQ120 -> 8610 | D125: 8576 | E125: 8597 | F125: 8615 | G125: 8633 | H125: 8650 | I125: 8668 | J125: 8687 | K125: 8706
A126: Lapinjärvi | B126: =pohjatiedot!C121 -> 2739 | C126: =pohjatiedot!AQ121 -> 2706 | D126: 2722 | E126: 2699 | F126: 2680 | G126: 2664 | H126: 2649 | I126: 2635 | J126: 2626 | K126: 2616
A127: Lapinlahti | B127: =pohjatiedot!C122 -> 9882 | C127: =pohjatiedot!AQ122 -> 9692 | D127: 9939 | E127: 9869 | F127: 9803 | G127: 9739 | H127: 9677 | I127: 9621 | J127: 9567 | K127: 9515
A128: Lappajärvi | B128: =pohjatiedot!C123 -> 3176 | C128: =pohjatiedot!AQ123 -> 3140 | D128: 3149 | E128: 3102 | F128: 3057 | G128: 3016 | H128: 2977 | I128: 2940 | J128: 2906 | K128: 2872
A129: Lappeenranta | B129: =pohjatiedot!C124 -> 72872 | C129: =pohjatiedot!AQ124 -> 72909 | D129: 73103 | E129: 73255 | F129: 73397 | G129: 73535 | H129: 73666 | I129: 73791 | J129: 73917 | K129: 74042
A130: Lapua | B130: =pohjatiedot!C125 -> 14575 | C130: =pohjatiedot!AQ125 -> 14494 | D130: 14848 | E130: 14919 | F130: 14989 | G130: 15054 | H130: 15119 | I130: 15183 | J130: 15245 | K130: 15300
A131: Laukaa | B131: =pohjatiedot!C126 -> 18970 | C131: =pohjatiedot!AQ126 -> 18978 | D131: 18946 | E131: 19066 | F131: 19183 | G131: 19297 | H131: 19406 | I131: 19508 | J131: 19600 | K131: 19682
A132: Lemi | B132: =pohjatiedot!C127 -> 3076 | C132: =pohjatiedot!AQ127 -> 3063 | D132: 3133 | E132: 3138 | F132: 3143 | G132: 3146 | H132: 3149 | I132: 3151 | J132: 3151 | K132: 3150
A133: Lempäälä | B133: =pohjatiedot!C128 -> 22745 | C133: =pohjatiedot!AQ128 -> 22829 | D133: 22991 | E133: 23358 | F133: 23715 | G133: 24061 | H133: 24395 | I133: 24714 | J133: 25023 | K133: 25313
A134: Leppävirta | B134: =pohjatiedot!C129 -> 9865 | C134: =pohjatiedot!AQ129 -> 9782 | D134: 9735 | E134: 9609 | F134: 9489 | G134: 9377 | H134: 9269 | I134: 9166 | J134: 9070 | K134: 8981
A135: Lestijärvi | B135: =pohjatiedot!C130 -> 811 | C135: =pohjatiedot!AQ130 -> 789 | D135: 799 | E135: 793 | F135: 786 | G135: 783 | H135: 777 | I135: 771 | J135: 768 | K135: 765
A136: Lieksa | B136: =pohjatiedot!C131 -> 11580 | C136: =pohjatiedot!AQ131 -> 11297 | D136: 11832 | E136: 11706 | F136: 11585 | G136: 11470 | H136: 11363 | I136: 11261 | J136: 11164 | K136: 11072
A137: Lieto | B137: =pohjatiedot!C132 -> 19418 | C137: =pohjatiedot!AQ132 -> 19596 | D137: 19685 | E137: 19918 | F137: 20149 | G137: 20370 | H137: 20585 | I137: 20796 | J137: 21000 | K137: 21193
A138: Liminka | B138: =pohjatiedot!C133 -> 10000 | C138: =pohjatiedot!AQ133 -> 10133 | D138: 10104 | E138: 10267 | F138: 10418 | G138: 10554 | H138: 10671 | I138: 10776 | J138: 10870 | K138: 10952
A139: Liperi | B139: =pohjatiedot!C134 -> 12301 | C139: =pohjatiedot!AQ134 -> 12150 | D139: 12385 | E139: 12414 | F139: 12438 | G139: 12461 | H139: 12480 | I139: 12499 | J139: 12517 | K139: 12532
A140: Lohja | B140: =pohjatiedot!C135 -> 47149 | C140: =pohjatiedot!AQ135 -> 46785 | D140: 47754 | E140: 47839 | F140: 47932 | G140: 48033 | H140: 48136 | I140: 48245 | J140: 48350 | K140: 48461
A141: Loimaa | B141: =pohjatiedot!C136 -> 16267 | C141: =pohjatiedot!AQ136 -> 16150 | D141: 16418 | E141: 16343 | F141: 16272 | G141: 16211 | H141: 16150 | I141: 16098 | J141: 16050 | K141: 16006
A142: Loppi | B142: =pohjatiedot!C137 -> 8098 | C142: =pohjatiedot!AQ137 -> 8028 | D142: 8300 | E142: 8311 | F142: 8317 | G142: 8325 | H142: 8330 | I142: 8334 | J142: 8338 | K142: 8339
A143: Loviisa | B143: =pohjatiedot!C138 -> 15208 | C143: =pohjatiedot!AQ138 -> 15085 | D143: 15461 | E143: 15459 | F143: 15459 | G143: 15465 | H143: 15474 | I143: 15485 | J143: 15499 | K143: 15515
A144: Luhanka | B144: =pohjatiedot!C139 -> 756 | C144: =pohjatiedot!AQ139 -> 734 | D144: 737 | E144: 724 | F144: 715 | G144: 706 | H144: 699 | I144: 692 | J144: 685 | K144: 680
A145: Lumijoki | B145: =pohjatiedot!C140 -> 2105 | C145: =pohjatiedot!AQ140 -> 2081 | D145: 2107 | E145: 2121 | F145: 2134 | G145: 2145 | H145: 2157 | I145: 2169 | J145: 2175 | K145: 2181
A146: Luoto | B146: =pohjatiedot!C141 -> 5176 | C146: =pohjatiedot!AQ141 -> 5264 | D146: 5257 | E146: 5332 | F146: 5406 | G146: 5478 | H146: 5549 | I146: 5618 | J146: 5687 | K146: 5753
A147: Luumäki | B147: =pohjatiedot!C142 -> 4831 | C147: =pohjatiedot!AQ142 -> 4747 | D147: 4844 | E147: 4795 | F147: 4748 | G147: 4703 | H147: 4662 | I147: 4620 | J147: 4584 | K147: 4549
A148: Maalahti | B148: =pohjatiedot!C143 -> 5517 | C148: =pohjatiedot!AQ143 -> 5477 | D148: 5540 | E148: 5533 | F148: 5526 | G148: 5524 | H148: 5523 | I148: 5525 | J148: 5527 | K148: 5531
A149: Marttila | B149: =pohjatiedot!C144 -> 2021 | C149: =pohjatiedot!AQ144 -> 1988 | D149: 2086 | E149: 2097 | F149: 2106 | G149: 2115 | H149: 2124 | I149: 2137 | J149: 2147 | K149: 2158
A150: Masku | B150: =pohjatiedot!C145 -> 9675 | C150: =pohjatiedot!AQ145 -> 9656 | D150: 9914 | E150: 9981 | F150: 10046 | G150: 10106 | H150: 10164 | I150: 10221 | J150: 10278 | K150: 10331
A151: Merijärvi | B151: =pohjatiedot!C146 -> 1131 | C151: =pohjatiedot!AQ146 -> 1119 | D151: 1128 | E151: 1116 | F151: 1106 | G151: 1096 | H151: 1085 | I151: 1076 | J151: 1067 | K151: 1061
A152: Merikarvia | B152: =pohjatiedot!C147 -> 3169 | C152: =pohjatiedot!AQ147 -> 3156 | D152: 3169 | E152: 3136 | F152: 3103 | G152: 3073 | H152: 3044 | I152: 3015 | J152: 2987 | K152: 2961
A153: Miehikkälä | B153: =pohjatiedot!C148 -> 2034 | C153: =pohjatiedot!AQ148 -> 1992 | D153: 2065 | E153: 2041 | F153: 2020 | G153: 1997 | H153: 1976 | I153: 1957 | J153: 1938 | K153: 1921
A154: Mikkeli | B154: =pohjatiedot!C149 -> 54517 | C154: =pohjatiedot!AQ149 -> 54261 | D154: 54633 | E154: 54651 | F154: 54665 | G154: 54678 | H154: 54690 | I154: 54707 | J154: 54722 | K154: 54732
A155: Muhos | B155: =pohjatiedot!C150 -> 8995 | C155: =pohjatiedot!AQ150 -> 9019 | D155: 9017 | E155: 9027 | F155: 9037 | G155: 9039 | H155: 9032 | I155: 9024 | J155: 9012 | K155: 8999
A156: Multia | B156: =pohjatiedot!C151 -> 1663 | C156: =pohjatiedot!AQ151 -> 1636 | D156: 1698 | E156: 1667 | F156: 1639 | G156: 1612 | H156: 1586 | I156: 1561 | J156: 1538 | K156: 1517
A157: Muonio | B157: =pohjatiedot!C152 -> 2350 | C157: =pohjatiedot!AQ152 -> 2332 | D157: 2363 | E157: 2358 | F157: 2356 | G157: 2355 | H157: 2356 | I157: 2355 | J157: 2355 | K157: 2357
A158: Mustasaari | B158: =pohjatiedot!C153 -> 19380 | C158: =pohjatiedot!AQ153 -> 19384 | D158: 19625 | E158: 19797 | F158: 19967 | G158: 20129 | H158: 20286 | I158: 20438 | J158: 20585 | K158: 20720
A159: Muurame | B159: =pohjatiedot!C154 -> 9941 | C159: =pohjatiedot!AQ154 -> 10097 | D159: 9880 | E159: 9969 | F159: 10055 | G159: 10139 | H159: 10216 | I159: 10290 | J159: 10360 | K159: 10427
A160: Mynämäki | B160: =pohjatiedot!C155 -> 7842 | C160: =pohjatiedot!AQ155 -> 7838 | D160: 7835 | E160: 7798 | F160: 7761 | G160: 7729 | H160: 7701 | I160: 7678 | J160: 7657 | K160: 7638
A161: Myrskylä | B161: =pohjatiedot!C156 -> 1986 | C161: =pohjatiedot!AQ156 -> 1969 | D161: 1976 | E161: 1973 | F161: 1976 | G161: 1978 | H161: 1982 | I161: 1987 | J161: 1991 | K161: 1994
A162: Mäntsälä | B162: =pohjatiedot!C157 -> 20853 | C162: =pohjatiedot!AQ157 -> 20803 | D162: 20902 | E162: 21045 | F162: 21187 | G162: 21328 | H162: 21465 | I162: 21607 | J162: 21748 | K162: 21887
A163: Mänttä-Vilppula | B163: =pohjatiedot!C158 -> 10448 | C163: =pohjatiedot!AQ158 -> 10256 | D163: 10394 | E163: 10250 | F163: 10113 | G163: 9988 | H163: 9869 | I163: 9758 | J163: 9656 | K163: 9565
A164: Mäntyharju | B164: =pohjatiedot!C159 -> 6097 | C164: =pohjatiedot!AQ159 -> 6054 | D164: 6173 | E164: 6134 | F164: 6097 | G164: 6059 | H164: 6023 | I164: 5990 | J164: 5957 | K164: 5926
A165: Naantali | B165: =pohjatiedot!C160 -> 19068 | C165: =pohjatiedot!AQ160 -> 19167 | D165: 18875 | E165: 18904 | F165: 18942 | G165: 18982 | H165: 19027 | I165: 19077 | J165: 19126 | K165: 19175
A166: Nakkila | B166: =pohjatiedot!C161 -> 5548 | C166: =pohjatiedot!AQ161 -> 5521 | D166: 5613 | E166: 5592 | F166: 5571 | G166: 5552 | H166: 5530 | I166: 5511 | J166: 5490 | K166: 5468
A167: Nivala | B167: =pohjatiedot!C162 -> 10889 | C167: =pohjatiedot!AQ162 -> 10815 | D167: 10910 | E167: 10890 | F167: 10874 | G167: 10859 | H167: 10839 | I167: 10819 | J167: 10797 | K167: 10775
A168: Nokia | B168: =pohjatiedot!C163 -> 33210 | C168: =pohjatiedot!AQ163 -> 33322 | D168: 33340 | E168: 33585 | F168: 33824 | G168: 34055 | H168: 34282 | I168: 34500 | J168: 34710 | K168: 34904
A169: Nousiainen | B169: =pohjatiedot!C164 -> 4815 | C169: =pohjatiedot!AQ164 -> 4813 | D169: 4859 | E169: 4865 | F169: 4869 | G169: 4875 | H169: 4881 | I169: 4887 | J169: 4894 | K169: 4900
A170: Nurmes | B170: =pohjatiedot!C165 -> 7885 | C170: =pohjatiedot!AQ165 -> 7765 | D170: 7851 | E170: 7753 | F170: 7664 | G170: 7581 | H170: 7500 | I170: 7422 | J170: 7346 | K170: 7275
A171: Nurmijärvi | B171: =pohjatiedot!C166 -> 42010 | C171: =pohjatiedot!AQ166 -> 42159 | D171: 42237 | E171: 42573 | F171: 42908 | G171: 43240 | H171: 43566 | I171: 43883 | J171: 44194 | K171: 44501
A172: Närpiö | B172: =pohjatiedot!C167 -> 9439 | C172: =pohjatiedot!AQ167 -> 9507 | D172: 9323 | E172: 9303 | F172: 9288 | G172: 9274 | H172: 9263 | I172: 9254 | J172: 9246 | K172: 9240
A173: Orimattila | B173: =pohjatiedot!C168 -> 16279 | C173: =pohjatiedot!AQ168 -> 16221 | D173: 16258 | E173: 16256 | F173: 16254 | G173: 16257 | H173: 16257 | I173: 16257 | J173: 16256 | K173: 16256
A174: Oripää | B174: =pohjatiedot!C169 -> 1363 | C174: =pohjatiedot!AQ169 -> 1382 | D174: 1429 | E174: 1431 | F174: 1436 | G174: 1437 | H174: 1438 | I174: 1439 | J174: 1440 | K174: 1441
A175: Orivesi | B175: =pohjatiedot!C170 -> 9312 | C175: =pohjatiedot!AQ170 -> 9285 | D175: 9536 | E175: 9523 | F175: 9519 | G175: 9519 | H175: 9525 | I175: 9533 | J175: 9543 | K175: 9550
A176: Oulainen | B176: =pohjatiedot!C171 -> 7514 | C176: =pohjatiedot!AQ171 -> 7472 | D176: 7605 | E176: 7550 | F176: 7497 | G176: 7444 | H176: 7396 | I176: 7348 | J176: 7305 | K176: 7265
A177: Oulu | B177: =pohjatiedot!C172 -> 200526 | C177: =pohjatiedot!AQ172 -> 201810 | D177: 201621 | E177: 204148 | F177: 206569 | G177: 208898 | H177: 211144 | I177: 213314 | J177: 215418 | K177: 217444
A178: Outokumpu | B178: =pohjatiedot!C173 -> 7091 | C178: =pohjatiedot!AQ173 -> 7003 | D178: 7025 | E178: 6957 | F178: 6890 | G178: 6827 | H178: 6769 | I178: 6715 | J178: 6665 | K178: 6616
A179: Padasjoki | B179: =pohjatiedot!C174 -> 3073 | C179: =pohjatiedot!AQ174 -> 3027 | D179: 3096 | E179: 3049 | F179: 3007 | G179: 2969 | H179: 2934 | I179: 2902 | J179: 2871 | K179: 2843
A180: Paimio | B180: =pohjatiedot!C175 -> 10713 | C180: =pohjatiedot!AQ175 -> 10730 | D180: 10734 | E180: 10788 | F180: 10842 | G180: 10899 | H180: 10955 | I180: 11009 | J180: 11059 | K180: 11108
A181: Paltamo | B181: =pohjatiedot!C176 -> 3491 | C181: =pohjatiedot!AQ176 -> 3435 | D181: 3416 | E181: 3357 | F181: 3303 | G181: 3252 | H181: 3207 | I181: 3165 | J181: 3127 | K181: 3090
A182: Parainen | B182: =pohjatiedot!C177 -> 15398 | C182: =pohjatiedot!AQ177 -> 15285 | D182: 15497 | E182: 15500 | F182: 15502 | G182: 15504 | H182: 15511 | I182: 15516 | J182: 15523 | K182: 15529
A183: Parikkala | B183: =pohjatiedot!C178 -> 5126 | C183: =pohjatiedot!AQ178 -> 4969 | D183: 5171 | E183: 5084 | F183: 4999 | G183: 4926 | H183: 4855 | I183: 4789 | J183: 4728 | K183: 4670
A184: Parkano | B184: =pohjatiedot!C179 -> 6692 | C184: =pohjatiedot!AQ179 -> 6562 | D184: 6700 | E184: 6650 | F184: 6606 | G184: 6561 | H184: 6520 | I184: 6481 | J184: 6445 | K184: 6407
A185: Pedersören kunta | B185: =pohjatiedot!C180 -> 11067 | C185: =pohjatiedot!AQ180 -> 11084 | D185: 11153 | E185: 11202 | F185: 11254 | G185: 11305 | H185: 11356 | I185: 11406 | J185: 11456 | K185: 11503
A186: Pelkosenniemi | B186: =pohjatiedot!C181 -> 951 | C186: =pohjatiedot!AQ181 -> 958 | D186: 927 | E186: 918 | F186: 910 | G186: 905 | H186: 899 | I186: 892 | J186: 886 | K186: 882
A187: Pello | B187: =pohjatiedot!C182 -> 3565 | C187: =pohjatiedot!AQ182 -> 3510 | D187: 3538 | E187: 3476 | F187: 3418 | G187: 3366 | H187: 3314 | I187: 3265 | J187: 3219 | K187: 3172
A188: Perho | B188: =pohjatiedot!C183 -> 2907 | C188: =pohjatiedot!AQ183 -> 2860 | D188: 2847 | E188: 2824 | F188: 2801 | G188: 2781 | H188: 2760 | I188: 2738 | J188: 2719 | K188: 2701
A189: Pertunmaa | B189: =pohjatiedot!C184 -> 1796 | C189: =pohjatiedot!AQ184 -> 1739 | D189: 1788 | E189: 1767 | F189: 1748 | G189: 1730 | H189: 1712 | I189: 1694 | J189: 1677 | K189: 1662
A190: Petäjävesi | B190: =pohjatiedot!C185 -> 3981 | C190: =pohjatiedot!AQ185 -> 3920 | D190: 4091 | E190: 4099 | F190: 4107 | G190: 4116 | H190: 4124 | I190: 4130 | J190: 4138 | K190: 4145
A191: Pieksämäki | B191: =pohjatiedot!C186 -> 18475 | C191: =pohjatiedot!AQ186 -> 18220 | D191: 18598 | E191: 18385 | F191: 18189 | G191: 18000 | H191: 17825 | I191: 17659 | J191: 17503 | K191: 17355
A192: Pielavesi | B192: =pohjatiedot!C187 -> 4697 | C192: =pohjatiedot!AQ187 -> 4624 | D192: 4650 | E192: 4590 | F192: 4531 | G192: 4477 | H192: 4429 | I192: 4382 | J192: 4337 | K192: 4291
A193: Pietarsaari | B193: =pohjatiedot!C188 -> 19377 | C193: =pohjatiedot!AQ188 -> 19379 | D193: 19526 | E193: 19521 | F193: 19520 | G193: 19520 | H193: 19527 | I193: 19527 | J193: 19528 | K193: 19529
A194: Pihtipudas | B194: =pohjatiedot!C189 -> 4202 | C194: =pohjatiedot!AQ189 -> 4127 | D194: 4096 | E194: 4022 | F194: 3949 | G194: 3881 | H194: 3816 | I194: 3754 | J194: 3696 | K194: 3640
A195: Pirkkala | B195: =pohjatiedot!C190 -> 19163 | C195: =pohjatiedot!AQ190 -> 19237 | D195: 19554 | E195: 19980 | F195: 20396 | G195: 20797 | H195: 21186 | I195: 21561 | J195: 21921 | K195: 22263
A196: Polvijärvi | B196: =pohjatiedot!C191 -> 4514 | C196: =pohjatiedot!AQ191 -> 4414 | D196: 4528 | E196: 4494 | F196: 4456 | G196: 4425 | H196: 4395 | I196: 4372 | J196: 4348 | K196: 4326
A197: Pomarkku | B197: =pohjatiedot!C192 -> 2233 | C197: =pohjatiedot!AQ192 -> 2166 | D197: 2214 | E197: 2183 | F197: 2150 | G197: 2119 | H197: 2091 | I197: 2063 | J197: 2036 | K197: 2012
A198: Pori | B198: =pohjatiedot!C193 -> 85059 | C198: =pohjatiedot!AQ193 -> 84587 | D198: 85545 | E198: 85616 | F198: 85681 | G198: 85746 | H198: 85812 | I198: 85877 | J198: 85931 | K198: 85987
A199: Pornainen | B199: =pohjatiedot!C194 -> 5108 | C199: =pohjatiedot!AQ194 -> 5121 | D199: 5161 | E199: 5175 | F199: 5195 | G199: 5213 | H199: 5235 | I199: 5257 | J199: 5282 | K199: 5303
A200: Porvoo | B200: =pohjatiedot!C195 -> 50144 | C200: =pohjatiedot!AQ195 -> 50159 | D200: 50095 | E200: 50305 | F200: 50523 | G200: 50741 | H200: 50956 | I200: 51171 | J200: 51378 | K200: 51581
A201: Posio | B201: =pohjatiedot!C196 -> 3424 | C201: =pohjatiedot!AQ196 -> 3310 | D201: 3497 | E201: 3436 | F201: 3380 | G201: 3327 | H201: 3278 | I201: 3232 | J201: 3190 | K201: 3151
A202: Pudasjärvi | B202: =pohjatiedot!C197 -> 8187 | C202: =pohjatiedot!AQ197 -> 8103 | D202: 8152 | E202: 8045 | F202: 7945 | G202: 7850 | H202: 7761 | I202: 7678 | J202: 7597 | K202: 7524
A203: Pukkila | B203: =pohjatiedot!C198 -> 1988 | C203: =pohjatiedot!AQ198 -> 1940 | D203: 2017 | E203: 2018 | F203: 2021 | G203: 2023 | H203: 2029 | I203: 2033 | J203: 2041 | K203: 2048
... 100 more rows
